Workbook

Sheet DY4 Cat 4 Template
Q1: Sht Chg Dummy | R1: Status Total: | S1: Status Achieved: | W1: =CELL("address",W15)&":"&CELL("address",W313) -> $W$15:$W$313 | AC1: ="'"&MID(CELL("filename",'DY3 Category 4'!A1),FIND("]",CELL("filename",'DY3 Category 4'!A1))+1,256)&"'!" -> 'DY3 Category 4'! | AK1: Will need to modify based on how HHS formats dates; When final data produced, filter measurement period column for unique periods for each TPI
C2: DY4 Category 4 Data Submission | Q2: 5 | R2: =SUM(R10:R1018) -> 5 | S2: =SUM(S10:S1018) -> 0 | W2: Row Insert Limit | AK2: Measure Cutoff: | AM2: 3/31/14
C4: Progress Indicator | AK4: Reporting Period: | AM4: April
C6: Overall Submission Status | E6: =IF(S2=R2,"100% - Complete",TEXT(S2/R2,"0%")&" - Incomplete") -> 0% - Incomplete | Q6: =CELL("address",Q8)&":"&CELL("address",Q313) -> $Q$8:$Q$313
Q7: Row Height
C8: Please enter the name and contact information of the primary contact regarding information reported in this template: | Q8: 15.75
Q9: 15 | R9: Status Count | S9: Status Achieved
C10: Contact Name: | Q10: 15 | R10: 1 | S10: =IF(LEN(TRIM(E10))=0,0,1) -> 0
C11: Email Address: | Q11: 15 | R11: 1 | S11: =IF(LEN(TRIM(E11))=0,0,1) -> 0
C12: Phone Number: | Q12: 15 | R12: 1 | S12: 0
Q13: 15 | U13: Hide Table
C14: Please select the provider's RHP and TPI reported in this template below: | Q14: 15.75 | U14: RD # | V14: Yes/No Reporting Status | W14: Unhide Row? | X14: RDs | Y14: RD Eligible? | AC14: RHP | AD14: TPI | AE14: RD | AF14: 0 | AG14: Validation List 1 | AH14: 0 | AI14: Validation List 2 | AK14: RD's for TPI | AL14: Measurement Period 1 | AM14: Measurement Period 2 | AN14: Eligible?
Q15: 15 | U15: 0 | W15: =IF(ISBLANK(V15),INDEX($Y$15:$Y$21,MATCH($U15,$X$15:$X$21,0)),IF(V15+INDEX($Y$15:$Y$21,MATCH($U15,$X$15:$X$21,0))>1,1,0)) -> 1 | X15: 0 | Y15: 1 | AB15: 1 | AC15: =IF(INDIRECT($AC$1&"D"&$AB15+1)="","",INDIRECT($AC$1&"D"&$AB15+1)) -> 1 | AD15: =IF(AC15="","",IF($E$16=AC15,INDIRECT($AC$1&"E"&$AB15+1),"")) ->  | AE15: =IF(ISBLANK($E$17),"",IF($E$17<>AD15,"",IF(INDIRECT($AC$1&"U"&$AB15+1)="Yes",INDIRECT($AC$1&"I"&$AB15+1),""))) ->  | AF15: =AF14+IF(COUNTIF($AC$15:AC15,AC15)>1,0,1) -> 1 | AG15: =IF(ROWS(AF$15:AF15)>MAX(AF:AF),"",INDEX(AC:AC,MATCH(ROWS(AF$15:AF15),AF:AF,0))) -> 1 | AH15: =IF(AD15="",AH14,AH14+IF(COUNTIF($AD$15:AD15,AD15)>1,0,1)) -> 0 | AI15: =IF(ROWS($AH$15:AH15)>MAX(AH:AH),"",INDEX(AD:AD,MATCH(ROWS($AH$15:AH15),AH:AH,0))) ->  | AK15: 1 | AL15: =TEXT(INDEX('DY3 Category 4'!V:V,MATCH(TPI&"_"&AK15,'DY3 Category 4'!B:B,0)),"mm/dd/yyyy")&" to "&TEXT(INDEX('DY3 Category 4'!W:W,MATCH(TPI&"_"&AK15,'DY3 Category 4'!B:B,0)),"mm/dd/yyyy") ->  | AN15: =IF(ISNA(MATCH(TPI&"_"&AK15,'DY3 Category 4'!B:B,0)),0,IF(INDEX('DY3 Category 4'!U:U,MATCH(TPI&"_"&AK15,'DY3 Category 4'!B:B,0))="Yes",1,0)) -> 0
C16: Region: | Q16: 15 | R16: 1 | S16: =W16*COUNTA(E16) -> 0 | U16: 0 | W16: =IF(ISBLANK(V16),INDEX($Y$15:$Y$21,MATCH($U16,$X$15:$X$21,0)),IF(V16+INDEX($Y$15:$Y$21,MATCH($U16,$X$15:$X$21,0))>1,1,0)) -> 1 | X16: 1 | Y16: =INDEX($AN$15:$AN$20,MATCH($X16,$AK$15:$AK$20,0)) -> 0 | AB16: =AB15+1 -> 2 | AC16: =IF(INDIRECT($AC$1&"D"&$AB16+1)="","",INDIRECT($AC$1&"D"&$AB16+1)) -> 1 | AD16: =IF(AC16="","",IF($E$16=AC16,INDIRECT($AC$1&"E"&$AB16+1),"")) ->  | AE16: =IF(ISBLANK($E$17),"",IF($E$17<>AD16,"",IF(INDIRECT($AC$1&"U"&$AB16+1)="Yes",INDIRECT($AC$1&"I"&$AB16+1),""))) ->  | AF16: =AF15+IF(COUNTIF($AC$15:AC16,AC16)>1,0,1) -> 1 | AG16: =IF(ROWS(AF$15:AF16)>MAX(AF:AF),"",INDEX(AC:AC,MATCH(ROWS(AF$15:AF16),AF:AF,0))) -> 2 | AH16: =IF(AD16="",AH15,AH15+IF(COUNTIF($AD$15:AD16,AD16)>1,0,1)) -> 0 | AI16: =IF(ROWS($AH$15:AH16)>MAX(AH:AH),"",INDEX(AD:AD,MATCH(ROWS($AH$15:AH16),AH:AH,0))) ->  | AK16: 2 | AL16: =TEXT(INDEX('DY3 Category 4'!V:V,MATCH(TPI&"_"&AK16,'DY3 Category 4'!B:B,0)),"mm/dd/yyyy")&" to "&TEXT(INDEX('DY3 Category 4'!W:W,MATCH(TPI&"_"&AK16,'DY3 Category 4'!B:B,0)),"mm/dd/yyyy") ->  | AN16: =IF(ISNA(MATCH(TPI&"_"&AK16,'DY3 Category 4'!B:B,0)),0,IF(INDEX('DY3 Category 4'!U:U,MATCH(TPI&"_"&AK16,'DY3 Category 4'!B:B,0))="Yes",1,0)) -> 0
C17: TPI: | Q17: 15 | R17: 1 | S17: =W17*COUNTA(E17) -> 0 | U17: 0 | W17: 1 | X17: 2 | Y17: =INDEX($AN$15:$AN$20,MATCH($X17,$AK$15:$AK$20,0)) -> 0 | AB17: =AB16+1 -> 3 | AC17: 1 | AF17: =AF16+IF(COUNTIF($AC$15:AC17,AC17)>1,0,1) -> 1 | AG17: =IF(ROWS(AF$15:AF17)>MAX(AF:AF),"",INDEX(AC:AC,MATCH(ROWS(AF$15:AF17),AF:AF,0))) -> 3 | AH17: =IF(AD17="",AH16,AH16+IF(COUNTIF($AD$15:AD17,AD17)>1,0,1)) -> 0 | AI17: =IF(ROWS($AH$15:AH17)>MAX(AH:AH),"",INDEX(AD:AD,MATCH(ROWS($AH$15:AH17),AH:AH,0))) ->  | AK17: 3 | AL17: =TEXT(INDEX('DY3 Category 4'!V:V,MATCH(TPI&"_"&AK17,'DY3 Category 4'!B:B,0)),"mm/dd/yyyy")&" to "&TEXT(INDEX('DY3 Category 4'!W:W,MATCH(TPI&"_"&AK17,'DY3 Category 4'!B:B,0)),"mm/dd/yyyy") ->  | AN17: =IF(ISNA(MATCH(TPI&"_"&AK17,'DY3 Category 4'!B:B,0)),0,IF(INDEX('DY3 Category 4'!U:U,MATCH(TPI&"_"&AK17,'DY3 Category 4'!B:B,0))="Yes",1,0)) -> 0
C18: Provider Name: | E18: =IFERROR(INDEX('DY3 Category 4'!$F:$F,MATCH('DY4 Cat 4 Template'!E16&"_"&'DY4 Cat 4 Template'!E17,'DY3 Category 4'!$C:$C,0)),"") ->  | Q18: 15 | U18: 0 | W18: 1 | X18: 3 | Y18: 0 | AB18: 4 | AC18: 1 | AF18: =AF17+IF(COUNTIF($AC$15:AC18,AC18)>1,0,1) -> 1 | AG18: =IF(ROWS(AF$15:AF18)>MAX(AF:AF),"",INDEX(AC:AC,MATCH(ROWS(AF$15:AF18),AF:AF,0))) -> 4 | AH18: =IF(AD18="",AH17,AH17+IF(COUNTIF($AD$15:AD18,AD18)>1,0,1)) -> 0 | AI18: =IF(ROWS($AH$15:AH18)>MAX(AH:AH),"",INDEX(AD:AD,MATCH(ROWS($AH$15:AH18),AH:AH,0))) ->  | AK18: 4 | AL18: =TEXT(INDEX('DY3 Category 4'!V:V,MATCH(TPI&"_"&AK18,'DY3 Category 4'!B:B,0)),"mm/dd/yyyy")&" to "&TEXT(INDEX('DY3 Category 4'!W:W,MATCH(TPI&"_"&AK18,'DY3 Category 4'!B:B,0)),"mm/dd/yyyy") ->  | AM18: =TEXT(INDEX('DY3 Category 4'!X:X,MATCH(TPI&"_"&AK18,'DY3 Category 4'!B:B,0)),"mm/dd/yyyy")&" to "&TEXT(INDEX('DY3 Category 4'!Y:Y,MATCH(TPI&"_"&AK18,'DY3 Category 4'!B:B,0)),"mm/dd/yyyy") ->  | AN18: =IF(ISNA(MATCH(TPI&"_"&AK18,'DY3 Category 4'!B:B,0)),0,IF(INDEX('DY3 Category 4'!U:U,MATCH(TPI&"_"&AK18,'DY3 Category 4'!B:B,0))="Yes",1,0)) -> 0
Q19: 15 | U19: 0 | W19: 1 | X19: 4 | Y19: 0 | AB19: 5 | AC19: 1 | AF19: =AF18+IF(COUNTIF($AC$15:AC19,AC19)>1,0,1) -> 1 | AG19: =IF(ROWS(AF$15:AF19)>MAX(AF:AF),"",INDEX(AC:AC,MATCH(ROWS(AF$15:AF19),AF:AF,0))) -> 5 | AH19: =IF(AD19="",AH18,AH18+IF(COUNTIF($AD$15:AD19,AD19)>1,0,1)) -> 0 | AI19: =IF(ROWS($AH$15:AH19)>MAX(AH:AH),"",INDEX(AD:AD,MATCH(ROWS($AH$15:AH19),AH:AH,0))) ->  | AK19: 5 | AL19: =TEXT(INDEX('DY3 Category 4'!V:V,MATCH(TPI&"_"&AK19,'DY3 Category 4'!B:B,0)),"mm/dd/yyyy")&" to "&TEXT(INDEX('DY3 Category 4'!W:W,MATCH(TPI&"_"&AK19,'DY3 Category 4'!B:B,0)),"mm/dd/yyyy") ->  | AN19: =IF(ISNA(MATCH(TPI&"_"&AK19,'DY3 Category 4'!B:B,0)),0,IF(INDEX('DY3 Category 4'!U:U,MATCH(TPI&"_"&AK19,'DY3 Category 4'!B:B,0))="Yes",1,0)) -> 0
A20: FALSE | C20: RD1 - Potentially Preventable Admissions | Q20: 15.75 | U20: 1 | W20: 0 | X20: 5 | Y20: 0 | AB20: 6 | AC20: 1 | AF20: =AF19+IF(COUNTIF($AC$15:AC20,AC20)>1,0,1) -> 1 | AG20: =IF(ROWS(AF$15:AF20)>MAX(AF:AF),"",INDEX(AC:AC,MATCH(ROWS(AF$15:AF20),AF:AF,0))) -> 6 | AH20: =IF(AD20="",AH19,AH19+IF(COUNTIF($AD$15:AD20,AD20)>1,0,1)) -> 0 | AI20: =IF(ROWS($AH$15:AH20)>MAX(AH:AH),"",INDEX(AD:AD,MATCH(ROWS($AH$15:AH20),AH:AH,0))) ->  | AK20: 6 | AL20: =TEXT(INDEX('DY3 Category 4'!V:V,MATCH(TPI&"_"&AK20,'DY3 Category 4'!B:B,0)),"mm/dd/yyyy")&" to "&TEXT(INDEX('DY3 Category 4'!W:W,MATCH(TPI&"_"&AK20,'DY3 Category 4'!B:B,0)),"mm/dd/yyyy") ->  | AN20: =IF(ISNA(MATCH(TPI&"_"&AK20,'DY3 Category 4'!B:B,0)),0,IF(INDEX('DY3 Category 4'!U:U,MATCH(TPI&"_"&AK20,'DY3 Category 4'!B:B,0))="Yes",1,0)) -> 0
Q21: 15 | U21: 1 | W21: 0 | X21: 6 | Y21: 0 | AB21: 7 | AC21: 1 | AF21: =AF20+IF(COUNTIF($AC$15:AC21,AC21)>1,0,1) -> 1 | AG21: =IF(ROWS(AF$15:AF21)>MAX(AF:AF),"",INDEX(AC:AC,MATCH(ROWS(AF$15:AF21),AF:AF,0))) -> 7 | AH21: =IF(AD21="",AH20,AH20+IF(COUNTIF($AD$15:AD21,AD21)>1,0,1)) -> 0 | AI21: =IF(ROWS($AH$15:AH21)>MAX(AH:AH),"",INDEX(AD:AD,MATCH(ROWS($AH$15:AH21),AH:AH,0))) -> 
A22: FALSE | C22: ="Will you be reporting on RD"&$U22&" in "&$AM$4&"?" -> Will you be reporting on RD1 in April? | L22: ="RD"&U22&" Reporting Status:" -> RD1 Reporting Status: | Q22: 15 | R22: =W22 -> 0 | S22: =W22*COUNTA(F22) -> 0 | U22: 1 | W22: 0 | AB22: 8 | AC22: 1 | AF22: =AF21+IF(COUNTIF($AC$15:AC22,AC22)>1,0,1) -> 1 | AG22: =IF(ROWS(AF$15:AF22)>MAX(AF:AF),"",INDEX(AC:AC,MATCH(ROWS(AF$15:AF22),AF:AF,0))) -> 8 | AH22: =IF(AD22="",AH21,AH21+IF(COUNTIF($AD$15:AD22,AD22)>1,0,1)) -> 0 | AI22: =IF(ROWS($AH$15:AH22)>MAX(AH:AH),"",INDEX(AD:AD,MATCH(ROWS($AH$15:AH22),AH:AH,0))) -> 
L23: =IF(M23=1,"100% - Complete",TEXT(M23,"0%")&" - Incomplete") ->  | M23: =SUMIF(U:U,U23,S:S)/SUMIF(U:U,U23,R:R) ->  | Q23: 15 | U23: 1 | W23: 0 | AB23: 9 | AC23: 1 | AF23: =AF22+IF(COUNTIF($AC$15:AC23,AC23)>1,0,1) -> 1 | AG23: =IF(ROWS(AF$15:AF23)>MAX(AF:AF),"",INDEX(AC:AC,MATCH(ROWS(AF$15:AF23),AF:AF,0))) -> 9 | AH23: =IF(AD23="",AH22,AH22+IF(COUNTIF($AD$15:AD23,AD23)>1,0,1)) -> 0 | AI23: =IF(ROWS($AH$15:AH23)>MAX(AH:AH),"",INDEX(AD:AD,MATCH(ROWS($AH$15:AH23),AH:AH,0))) -> 
A24: =IF(AND(OFFSET(A24,-2,0)=TRUE,OFFSET(A24,-4,0)=TRUE),"WARNING! Domain marked for multiple NMI periods!","") ->  | C24: Provider received Medicaid PPA report for CY2013? | Q24: 36 | R24: =W24 -> 0 | S24: =W24*IF(LEN(TRIM(F24))>0,1,0) -> 0 | U24: 1 | V24: =IF($F$22="Yes",1,0) -> 0 | W24: 0 | AB24: 10 | AC24: 1 | AF24: =AF23+IF(COUNTIF($AC$15:AC24,AC24)>1,0,1) -> 1 | AG24: =IF(ROWS(AF$15:AF24)>MAX(AF:AF),"",INDEX(AC:AC,MATCH(ROWS(AF$15:AF24),AF:AF,0))) -> 10 | AH24: =IF(AD24="",AH23,AH23+IF(COUNTIF($AD$15:AD24,AD24)>1,0,1)) -> 0 | AI24: =IF(ROWS($AH$15:AH24)>MAX(AH:AH),"",INDEX(AD:AD,MATCH(ROWS($AH$15:AH24),AH:AH,0))) -> 
Q25: 15 | U25: 1 | V25: =IF($F$22="Yes",1,0) -> 0 | W25: 0 | AB25: 11 | AC25: 1 | AF25: =AF24+IF(COUNTIF($AC$15:AC25,AC25)>1,0,1) -> 1 | AG25: =IF(ROWS(AF$15:AF25)>MAX(AF:AF),"",INDEX(AC:AC,MATCH(ROWS(AF$15:AF25),AF:AF,0))) -> 11 | AH25: =IF(AD25="",AH24,AH24+IF(COUNTIF($AD$15:AD25,AD25)>1,0,1)) -> 0 | AI25: =IF(ROWS($AH$15:AH25)>MAX(AH:AH),"",INDEX(AD:AD,MATCH(ROWS($AH$15:AH25),AH:AH,0))) -> 
C26: Average/High Volume Providers: 1. Does the currently documented number of PPAs represent an increase or decrease over the last reporting period? What factors have contributed to any increase or decrease? 2. How is this information used to inform any changes to your current processes and procedures? 3. How does this Medicaid only rate compare to PPAs rates for your broader population? | J26: Low Volume Providers (no reports received, or reports contain flag for low volume): 1. Do you track PPA rates for your broader all-payer population? And if so, what trends are observed? 2. If PPAs are zero, is it because of a low Medicaid service volume, or processes/procedures in place that are effectively addressing potentially preventable events amongst all patients served in your facility? 3. Describe any established processes/policies/procedures in place to identify and address PPAs in your facility. | Q26: 92.25 | U26: 1 | V26: =IF($F$22="Yes",1,0) -> 0 | W26: 0 | AB26: 12 | AC26: 1 | AF26: =AF25+IF(COUNTIF($AC$15:AC26,AC26)>1,0,1) -> 1 | AG26: =IF(ROWS(AF$15:AF26)>MAX(AF:AF),"",INDEX(AC:AC,MATCH(ROWS(AF$15:AF26),AF:AF,0))) -> 12 | AH26: =IF(AD26="",AH25,AH25+IF(COUNTIF($AD$15:AD26,AD26)>1,0,1)) -> 0 | AI26: =IF(ROWS($AH$15:AH26)>MAX(AH:AH),"",INDEX(AD:AD,MATCH(ROWS($AH$15:AH26),AH:AH,0))) -> 
Q27: 88.5 | R27: =W27 -> 0 | S27: =W27*IF(LEN(TRIM(C27))>0,1,0) -> 0 | U27: 1 | V27: =IF($F$22="Yes",1,0) -> 0 | W27: 0 | AB27: 13 | AC27: 1 | AF27: =AF26+IF(COUNTIF($AC$15:AC27,AC27)>1,0,1) -> 1 | AG27: =IF(ROWS(AF$15:AF27)>MAX(AF:AF),"",INDEX(AC:AC,MATCH(ROWS(AF$15:AF27),AF:AF,0))) -> 13 | AH27: =IF(AD27="",AH26,AH26+IF(COUNTIF($AD$15:AD27,AD27)>1,0,1)) -> 0 | AI27: =IF(ROWS($AH$15:AH27)>MAX(AH:AH),"",INDEX(AD:AD,MATCH(ROWS($AH$15:AH27),AH:AH,0))) -> 
Q28: 15 | U28: 1 | W28: 0 | AB28: 14 | AC28: 1 | AF28: =AF27+IF(COUNTIF($AC$15:AC28,AC28)>1,0,1) -> 1 | AG28: =IF(ROWS(AF$15:AF28)>MAX(AF:AF),"",INDEX(AC:AC,MATCH(ROWS(AF$15:AF28),AF:AF,0))) -> 14 | AH28: =IF(AD28="",AH27,AH27+IF(COUNTIF($AD$15:AD28,AD28)>1,0,1)) -> 0 | AI28: =IF(ROWS($AH$15:AH28)>MAX(AH:AH),"",INDEX(AD:AD,MATCH(ROWS($AH$15:AH28),AH:AH,0))) -> 
A29: FALSE | C29: RD2 - Potentially Preventable Readmissions | Q29: 15.75 | U29: 2 | W29: 0 | AB29: 15 | AC29: 1 | AF29: =AF28+IF(COUNTIF($AC$15:AC29,AC29)>1,0,1) -> 1 | AG29: =IF(ROWS(AF$15:AF29)>MAX(AF:AF),"",INDEX(AC:AC,MATCH(ROWS(AF$15:AF29),AF:AF,0))) -> 15 | AH29: =IF(AD29="",AH28,AH28+IF(COUNTIF($AD$15:AD29,AD29)>1,0,1)) -> 0 | AI29: =IF(ROWS($AH$15:AH29)>MAX(AH:AH),"",INDEX(AD:AD,MATCH(ROWS($AH$15:AH29),AH:AH,0))) -> 
Q30: 15 | U30: 2 | W30: 0 | AB30: 16 | AC30: 1 | AF30: =AF29+IF(COUNTIF($AC$15:AC30,AC30)>1,0,1) -> 1 | AG30: =IF(ROWS(AF$15:AF30)>MAX(AF:AF),"",INDEX(AC:AC,MATCH(ROWS(AF$15:AF30),AF:AF,0))) -> 16 | AH30: =IF(AD30="",AH29,AH29+IF(COUNTIF($AD$15:AD30,AD30)>1,0,1)) -> 0 | AI30: =IF(ROWS($AH$15:AH30)>MAX(AH:AH),"",INDEX(AD:AD,MATCH(ROWS($AH$15:AH30),AH:AH,0))) -> 
A31: FALSE | C31: ="Will you be reporting on RD"&$U31&" in "&$AM$4&"?" -> Will you be reporting on RD2 in April? | L31: ="RD"&U31&" Reporting Status:" -> RD2 Reporting Status: | Q31: 15 | R31: =W31 -> 0 | S31: =W31*COUNTA(F31) -> 0 | U31: 2 | W31: 0 | AB31: 17 | AC31: 1 | AF31: =AF30+IF(COUNTIF($AC$15:AC31,AC31)>1,0,1) -> 1 | AG31: =IF(ROWS(AF$15:AF31)>MAX(AF:AF),"",INDEX(AC:AC,MATCH(ROWS(AF$15:AF31),AF:AF,0))) -> 17 | AH31: =IF(AD31="",AH30,AH30+IF(COUNTIF($AD$15:AD31,AD31)>1,0,1)) -> 0 | AI31: =IF(ROWS($AH$15:AH31)>MAX(AH:AH),"",INDEX(AD:AD,MATCH(ROWS($AH$15:AH31),AH:AH,0))) -> 
L32: =IF(M32=1,"100% - Complete",TEXT(M32,"0%")&" - Incomplete") ->  | M32: =SUMIF(U:U,U32,S:S)/SUMIF(U:U,U32,R:R) ->  | Q32: 15 | U32: 2 | W32: 0 | AB32: 18 | AC32: 1 | AF32: =AF31+IF(COUNTIF($AC$15:AC32,AC32)>1,0,1) -> 1 | AG32: =IF(ROWS(AF$15:AF32)>MAX(AF:AF),"",INDEX(AC:AC,MATCH(ROWS(AF$15:AF32),AF:AF,0))) -> 18 | AH32: =IF(AD32="",AH31,AH31+IF(COUNTIF($AD$15:AD32,AD32)>1,0,1)) -> 0 | AI32: =IF(ROWS($AH$15:AH32)>MAX(AH:AH),"",INDEX(AD:AD,MATCH(ROWS($AH$15:AH32),AH:AH,0))) -> 
A33: =IF(AND(OFFSET(A33,-2,0)=TRUE,OFFSET(A33,-4,0)=TRUE),"WARNING! Domain marked for multiple NMI periods!","") ->  | C33: Provider received Medicaid PPR report for CY2013? | Q33: 36 | R33: =W33 -> 0 | S33: =W33*IF(LEN(TRIM(F33))>0,1,0) -> 0 | U33: 2 | V33: =IF($F$31="Yes",1,0) -> 0 | W33: 0 | AB33: 19 | AC33: 1 | AF33: =AF32+IF(COUNTIF($AC$15:AC33,AC33)>1,0,1) -> 1 | AG33: =IF(ROWS(AF$15:AF33)>MAX(AF:AF),"",INDEX(AC:AC,MATCH(ROWS(AF$15:AF33),AF:AF,0))) -> 19 | AH33: =IF(AD33="",AH32,AH32+IF(COUNTIF($AD$15:AD33,AD33)>1,0,1)) -> 0 | AI33: =IF(ROWS($AH$15:AH33)>MAX(AH:AH),"",INDEX(AD:AD,MATCH(ROWS($AH$15:AH33),AH:AH,0))) -> 
Q34: 15 | U34: 2 | V34: =IF($F$31="Yes",1,0) -> 0 | W34: 0 | AB34: 20 | AC34: 1 | AF34: =AF33+IF(COUNTIF($AC$15:AC34,AC34)>1,0,1) -> 1 | AG34: =IF(ROWS(AF$15:AF34)>MAX(AF:AF),"",INDEX(AC:AC,MATCH(ROWS(AF$15:AF34),AF:AF,0))) -> 20 | AH34: =IF(AD34="",AH33,AH33+IF(COUNTIF($AD$15:AD34,AD34)>1,0,1)) -> 0 | AI34: =IF(ROWS($AH$15:AH34)>MAX(AH:AH),"",INDEX(AD:AD,MATCH(ROWS($AH$15:AH34),AH:AH,0))) -> 
C35: Average/High Volume Providers: 1. Does the currently documented number of PPRs represent an increase or decrease over the last reporting period? What factors have contributed to any increase or decrease? 2. How is this information used to inform any changes to your current processes and procedures? 3. How does this Medicaid only rate compare to PPRs rates for your broader population? | J35: Low Volume Providers (no reports received, or reports contain flag for low volume): 1. Do you track PPR rates for your broader all-payer population? And if so, what trends are observed? 2. If PPRs are zero, is it because of a low Medicaid service volume, or processes/procedures in place that are effectively addressing potentially preventable events amongst all patients served in your facility? 3. Describe any established processes/policies/procedures in place to identify and address PPRs in your facility. | Q35: 92.25 | U35: 2 | V35: =IF($F$31="Yes",1,0) -> 0 | W35: 0 | AB35: 21 | AC35: 1 | AF35: =AF34+IF(COUNTIF($AC$15:AC35,AC35)>1,0,1) -> 1 | AG35: =IF(ROWS(AF$15:AF35)>MAX(AF:AF),"",INDEX(AC:AC,MATCH(ROWS(AF$15:AF35),AF:AF,0))) ->  | AH35: =IF(AD35="",AH34,AH34+IF(COUNTIF($AD$15:AD35,AD35)>1,0,1)) -> 0 | AI35: =IF(ROWS($AH$15:AH35)>MAX(AH:AH),"",INDEX(AD:AD,MATCH(ROWS($AH$15:AH35),AH:AH,0))) -> 
Q36: 88.5 | R36: =W36 -> 0 | S36: =W36*IF(LEN(TRIM(C36))>0,1,0) -> 0 | U36: 2 | V36: =IF($F$31="Yes",1,0) -> 0 | W36: 0 | AB36: 22 | AC36: 1 | AF36: =AF35+IF(COUNTIF($AC$15:AC36,AC36)>1,0,1) -> 1 | AG36: =IF(ROWS(AF$15:AF36)>MAX(AF:AF),"",INDEX(AC:AC,MATCH(ROWS(AF$15:AF36),AF:AF,0))) ->  | AH36: =IF(AD36="",AH35,AH35+IF(COUNTIF($AD$15:AD36,AD36)>1,0,1)) -> 0 | AI36: =IF(ROWS($AH$15:AH36)>MAX(AH:AH),"",INDEX(AD:AD,MATCH(ROWS($AH$15:AH36),AH:AH,0))) -> 
Q37: 15 | U37: 2 | W37: 0 | AB37: 23 | AC37: 1 | AF37: =AF36+IF(COUNTIF($AC$15:AC37,AC37)>1,0,1) -> 1 | AG37: =IF(ROWS(AF$15:AF37)>MAX(AF:AF),"",INDEX(AC:AC,MATCH(ROWS(AF$15:AF37),AF:AF,0))) ->  | AH37: =IF(AD37="",AH36,AH36+IF(COUNTIF($AD$15:AD37,AD37)>1,0,1)) -> 0 | AI37: =IF(ROWS($AH$15:AH37)>MAX(AH:AH),"",INDEX(AD:AD,MATCH(ROWS($AH$15:AH37),AH:AH,0))) -> 
A38: FALSE | C38: RD3 - Potentially Preventable Complications | Q38: 15.75 | U38: 3 | W38: 0 | AB38: 24 | AC38: 1 | AF38: =AF37+IF(COUNTIF($AC$15:AC38,AC38)>1,0,1) -> 1 | AG38: =IF(ROWS(AF$15:AF38)>MAX(AF:AF),"",INDEX(AC:AC,MATCH(ROWS(AF$15:AF38),AF:AF,0))) ->  | AH38: =IF(AD38="",AH37,AH37+IF(COUNTIF($AD$15:AD38,AD38)>1,0,1)) -> 0 | AI38: =IF(ROWS($AH$15:AH38)>MAX(AH:AH),"",INDEX(AD:AD,MATCH(ROWS($AH$15:AH38),AH:AH,0))) -> 
Q39: 15 | U39: 3 | W39: 0 | AB39: 25 | AC39: 1 | AF39: =AF38+IF(COUNTIF($AC$15:AC39,AC39)>1,0,1) -> 1 | AG39: =IF(ROWS(AF$15:AF39)>MAX(AF:AF),"",INDEX(AC:AC,MATCH(ROWS(AF$15:AF39),AF:AF,0))) ->  | AH39: =IF(AD39="",AH38,AH38+IF(COUNTIF($AD$15:AD39,AD39)>1,0,1)) -> 0 | AI39: =IF(ROWS($AH$15:AH39)>MAX(AH:AH),"",INDEX(AD:AD,MATCH(ROWS($AH$15:AH39),AH:AH,0))) -> 
A40: FALSE | C40: ="Will you be reporting on RD"&$U40&" in "&$AM$4&"?" -> Will you be reporting on RD3 in April? | L40: ="RD"&U40&" Reporting Status:" -> RD3 Reporting Status: | Q40: 15 | R40: =W40 -> 0 | S40: =W40*COUNTA(F40) -> 0 | U40: 3 | W40: 0 | AB40: 26 | AC40: 1 | AF40: =AF39+IF(COUNTIF($AC$15:AC40,AC40)>1,0,1) -> 1 | AG40: =IF(ROWS(AF$15:AF40)>MAX(AF:AF),"",INDEX(AC:AC,MATCH(ROWS(AF$15:AF40),AF:AF,0))) ->  | AH40: =IF(AD40="",AH39,AH39+IF(COUNTIF($AD$15:AD40,AD40)>1,0,1)) -> 0 | AI40: =IF(ROWS($AH$15:AH40)>MAX(AH:AH),"",INDEX(AD:AD,MATCH(ROWS($AH$15:AH40),AH:AH,0))) -> 
L41: =IF(M41=1,"100% - Complete",TEXT(M41,"0%")&" - Incomplete") ->  | M41: =SUMIF(U:U,U41,S:S)/SUMIF(U:U,U41,R:R) ->  | Q41: 15 | U41: 3 | W41: 0 | AB41: 27 | AC41: 1 | AF41: =AF40+IF(COUNTIF($AC$15:AC41,AC41)>1,0,1) -> 1 | AG41: =IF(ROWS(AF$15:AF41)>MAX(AF:AF),"",INDEX(AC:AC,MATCH(ROWS(AF$15:AF41),AF:AF,0))) ->  | AH41: =IF(AD41="",AH40,AH40+IF(COUNTIF($AD$15:AD41,AD41)>1,0,1)) -> 0 | AI41: =IF(ROWS($AH$15:AH41)>MAX(AH:AH),"",INDEX(AD:AD,MATCH(ROWS($AH$15:AH41),AH:AH,0))) -> 
A42: =IF(AND(OFFSET(A42,-2,0)=TRUE,OFFSET(A42,-4,0)=TRUE),"WARNING! Domain marked for multiple NMI periods!","") ->  | C42: Provider received Medicaid PPC report for CY2013? | Q42: 36 | R42: =W42 -> 0 | S42: =W42*IF(LEN(TRIM(F42))>0,1,0) -> 0 | U42: 3 | V42: =IF($F$40="Yes",1,0) -> 0 | W42: 0 | AB42: 28 | AC42: 1 | AF42: =AF41+IF(COUNTIF($AC$15:AC42,AC42)>1,0,1) -> 1 | AG42: =IF(ROWS(AF$15:AF42)>MAX(AF:AF),"",INDEX(AC:AC,MATCH(ROWS(AF$15:AF42),AF:AF,0))) ->  | AH42: =IF(AD42="",AH41,AH41+IF(COUNTIF($AD$15:AD42,AD42)>1,0,1)) -> 0 | AI42: =IF(ROWS($AH$15:AH42)>MAX(AH:AH),"",INDEX(AD:AD,MATCH(ROWS($AH$15:AH42),AH:AH,0))) -> 
Q43: 15 | U43: 3 | V43: =IF($F$40="Yes",1,0) -> 0 | W43: 0 | AB43: 29 | AC43: 1 | AF43: =AF42+IF(COUNTIF($AC$15:AC43,AC43)>1,0,1) -> 1 | AG43: =IF(ROWS(AF$15:AF43)>MAX(AF:AF),"",INDEX(AC:AC,MATCH(ROWS(AF$15:AF43),AF:AF,0))) ->  | AH43: =IF(AD43="",AH42,AH42+IF(COUNTIF($AD$15:AD43,AD43)>1,0,1)) -> 0 | AI43: =IF(ROWS($AH$15:AH43)>MAX(AH:AH),"",INDEX(AD:AD,MATCH(ROWS($AH$15:AH43),AH:AH,0))) -> 
C44: Average/High Volume Providers: 1. How is this information used to inform any changes to your current processes and procedures? 2. How does this Medicaid only rate compare to any recent data on medical/surgical complication rates for your broader population? | J44: Low Volume Providers (no reports received, or reports contain flag for low volume): 1. Do you track medical/surgical complication rates for your broader all-payer population? And if so, what trends are observed? 2. If PPCs are zero, is it because of a low Medicaid service volume, or processes/procedures in place that are effectively addressing potentially preventable events amongst all patients served in your facility? 3. Describe any established processes/policies/procedures in place to identify and address PPCs in your facility. | Q44: 92.25 | U44: 3 | V44: =IF($F$40="Yes",1,0) -> 0 | W44: 0 | AB44: 30 | AC44: 1 | AF44: =AF43+IF(COUNTIF($AC$15:AC44,AC44)>1,0,1) -> 1 | AG44: =IF(ROWS(AF$15:AF44)>MAX(AF:AF),"",INDEX(AC:AC,MATCH(ROWS(AF$15:AF44),AF:AF,0))) ->  | AH44: =IF(AD44="",AH43,AH43+IF(COUNTIF($AD$15:AD44,AD44)>1,0,1)) -> 0 | AI44: =IF(ROWS($AH$15:AH44)>MAX(AH:AH),"",INDEX(AD:AD,MATCH(ROWS($AH$15:AH44),AH:AH,0))) -> 
Q45: 88.5 | R45: =W45 -> 0 | S45: =W45*IF(LEN(TRIM(C45))>0,1,0) -> 0 | U45: 3 | V45: =IF($F$40="Yes",1,0) -> 0 | W45: 0 | AB45: 31 | AC45: 1 | AF45: =AF44+IF(COUNTIF($AC$15:AC45,AC45)>1,0,1) -> 1 | AG45: =IF(ROWS(AF$15:AF45)>MAX(AF:AF),"",INDEX(AC:AC,MATCH(ROWS(AF$15:AF45),AF:AF,0))) ->  | AH45: =IF(AD45="",AH44,AH44+IF(COUNTIF($AD$15:AD45,AD45)>1,0,1)) -> 0 | AI45: =IF(ROWS($AH$15:AH45)>MAX(AH:AH),"",INDEX(AD:AD,MATCH(ROWS($AH$15:AH45),AH:AH,0))) -> 
Q46: 15 | U46: 3 | V46: =IF($F$40="Yes",1,0) -> 0 | W46: 0 | AB46: 32 | AC46: 1 | AF46: =AF45+IF(COUNTIF($AC$15:AC46,AC46)>1,0,1) -> 1 | AG46: =IF(ROWS(AF$15:AF46)>MAX(AF:AF),"",INDEX(AC:AC,MATCH(ROWS(AF$15:AF46),AF:AF,0))) ->  | AH46: =IF(AD46="",AH45,AH45+IF(COUNTIF($AD$15:AD46,AD46)>1,0,1)) -> 0 | AI46: =IF(ROWS($AH$15:AH46)>MAX(AH:AH),"",INDEX(AD:AD,MATCH(ROWS($AH$15:AH46),AH:AH,0))) -> 
C47: RD 1 - 3 Population Service Breakdown | Q47: 15.75 | V47: =IF(OR($F$40="Yes",$F$31="Yes",$F$22="Yes"),1,0) -> 0 | W47: =V47 -> 0 | AB47: 33 | AC47: 1 | AF47: =AF46+IF(COUNTIF($AC$15:AC47,AC47)>1,0,1) -> 1 | AG47: =IF(ROWS(AF$15:AF47)>MAX(AF:AF),"",INDEX(AC:AC,MATCH(ROWS(AF$15:AF47),AF:AF,0))) ->  | AH47: =IF(AD47="",AH46,AH46+IF(COUNTIF($AD$15:AD47,AD47)>1,0,1)) -> 0 | AI47: =IF(ROWS($AH$15:AH47)>MAX(AH:AH),"",INDEX(AD:AD,MATCH(ROWS($AH$15:AH47),AH:AH,0))) -> 
O48: Question Language: | Q48: 15 | V48: =IF(OR($F$40="Yes",$F$31="Yes",$F$22="Yes"),1,0) -> 0 | W48: =V48 -> 0 | AB48: 34 | AC48: 1 | AF48: =AF47+IF(COUNTIF($AC$15:AC48,AC48)>1,0,1) -> 1 | AG48: =IF(ROWS(AF$15:AF48)>MAX(AF:AF),"",INDEX(AC:AC,MATCH(ROWS(AF$15:AF48),AF:AF,0))) ->  | AH48: =IF(AD48="",AH47,AH47+IF(COUNTIF($AD$15:AD48,AD48)>1,0,1)) -> 0 | AI48: =IF(ROWS($AH$15:AH48)>MAX(AH:AH),"",INDEX(AD:AD,MATCH(ROWS($AH$15:AH48),AH:AH,0))) -> 
C49: =O49 -> 1. What portion of your facilities service volume represented in these Medicaid only PPC rates? What is your estimated breakdown of Medicaid, Medicare, Uninsured, and Indigent served at this facility? 2. Are you a rural or certified Critical Access Hospital? | O49: ="1. What portion of your facilities service volume represented in these Medicaid only "&O50&" rates? What is your estimated breakdown of Medicaid, Medicare, Uninsured, and Indigent served at this facility? 2. Are you a rural or certified Critical Access Hospital?" -> 1. What portion of your facilities service volume represented in these Medicaid only PPC rates? What is your estimated breakdown of Medicaid, Medicare, Uninsured, and Indigent served at this facility? 2. Are you a rural or certified Critical Access Hospital? | Q49: 45 | V49: 0 | W49: 0 | AB49: 35 | AC49: 1 | AF49: =AF48+IF(COUNTIF($AC$15:AC49,AC49)>1,0,1) -> 1 | AG49: =IF(ROWS(AF$15:AF49)>MAX(AF:AF),"",INDEX(AC:AC,MATCH(ROWS(AF$15:AF49),AF:AF,0))) ->  | AH49: =IF(AD49="",AH48,AH48+IF(COUNTIF($AD$15:AD49,AD49)>1,0,1)) -> 0 | AI49: =IF(ROWS($AH$15:AH49)>MAX(AH:AH),"",INDEX(AD:AD,MATCH(ROWS($AH$15:AH49),AH:AH,0))) -> 
O50: =IF(AND($F$22="Yes",$F$31="Yes",$F$40="Yes"),"PPA/PPR/PPC",IF(AND($F$22="Yes",$F$31="Yes"),"PPA/PPR",IF(AND($F$22="Yes",$F$40="Yes"),"PPA/PPC",IF(AND($F$31="Yes",$F$40="Yes"),"PPR/PPC",IF($F$22="Yes","PPA",IF($F$31="Yes","PPR","PPC")))))) -> PPC | Q50: 60 | R50: =W50 -> 0 | S50: =W50*IF(LEN(TRIM(C50))>0,1,0) -> 0 | V50: 0 | W50: 0 | AB50: 36 | AC50: 1 | AF50: =AF49+IF(COUNTIF($AC$15:AC50,AC50)>1,0,1) -> 1 | AG50: =IF(ROWS(AF$15:AF50)>MAX(AF:AF),"",INDEX(AC:AC,MATCH(ROWS(AF$15:AF50),AF:AF,0))) ->  | AH50: =IF(AD50="",AH49,AH49+IF(COUNTIF($AD$15:AD50,AD50)>1,0,1)) -> 0 | AI50: =IF(ROWS($AH$15:AH50)>MAX(AH:AH),"",INDEX(AD:AD,MATCH(ROWS($AH$15:AH50),AH:AH,0))) -> 
Q51: 15 | U51: 4 | W51: 0 | AB51: 37 | AC51: 1 | AF51: =AF50+IF(COUNTIF($AC$15:AC51,AC51)>1,0,1) -> 1 | AG51: =IF(ROWS(AF$15:AF51)>MAX(AF:AF),"",INDEX(AC:AC,MATCH(ROWS(AF$15:AF51),AF:AF,0))) ->  | AH51: =IF(AD51="",AH50,AH50+IF(COUNTIF($AD$15:AD51,AD51)>1,0,1)) -> 0 | AI51: =IF(ROWS($AH$15:AH51)>MAX(AH:AH),"",INDEX(AD:AD,MATCH(ROWS($AH$15:AH51),AH:AH,0))) -> 
A52: FALSE | C52: RD4 - Patient-Centered Healthcare | Q52: 15.75 | U52: 4 | W52: 0 | AB52: 38 | AC52: 1 | AF52: =AF51+IF(COUNTIF($AC$15:AC52,AC52)>1,0,1) -> 1 | AG52: =IF(ROWS(AF$15:AF52)>MAX(AF:AF),"",INDEX(AC:AC,MATCH(ROWS(AF$15:AF52),AF:AF,0))) ->  | AH52: =IF(AD52="",AH51,AH51+IF(COUNTIF($AD$15:AD52,AD52)>1,0,1)) -> 0 | AI52: =IF(ROWS($AH$15:AH52)>MAX(AH:AH),"",INDEX(AD:AD,MATCH(ROWS($AH$15:AH52),AH:AH,0))) -> 
Q53: 15 | U53: 4 | W53: 0 | AB53: 39 | AC53: 1 | AF53: =AF52+IF(COUNTIF($AC$15:AC53,AC53)>1,0,1) -> 1 | AG53: =IF(ROWS(AF$15:AF53)>MAX(AF:AF),"",INDEX(AC:AC,MATCH(ROWS(AF$15:AF53),AF:AF,0))) ->  | AH53: =IF(AD53="",AH52,AH52+IF(COUNTIF($AD$15:AD53,AD53)>1,0,1)) -> 0 | AI53: =IF(ROWS($AH$15:AH53)>MAX(AH:AH),"",INDEX(AD:AD,MATCH(ROWS($AH$15:AH53),AH:AH,0))) -> 
A54: FALSE | C54: ="Will you be reporting on RD"&$U54&" in "&$AM$4&"?" -> Will you be reporting on RD4 in April? | L54: ="RD"&U54&" Reporting Status:" -> RD4 Reporting Status: | Q54: 15 | R54: =W54 -> 0 | S54: =W54*COUNTA(F54) -> 0 | U54: 4 | W54: 0 | AB54: 40 | AC54: 1 | AF54: =AF53+IF(COUNTIF($AC$15:AC54,AC54)>1,0,1) -> 1 | AG54: =IF(ROWS(AF$15:AF54)>MAX(AF:AF),"",INDEX(AC:AC,MATCH(ROWS(AF$15:AF54),AF:AF,0))) ->  | AH54: =IF(AD54="",AH53,AH53+IF(COUNTIF($AD$15:AD54,AD54)>1,0,1)) -> 0 | AI54: =IF(ROWS($AH$15:AH54)>MAX(AH:AH),"",INDEX(AD:AD,MATCH(ROWS($AH$15:AH54),AH:AH,0))) -> 
L55: =IF(M55=1,"100% - Complete",TEXT(M55,"0%")&" - Incomplete") ->  | M55: =SUMIF(U:U,U55,S:S)/SUMIF(U:U,U55,R:R) ->  | Q55: 15 | U55: 4 | W55: 0 | AB55: 41 | AC55: 1 | AF55: =AF54+IF(COUNTIF($AC$15:AC55,AC55)>1,0,1) -> 1 | AG55: =IF(ROWS(AF$15:AF55)>MAX(AF:AF),"",INDEX(AC:AC,MATCH(ROWS(AF$15:AF55),AF:AF,0))) ->  | AH55: =IF(AD55="",AH54,AH54+IF(COUNTIF($AD$15:AD55,AD55)>1,0,1)) -> 0 | AI55: =IF(ROWS($AH$15:AH55)>MAX(AH:AH),"",INDEX(AD:AD,MATCH(ROWS($AH$15:AH55),AH:AH,0))) -> 
A56: =IF(AND(OFFSET(A56,-2,0)=TRUE,OFFSET(A56,-4,0)=TRUE),"WARNING! Domain marked for multiple NMI periods!","") ->  | C56: First Component: Patient Satisfaction | Q56: 15.75 | U56: 4 | V56: =IF($F$54="Yes",1,0) -> 0 | W56: 0 | AB56: 42 | AC56: 1 | AF56: =AF55+IF(COUNTIF($AC$15:AC56,AC56)>1,0,1) -> 1 | AG56: =IF(ROWS(AF$15:AF56)>MAX(AF:AF),"",INDEX(AC:AC,MATCH(ROWS(AF$15:AF56),AF:AF,0))) ->  | AH56: =IF(AD56="",AH55,AH55+IF(COUNTIF($AD$15:AD56,AD56)>1,0,1)) -> 0 | AI56: =IF(ROWS($AH$15:AH56)>MAX(AH:AH),"",INDEX(AD:AD,MATCH(ROWS($AH$15:AH56),AH:AH,0))) -> 
C57: DY4 Measurement Period: | E57: =AL18 ->  | Q57: 15 | U57: 4 | V57: =IF(AND($F$54="Yes",ISERROR(SEARCH("TBD",$AL$18))),1,0) -> 0 | W57: 0 | AB57: 43 | AC57: 1 | AF57: =AF56+IF(COUNTIF($AC$15:AC57,AC57)>1,0,1) -> 1 | AG57: =IF(ROWS(AF$15:AF57)>MAX(AF:AF),"",INDEX(AC:AC,MATCH(ROWS(AF$15:AF57),AF:AF,0))) ->  | AH57: =IF(AD57="",AH56,AH56+IF(COUNTIF($AD$15:AD57,AD57)>1,0,1)) -> 0 | AI57: =IF(ROWS($AH$15:AH57)>MAX(AH:AH),"",INDEX(AD:AD,MATCH(ROWS($AH$15:AH57),AH:AH,0))) -> 
C58: Select Component 1 DY4 Measurement Period: | Q58: 15 | U58: 4 | V58: =IF(AND($F$54="Yes",NOT(ISERROR(SEARCH("TBD",$AL$18)))),1,0) -> 0 | W58: 0 | AB58: 44 | AC58: 1 | AF58: =AF57+IF(COUNTIF($AC$15:AC58,AC58)>1,0,1) -> 1 | AG58: =IF(ROWS(AF$15:AF58)>MAX(AF:AF),"",INDEX(AC:AC,MATCH(ROWS(AF$15:AF58),AF:AF,0))) ->  | AH58: =IF(AD58="",AH57,AH57+IF(COUNTIF($AD$15:AD58,AD58)>1,0,1)) -> 0 | AI58: =IF(ROWS($AH$15:AH58)>MAX(AH:AH),"",INDEX(AD:AD,MATCH(ROWS($AH$15:AH58),AH:AH,0))) -> 
C59: Start: | E59: End: | Q59: 15 | R59: =W59*2 -> 0 | S59: =W59*COUNTA(D59,F59) -> 0 | U59: 4 | V59: =IF(AND($F$54="Yes",NOT(ISERROR(SEARCH("TBD",$AL$18)))),1,0) -> 0 | W59: 0 | AB59: 45 | AC59: 1 | AF59: =AF58+IF(COUNTIF($AC$15:AC59,AC59)>1,0,1) -> 1 | AG59: =IF(ROWS(AF$15:AF59)>MAX(AF:AF),"",INDEX(AC:AC,MATCH(ROWS(AF$15:AF59),AF:AF,0))) ->  | AH59: =IF(AD59="",AH58,AH58+IF(COUNTIF($AD$15:AD59,AD59)>1,0,1)) -> 0 | AI59: =IF(ROWS($AH$15:AH59)>MAX(AH:AH),"",INDEX(AD:AD,MATCH(ROWS($AH$15:AH59),AH:AH,0))) -> 
Q60: 15 | U60: 4 | V60: =IF($F$54="Yes",1,0) -> 0 | W60: 0 | AB60: 46 | AC60: 1 | AF60: =AF59+IF(COUNTIF($AC$15:AC60,AC60)>1,0,1) -> 1 | AG60: =IF(ROWS(AF$15:AF60)>MAX(AF:AF),"",INDEX(AC:AC,MATCH(ROWS(AF$15:AF60),AF:AF,0))) ->  | AH60: =IF(AD60="",AH59,AH59+IF(COUNTIF($AD$15:AD60,AD60)>1,0,1)) -> 0 | AI60: =IF(ROWS($AH$15:AH60)>MAX(AH:AH),"",INDEX(AD:AD,MATCH(ROWS($AH$15:AH60),AH:AH,0))) -> 
C61: HCAHPS Survey | K61: Provider % | Q61: 15 | U61: 4 | V61: 0 | W61: 0 | AB61: 47 | AC61: 1 | AF61: =AF60+IF(COUNTIF($AC$15:AC61,AC61)>1,0,1) -> 1 | AG61: =IF(ROWS(AF$15:AF61)>MAX(AF:AF),"",INDEX(AC:AC,MATCH(ROWS(AF$15:AF61),AF:AF,0))) ->  | AH61: =IF(AD61="",AH60,AH60+IF(COUNTIF($AD$15:AD61,AD61)>1,0,1)) -> 0 | AI61: =IF(ROWS($AH$15:AH61)>MAX(AH:AH),"",INDEX(AD:AD,MATCH(ROWS($AH$15:AH61),AH:AH,0))) -> 
C62: Percent of patients who reported that their doctors "Always" communicated well | Q62: 15 | R62: =W62 -> 0 | S62: =W62*COUNTA(K62) -> 0 | U62: 4 | V62: 0 | W62: 0 | AB62: 48 | AC62: 1 | AF62: =AF61+IF(COUNTIF($AC$15:AC62,AC62)>1,0,1) -> 1 | AG62: =IF(ROWS(AF$15:AF62)>MAX(AF:AF),"",INDEX(AC:AC,MATCH(ROWS(AF$15:AF62),AF:AF,0))) ->  | AH62: =IF(AD62="",AH61,AH61+IF(COUNTIF($AD$15:AD62,AD62)>1,0,1)) -> 0 | AI62: =IF(ROWS($AH$15:AH62)>MAX(AH:AH),"",INDEX(AD:AD,MATCH(ROWS($AH$15:AH62),AH:AH,0))) -> 
C63: Percent of patients who reported that their nurses "Always" communicated well | Q63: 15 | R63: =W63 -> 0 | S63: =W63*COUNTA(K63) -> 0 | U63: 4 | V63: 0 | W63: 0 | AB63: 49 | AC63: 1 | AF63: =AF62+IF(COUNTIF($AC$15:AC63,AC63)>1,0,1) -> 1 | AG63: =IF(ROWS(AF$15:AF63)>MAX(AF:AF),"",INDEX(AC:AC,MATCH(ROWS(AF$15:AF63),AF:AF,0))) ->  | AH63: =IF(AD63="",AH62,AH62+IF(COUNTIF($AD$15:AD63,AD63)>1,0,1)) -> 0 | AI63: =IF(ROWS($AH$15:AH63)>MAX(AH:AH),"",INDEX(AD:AD,MATCH(ROWS($AH$15:AH63),AH:AH,0))) -> 
C64: Percent of patients who reported that their pain was "Always" well controlled | Q64: 15 | R64: 0 | S64: 0 | U64: 4 | V64: 0 | W64: 0 | AB64: 50 | AC64: 1 | AF64: =AF63+IF(COUNTIF($AC$15:AC64,AC64)>1,0,1) -> 1 | AG64: =IF(ROWS(AF$15:AF64)>MAX(AF:AF),"",INDEX(AC:AC,MATCH(ROWS(AF$15:AF64),AF:AF,0))) ->  | AH64: =IF(AD64="",AH63,AH63+IF(COUNTIF($AD$15:AD64,AD64)>1,0,1)) -> 0 | AI64: =IF(ROWS($AH$15:AH64)>MAX(AH:AH),"",INDEX(AD:AD,MATCH(ROWS($AH$15:AH64),AH:AH,0))) -> 
C65: Percent of patients who reported that staff "Always" explained about medicines before giving it to them | Q65: 15 | R65: 0 | S65: 0 | U65: 4 | V65: 0 | W65: 0 | AB65: 51 | AC65: 1 | AF65: =AF64+IF(COUNTIF($AC$15:AC65,AC65)>1,0,1) -> 1 | AG65: =IF(ROWS(AF$15:AF65)>MAX(AF:AF),"",INDEX(AC:AC,MATCH(ROWS(AF$15:AF65),AF:AF,0))) ->  | AH65: =IF(AD65="",AH64,AH64+IF(COUNTIF($AD$15:AD65,AD65)>1,0,1)) -> 0 | AI65: =IF(ROWS($AH$15:AH65)>MAX(AH:AH),"",INDEX(AD:AD,MATCH(ROWS($AH$15:AH65),AH:AH,0))) -> 
C66: Percent of patients who reported that YES, they were given information about what to do during their recovery at home | Q66: 15 | R66: 0 | S66: 0 | U66: 4 | V66: 0 | W66: 0 | AB66: 52 | AC66: 1 | AF66: =AF65+IF(COUNTIF($AC$15:AC66,AC66)>1,0,1) -> 1 | AG66: =IF(ROWS(AF$15:AF66)>MAX(AF:AF),"",INDEX(AC:AC,MATCH(ROWS(AF$15:AF66),AF:AF,0))) ->  | AH66: =IF(AD66="",AH65,AH65+IF(COUNTIF($AD$15:AD66,AD66)>1,0,1)) -> 0 | AI66: =IF(ROWS($AH$15:AH66)>MAX(AH:AH),"",INDEX(AD:AD,MATCH(ROWS($AH$15:AH66),AH:AH,0))) -> 
C67: Percent of patients who reported that their room and bathroom were "Always" clean | Q67: 15 | R67: 0 | S67: 0 | U67: 4 | V67: 0 | W67: 0 | AB67: 53 | AC67: 1 | AF67: =AF66+IF(COUNTIF($AC$15:AC67,AC67)>1,0,1) -> 1 | AG67: =IF(ROWS(AF$15:AF67)>MAX(AF:AF),"",INDEX(AC:AC,MATCH(ROWS(AF$15:AF67),AF:AF,0))) ->  | AH67: =IF(AD67="",AH66,AH66+IF(COUNTIF($AD$15:AD67,AD67)>1,0,1)) -> 0 | AI67: =IF(ROWS($AH$15:AH67)>MAX(AH:AH),"",INDEX(AD:AD,MATCH(ROWS($AH$15:AH67),AH:AH,0))) -> 
C68: Percent of patients who reported that the area around their room was "Always" quiet at night | Q68: 15 | R68: 0 | S68: 0 | U68: 4 | V68: 0 | W68: 0 | AB68: 54 | AC68: 1 | AF68: =AF67+IF(COUNTIF($AC$15:AC68,AC68)>1,0,1) -> 1 | AG68: =IF(ROWS(AF$15:AF68)>MAX(AF:AF),"",INDEX(AC:AC,MATCH(ROWS(AF$15:AF68),AF:AF,0))) ->  | AH68: =IF(AD68="",AH67,AH67+IF(COUNTIF($AD$15:AD68,AD68)>1,0,1)) -> 0 | AI68: =IF(ROWS($AH$15:AH68)>MAX(AH:AH),"",INDEX(AD:AD,MATCH(ROWS($AH$15:AH68),AH:AH,0))) -> 
C69: Percent of patients who gave their hospital a rating of 9 or 10 on a scale from 0 (lowest) to 10 (highest) | Q69: 15 | R69: 0 | S69: 0 | U69: 4 | V69: 0 | W69: 0 | AB69: 55 | AC69: 1 | AF69: =AF68+IF(COUNTIF($AC$15:AC69,AC69)>1,0,1) -> 1 | AG69: =IF(ROWS(AF$15:AF69)>MAX(AF:AF),"",INDEX(AC:AC,MATCH(ROWS(AF$15:AF69),AF:AF,0))) ->  | AH69: =IF(AD69="",AH68,AH68+IF(COUNTIF($AD$15:AD69,AD69)>1,0,1)) -> 0 | AI69: =IF(ROWS($AH$15:AH69)>MAX(AH:AH),"",INDEX(AD:AD,MATCH(ROWS($AH$15:AH69),AH:AH,0))) -> 
C70: Percent of Patients who reported YES, they would definitely recommend the hospital | Q70: 15 | R70: 0 | S70: 0 | U70: 4 | V70: 0 | W70: 0 | AB70: 56 | AC70: 1 | AF70: =AF69+IF(COUNTIF($AC$15:AC70,AC70)>1,0,1) -> 1 | AG70: =IF(ROWS(AF$15:AF70)>MAX(AF:AF),"",INDEX(AC:AC,MATCH(ROWS(AF$15:AF70),AF:AF,0))) ->  | AH70: =IF(AD70="",AH69,AH69+IF(COUNTIF($AD$15:AD70,AD70)>1,0,1)) -> 0 | AI70: =IF(ROWS($AH$15:AH70)>MAX(AH:AH),"",INDEX(AD:AD,MATCH(ROWS($AH$15:AH70),AH:AH,0))) -> 
Q71: 15 | U71: 4 | V71: 0 | W71: 0 | AB71: 57 | AC71: 1 | AF71: =AF70+IF(COUNTIF($AC$15:AC71,AC71)>1,0,1) -> 1 | AG71: =IF(ROWS(AF$15:AF71)>MAX(AF:AF),"",INDEX(AC:AC,MATCH(ROWS(AF$15:AF71),AF:AF,0))) ->  | AH71: =IF(AD71="",AH70,AH70+IF(COUNTIF($AD$15:AD71,AD71)>1,0,1)) -> 0 | AI71: =IF(ROWS($AH$15:AH71)>MAX(AH:AH),"",INDEX(AD:AD,MATCH(ROWS($AH$15:AH71),AH:AH,0))) -> 
C72: Do the HCAHPS results reported in DY4 represent a change over the prior reporting period? What factors have contributed to any increase or decrease? | Q72: 15 | U72: 4 | V72: 0 | W72: 0 | AB72: 58 | AC72: 1 | AF72: =AF71+IF(COUNTIF($AC$15:AC72,AC72)>1,0,1) -> 1 | AG72: =IF(ROWS(AF$15:AF72)>MAX(AF:AF),"",INDEX(AC:AC,MATCH(ROWS(AF$15:AF72),AF:AF,0))) ->  | AH72: =IF(AD72="",AH71,AH71+IF(COUNTIF($AD$15:AD72,AD72)>1,0,1)) -> 0 | AI72: =IF(ROWS($AH$15:AH72)>MAX(AH:AH),"",INDEX(AD:AD,MATCH(ROWS($AH$15:AH72),AH:AH,0))) -> 
Q73: 36 | R73: =W73 -> 0 | S73: =W73*IF(LEN(TRIM(C73))>0,1,0) -> 0 | U73: 4 | V73: 0 | W73: 0 | AB73: 59 | AC73: 1 | AF73: =AF72+IF(COUNTIF($AC$15:AC73,AC73)>1,0,1) -> 1 | AG73: =IF(ROWS(AF$15:AF73)>MAX(AF:AF),"",INDEX(AC:AC,MATCH(ROWS(AF$15:AF73),AF:AF,0))) ->  | AH73: =IF(AD73="",AH72,AH72+IF(COUNTIF($AD$15:AD73,AD73)>1,0,1)) -> 0 | AI73: =IF(ROWS($AH$15:AH73)>MAX(AH:AH),"",INDEX(AD:AD,MATCH(ROWS($AH$15:AH73),AH:AH,0))) -> 
Q74: 15 | U74: 4 | V74: 0 | W74: 0 | AB74: 60 | AC74: 1 | AF74: =AF73+IF(COUNTIF($AC$15:AC74,AC74)>1,0,1) -> 1 | AG74: =IF(ROWS(AF$15:AF74)>MAX(AF:AF),"",INDEX(AC:AC,MATCH(ROWS(AF$15:AF74),AF:AF,0))) ->  | AH74: =IF(AD74="",AH73,AH73+IF(COUNTIF($AD$15:AD74,AD74)>1,0,1)) -> 0 | AI74: =IF(ROWS($AH$15:AH74)>MAX(AH:AH),"",INDEX(AD:AD,MATCH(ROWS($AH$15:AH74),AH:AH,0))) -> 
C75: Second Component: Medication Management | Q75: 15.75 | U75: 4 | V75: 0 | W75: 0 | AB75: 61 | AC75: 1 | AF75: =AF74+IF(COUNTIF($AC$15:AC75,AC75)>1,0,1) -> 1 | AG75: =IF(ROWS(AF$15:AF75)>MAX(AF:AF),"",INDEX(AC:AC,MATCH(ROWS(AF$15:AF75),AF:AF,0))) ->  | AH75: =IF(AD75="",AH74,AH74+IF(COUNTIF($AD$15:AD75,AD75)>1,0,1)) -> 0 | AI75: =IF(ROWS($AH$15:AH75)>MAX(AH:AH),"",INDEX(AD:AD,MATCH(ROWS($AH$15:AH75),AH:AH,0))) -> 
C76: DY4 Measurement Period: | E76: =AM18 ->  | Q76: 15 | U76: 4 | V76: =IF(AND($F$54="Yes",ISERROR(SEARCH("TBD",$AM$18))),1,0) -> 0 | W76: 0 | AB76: 62 | AC76: 1 | AF76: =AF75+IF(COUNTIF($AC$15:AC76,AC76)>1,0,1) -> 1 | AG76: =IF(ROWS(AF$15:AF76)>MAX(AF:AF),"",INDEX(AC:AC,MATCH(ROWS(AF$15:AF76),AF:AF,0))) ->  | AH76: =IF(AD76="",AH75,AH75+IF(COUNTIF($AD$15:AD76,AD76)>1,0,1)) -> 0 | AI76: =IF(ROWS($AH$15:AH76)>MAX(AH:AH),"",INDEX(AD:AD,MATCH(ROWS($AH$15:AH76),AH:AH,0))) -> 
C77: Select Component 1 DY4 Measurement Period: | Q77: 15 | U77: 4 | V77: =IF(AND($F$54="Yes",NOT(ISERROR(SEARCH("TBD",$AM$18)))),1,0) -> 0 | W77: 0 | AB77: 63 | AC77: 1 | AF77: =AF76+IF(COUNTIF($AC$15:AC77,AC77)>1,0,1) -> 1 | AG77: =IF(ROWS(AF$15:AF77)>MAX(AF:AF),"",INDEX(AC:AC,MATCH(ROWS(AF$15:AF77),AF:AF,0))) ->  | AH77: =IF(AD77="",AH76,AH76+IF(COUNTIF($AD$15:AD77,AD77)>1,0,1)) -> 0 | AI77: =IF(ROWS($AH$15:AH77)>MAX(AH:AH),"",INDEX(AD:AD,MATCH(ROWS($AH$15:AH77),AH:AH,0))) -> 
C78: Start: | E78: End: | Q78: 15 | R78: =W78*2 -> 0 | S78: =W78*COUNTA(D78,F78) -> 0 | U78: 4 | V78: =IF(AND($F$54="Yes",NOT(ISERROR(SEARCH("TBD",$AM$18)))),1,0) -> 0 | W78: 0 | AB78: 64 | AC78: 1 | AF78: =AF77+IF(COUNTIF($AC$15:AC78,AC78)>1,0,1) -> 1 | AG78: =IF(ROWS(AF$15:AF78)>MAX(AF:AF),"",INDEX(AC:AC,MATCH(ROWS(AF$15:AF78),AF:AF,0))) ->  | AH78: =IF(AD78="",AH77,AH77+IF(COUNTIF($AD$15:AD78,AD78)>1,0,1)) -> 0 | AI78: =IF(ROWS($AH$15:AH78)>MAX(AH:AH),"",INDEX(AD:AD,MATCH(ROWS($AH$15:AH78),AH:AH,0))) -> 
Q79: 15 | U79: 4 | V79: =IF($F$54="Yes",1,0) -> 0 | W79: 0 | AB79: 65 | AC79: 1 | AF79: =AF78+IF(COUNTIF($AC$15:AC79,AC79)>1,0,1) -> 1 | AG79: =IF(ROWS(AF$15:AF79)>MAX(AF:AF),"",INDEX(AC:AC,MATCH(ROWS(AF$15:AF79),AF:AF,0))) ->  | AH79: =IF(AD79="",AH78,AH78+IF(COUNTIF($AD$15:AD79,AD79)>1,0,1)) -> 0 | AI79: =IF(ROWS($AH$15:AH79)>MAX(AH:AH),"",INDEX(AD:AD,MATCH(ROWS($AH$15:AH79),AH:AH,0))) -> 
C80: Are you reporting in compliance with NQF 0646? | Q80: 15 | R80: =W80 -> 0 | S80: =W80*COUNTA(G80) -> 0 | U80: 4 | V80: 0 | W80: 0 | AB80: 66 | AC80: =IF(INDIRECT($AC$1&"D"&$AB80+1)="","",INDIRECT($AC$1&"D"&$AB80+1)) -> 1 | AD80: =IF(AC80="","",IF($E$16=AC80,INDIRECT($AC$1&"E"&$AB80+1),"")) ->  | AE80: =IF(ISBLANK($E$17),"",IF($E$17<>AD80,"",IF(INDIRECT($AC$1&"U"&$AB80+1)="Yes",INDIRECT($AC$1&"I"&$AB80+1),""))) ->  | AF80: =AF79+IF(COUNTIF($AC$15:AC80,AC80)>1,0,1) -> 1 | AG80: =IF(ROWS(AF$15:AF80)>MAX(AF:AF),"",INDEX(AC:AC,MATCH(ROWS(AF$15:AF80),AF:AF,0))) ->  | AH80: =IF(AD80="",AH79,AH79+IF(COUNTIF($AD$15:AD80,AD80)>1,0,1)) -> 0 | AI80: =IF(ROWS($AH$15:AH80)>MAX(AH:AH),"",INDEX(AD:AD,MATCH(ROWS($AH$15:AH80),AH:AH,0))) -> 
Q81: 15 | U81: 4 | V81: 0 | W81: 0 | AB81: =AB80+1 -> 67 | AC81: 1 | AF81: =AF80+IF(COUNTIF($AC$15:AC81,AC81)>1,0,1) -> 1 | AG81: =IF(ROWS(AF$15:AF81)>MAX(AF:AF),"",INDEX(AC:AC,MATCH(ROWS(AF$15:AF81),AF:AF,0))) ->  | AH81: =IF(AD81="",AH80,AH80+IF(COUNTIF($AD$15:AD81,AD81)>1,0,1)) -> 0 | AI81: =IF(ROWS($AH$15:AH81)>MAX(AH:AH),"",INDEX(AD:AD,MATCH(ROWS($AH$15:AH81),AH:AH,0))) -> 
C82: =IF(G80="No","","Numerator: Patients or their caregiver(s) who received a reconciled medication list at the time of discharge including medication specifications outlined in NQF 0646:") -> Numerator: Patients or their caregiver(s) who received a reconciled medication list at the time of discharge including medication specifications outlined in NQF 0646: | Q82: 60 | R82: =W82 -> 0 | S82: =W82*COUNTA(G82) -> 0 | U82: 4 | V82: 0 | W82: 0 | AB82: 68 | AC82: 1 | AF82: =AF81+IF(COUNTIF($AC$15:AC82,AC82)>1,0,1) -> 1 | AG82: =IF(ROWS(AF$15:AF82)>MAX(AF:AF),"",INDEX(AC:AC,MATCH(ROWS(AF$15:AF82),AF:AF,0))) ->  | AH82: =IF(AD82="",AH81,AH81+IF(COUNTIF($AD$15:AD82,AD82)>1,0,1)) -> 0 | AI82: =IF(ROWS($AH$15:AH82)>MAX(AH:AH),"",INDEX(AD:AD,MATCH(ROWS($AH$15:AH82),AH:AH,0))) -> 
C83: =IF(G80="No","","Denominator: All patients, regardless of age, discharged from an inpatient facility (eg, hospital inpatient or observation, skilled nursing facility, or rehabilitation facility) to home/self care or any other site of care.") -> Denominator: All patients, regardless of age, discharged from an inpatient facility (eg, hospital inpatient or observation, skilled nursing facility, or rehabilitation facility) to home/self care or any other site of care. | Q83: 60 | R83: =W83 -> 0 | S83: =W83*COUNTA(G83) -> 0 | U83: 4 | V83: 0 | W83: 0 | AB83: 69 | AC83: 1 | AF83: =AF82+IF(COUNTIF($AC$15:AC83,AC83)>1,0,1) -> 1 | AG83: =IF(ROWS(AF$15:AF83)>MAX(AF:AF),"",INDEX(AC:AC,MATCH(ROWS(AF$15:AF83),AF:AF,0))) ->  | AH83: =IF(AD83="",AH82,AH82+IF(COUNTIF($AD$15:AD83,AD83)>1,0,1)) -> 0 | AI83: =IF(ROWS($AH$15:AH83)>MAX(AH:AH),"",INDEX(AD:AD,MATCH(ROWS($AH$15:AH83),AH:AH,0))) -> 
C84: Provider Rate: | G84: =IFERROR(G82/G83,"") ->  | Q84: 15 | U84: 4 | V84: 0 | W84: 0 | AB84: 70 | AC84: 1 | AF84: =AF83+IF(COUNTIF($AC$15:AC84,AC84)>1,0,1) -> 1 | AG84: =IF(ROWS(AF$15:AF84)>MAX(AF:AF),"",INDEX(AC:AC,MATCH(ROWS(AF$15:AF84),AF:AF,0))) ->  | AH84: =IF(AD84="",AH83,AH83+IF(COUNTIF($AD$15:AD84,AD84)>1,0,1)) -> 0 | AI84: =IF(ROWS($AH$15:AH84)>MAX(AH:AH),"",INDEX(AD:AD,MATCH(ROWS($AH$15:AH84),AH:AH,0))) -> 
Q85: 15 | U85: 4 | V85: =IF(AND($F$54="Yes",$G$80="No"),1,0) -> 0 | W85: 0 | AB85: 71 | AC85: 1 | AF85: =AF84+IF(COUNTIF($AC$15:AC85,AC85)>1,0,1) -> 1 | AG85: =IF(ROWS(AF$15:AF85)>MAX(AF:AF),"",INDEX(AC:AC,MATCH(ROWS(AF$15:AF85),AF:AF,0))) ->  | AH85: =IF(AD85="",AH84,AH84+IF(COUNTIF($AD$15:AD85,AD85)>1,0,1)) -> 0 | AI85: =IF(ROWS($AH$15:AH85)>MAX(AH:AH),"",INDEX(AD:AD,MATCH(ROWS($AH$15:AH85),AH:AH,0))) -> 
C86: For providers not reporting NQF 0646 to specification, please describe the following: 1. What the quantitative measurement represents 2. Your facilities current comprehensive reconciliation process, and why you have opted to use this process 3. What information you have to show that your current medication reconciliation process is effective. | Q86: 66 | U86: 4 | V86: =IF(AND($F$54="Yes",$G$80="No"),1,0) -> 0 | W86: 0 | AB86: 72 | AC86: 1 | AF86: =AF85+IF(COUNTIF($AC$15:AC86,AC86)>1,0,1) -> 1 | AG86: =IF(ROWS(AF$15:AF86)>MAX(AF:AF),"",INDEX(AC:AC,MATCH(ROWS(AF$15:AF86),AF:AF,0))) ->  | AH86: =IF(AD86="",AH85,AH85+IF(COUNTIF($AD$15:AD86,AD86)>1,0,1)) -> 0 | AI86: =IF(ROWS($AH$15:AH86)>MAX(AH:AH),"",INDEX(AD:AD,MATCH(ROWS($AH$15:AH86),AH:AH,0))) -> 
Q87: 60 | R87: =W87 -> 0 | S87: =W87*IF(LEN(TRIM(C87))>0,1,0) -> 0 | U87: 4 | V87: 0 | W87: 0 | AB87: 73 | AC87: 1 | AF87: =AF86+IF(COUNTIF($AC$15:AC87,AC87)>1,0,1) -> 1 | AG87: =IF(ROWS(AF$15:AF87)>MAX(AF:AF),"",INDEX(AC:AC,MATCH(ROWS(AF$15:AF87),AF:AF,0))) ->  | AH87: =IF(AD87="",AH86,AH86+IF(COUNTIF($AD$15:AD87,AD87)>1,0,1)) -> 0 | AI87: =IF(ROWS($AH$15:AH87)>MAX(AH:AH),"",INDEX(AD:AD,MATCH(ROWS($AH$15:AH87),AH:AH,0))) -> 
Q88: 15 | U88: 4 | V88: =IF($F$54="Yes",1,0) -> 0 | W88: 0 | AB88: 74 | AC88: 1 | AF88: =AF87+IF(COUNTIF($AC$15:AC88,AC88)>1,0,1) -> 1 | AG88: =IF(ROWS(AF$15:AF88)>MAX(AF:AF),"",INDEX(AC:AC,MATCH(ROWS(AF$15:AF88),AF:AF,0))) ->  | AH88: =IF(AD88="",AH87,AH87+IF(COUNTIF($AD$15:AD88,AD88)>1,0,1)) -> 0 | AI88: =IF(ROWS($AH$15:AH88)>MAX(AH:AH),"",INDEX(AD:AD,MATCH(ROWS($AH$15:AH88),AH:AH,0))) -> 
C89: Do the Medication Management results reported in DY4 represent a change over the prior reporting period? What factors have contributed to any increase or decrease? | Q89: 15 | U89: 4 | V89: =IF($F$54="Yes",1,0) -> 0 | W89: =IF(ISBLANK(V89),INDEX($Y$15:$Y$21,MATCH($U89,$X$15:$X$21,0)),IF(V89+INDEX($Y$15:$Y$21,MATCH($U89,$X$15:$X$21,0))>1,1,0)) -> 0 | AB89: 75 | AC89: 1 | AF89: =AF88+IF(COUNTIF($AC$15:AC89,AC89)>1,0,1) -> 1 | AG89: =IF(ROWS(AF$15:AF89)>MAX(AF:AF),"",INDEX(AC:AC,MATCH(ROWS(AF$15:AF89),AF:AF,0))) ->  | AH89: =IF(AD89="",AH88,AH88+IF(COUNTIF($AD$15:AD89,AD89)>1,0,1)) -> 0 | AI89: =IF(ROWS($AH$15:AH89)>MAX(AH:AH),"",INDEX(AD:AD,MATCH(ROWS($AH$15:AH89),AH:AH,0))) -> 
Q90: 36 | R90: =W90 -> 0 | S90: =W90*IF(LEN(TRIM(C90))>0,1,0) -> 0 | U90: 4 | V90: =IF($F$54="Yes",1,0) -> 0 | W90: 0 | AB90: 76 | AC90: 1 | AF90: =AF89+IF(COUNTIF($AC$15:AC90,AC90)>1,0,1) -> 1 | AG90: =IF(ROWS(AF$15:AF90)>MAX(AF:AF),"",INDEX(AC:AC,MATCH(ROWS(AF$15:AF90),AF:AF,0))) ->  | AH90: =IF(AD90="",AH89,AH89+IF(COUNTIF($AD$15:AD90,AD90)>1,0,1)) -> 0 | AI90: =IF(ROWS($AH$15:AH90)>MAX(AH:AH),"",INDEX(AD:AD,MATCH(ROWS($AH$15:AH90),AH:AH,0))) -> 
Q91: 15 | U91: 4 | V91: =IF($F$54="Yes",1,0) -> 0 | W91: 0 | AB91: 77 | AC91: 1 | AF91: =AF90+IF(COUNTIF($AC$15:AC91,AC91)>1,0,1) -> 1 | AG91: =IF(ROWS(AF$15:AF91)>MAX(AF:AF),"",INDEX(AC:AC,MATCH(ROWS(AF$15:AF91),AF:AF,0))) ->  | AH91: =IF(AD91="",AH90,AH90+IF(COUNTIF($AD$15:AD91,AD91)>1,0,1)) -> 0 | AI91: =IF(ROWS($AH$15:AH91)>MAX(AH:AH),"",INDEX(AD:AD,MATCH(ROWS($AH$15:AH91),AH:AH,0))) -> 
C92: Are you able to report Medicaid-only rates for Medication Management? | Q92: 15 | R92: =W92 -> 0 | S92: =W92*COUNTA(G92) -> 0 | U92: 4 | V92: =IF($F$54="Yes",1,0) -> 0 | W92: 0 | AB92: 78 | AC92: 1 | AF92: =AF91+IF(COUNTIF($AC$15:AC92,AC92)>1,0,1) -> 1 | AG92: =IF(ROWS(AF$15:AF92)>MAX(AF:AF),"",INDEX(AC:AC,MATCH(ROWS(AF$15:AF92),AF:AF,0))) ->  | AH92: =IF(AD92="",AH91,AH91+IF(COUNTIF($AD$15:AD92,AD92)>1,0,1)) -> 0 | AI92: =IF(ROWS($AH$15:AH92)>MAX(AH:AH),"",INDEX(AD:AD,MATCH(ROWS($AH$15:AH92),AH:AH,0))) -> 
Q93: 15 | U93: 4 | V93: =IF(AND($F$54="Yes",$G$92="Yes"),1,0) -> 0 | W93: 0 | AB93: =AB92+1 -> 79 | AC93: 1 | AF93: =AF92+IF(COUNTIF($AC$15:AC93,AC93)>1,0,1) -> 1 | AG93: =IF(ROWS(AF$15:AF93)>MAX(AF:AF),"",INDEX(AC:AC,MATCH(ROWS(AF$15:AF93),AF:AF,0))) ->  | AH93: =IF(AD93="",AH92,AH92+IF(COUNTIF($AD$15:AD93,AD93)>1,0,1)) -> 0 | AI93: =IF(ROWS($AH$15:AH93)>MAX(AH:AH),"",INDEX(AD:AD,MATCH(ROWS($AH$15:AH93),AH:AH,0))) -> 
C94: =IF(G80="No","","Numerator: Patients or their caregiver(s) who received a reconciled medication list at the time of discharge including medication specifications outlined in NQF 0646:") -> Numerator: Patients or their caregiver(s) who received a reconciled medication list at the time of discharge including medication specifications outlined in NQF 0646: | Q94: 60 | R94: =W94 -> 0 | S94: =W94*COUNTA(G94) -> 0 | U94: 4 | V94: 0 | W94: 0 | AB94: 80 | AC94: 1 | AF94: =AF93+IF(COUNTIF($AC$15:AC94,AC94)>1,0,1) -> 1 | AG94: =IF(ROWS(AF$15:AF94)>MAX(AF:AF),"",INDEX(AC:AC,MATCH(ROWS(AF$15:AF94),AF:AF,0))) ->  | AH94: =IF(AD94="",AH93,AH93+IF(COUNTIF($AD$15:AD94,AD94)>1,0,1)) -> 0 | AI94: =IF(ROWS($AH$15:AH94)>MAX(AH:AH),"",INDEX(AD:AD,MATCH(ROWS($AH$15:AH94),AH:AH,0))) -> 
C95: =IF(G80="No","","Denominator: All patients, regardless of age, discharged from an inpatient facility (eg, hospital inpatient or observation, skilled nursing facility, or rehabilitation facility) to home/self care or any other site of care.") -> Denominator: All patients, regardless of age, discharged from an inpatient facility (eg, hospital inpatient or observation, skilled nursing facility, or rehabilitation facility) to home/self care or any other site of care. | Q95: 60 | R95: =W95 -> 0 | S95: 0 | U95: 4 | V95: 0 | W95: 0 | AB95: 81 | AC95: 1 | AF95: =AF94+IF(COUNTIF($AC$15:AC95,AC95)>1,0,1) -> 1 | AG95: =IF(ROWS(AF$15:AF95)>MAX(AF:AF),"",INDEX(AC:AC,MATCH(ROWS(AF$15:AF95),AF:AF,0))) ->  | AH95: =IF(AD95="",AH94,AH94+IF(COUNTIF($AD$15:AD95,AD95)>1,0,1)) -> 0 | AI95: =IF(ROWS($AH$15:AH95)>MAX(AH:AH),"",INDEX(AD:AD,MATCH(ROWS($AH$15:AH95),AH:AH,0))) -> 
C96: Provider Rate: | G96: =IFERROR(G94/G95,"") ->  | Q96: 15 | U96: 4 | V96: 0 | W96: 0 | AB96: 82 | AC96: 1 | AF96: =AF95+IF(COUNTIF($AC$15:AC96,AC96)>1,0,1) -> 1 | AG96: =IF(ROWS(AF$15:AF96)>MAX(AF:AF),"",INDEX(AC:AC,MATCH(ROWS(AF$15:AF96),AF:AF,0))) ->  | AH96: =IF(AD96="",AH95,AH95+IF(COUNTIF($AD$15:AD96,AD96)>1,0,1)) -> 0 | AI96: =IF(ROWS($AH$15:AH96)>MAX(AH:AH),"",INDEX(AD:AD,MATCH(ROWS($AH$15:AH96),AH:AH,0))) -> 
Q97: 15 | U97: 4 | V97: 0 | W97: 0 | AB97: 83 | AC97: 1 | AF97: =AF96+IF(COUNTIF($AC$15:AC97,AC97)>1,0,1) -> 1 | AG97: =IF(ROWS(AF$15:AF97)>MAX(AF:AF),"",INDEX(AC:AC,MATCH(ROWS(AF$15:AF97),AF:AF,0))) ->  | AH97: =IF(AD97="",AH96,AH96+IF(COUNTIF($AD$15:AD97,AD97)>1,0,1)) -> 0 | AI97: =IF(ROWS($AH$15:AH97)>MAX(AH:AH),"",INDEX(AD:AD,MATCH(ROWS($AH$15:AH97),AH:AH,0))) -> 
C98: Additional comments an Medicaid-only rate: | Q98: 15 | U98: 4 | V98: 0 | W98: 0 | AB98: 84 | AC98: 1 | AF98: =AF97+IF(COUNTIF($AC$15:AC98,AC98)>1,0,1) -> 1 | AG98: =IF(ROWS(AF$15:AF98)>MAX(AF:AF),"",INDEX(AC:AC,MATCH(ROWS(AF$15:AF98),AF:AF,0))) ->  | AH98: =IF(AD98="",AH97,AH97+IF(COUNTIF($AD$15:AD98,AD98)>1,0,1)) -> 0 | AI98: =IF(ROWS($AH$15:AH98)>MAX(AH:AH),"",INDEX(AD:AD,MATCH(ROWS($AH$15:AH98),AH:AH,0))) -> 
Q99: 60 | R99: =W99 -> 0 | S99: =W99*IF(LEN(TRIM(C99))>0,1,0) -> 0 | U99: 4 | V99: 0 | W99: 0 | AB99: 85 | AC99: 1 | AF99: =AF98+IF(COUNTIF($AC$15:AC99,AC99)>1,0,1) -> 1 | AG99: =IF(ROWS(AF$15:AF99)>MAX(AF:AF),"",INDEX(AC:AC,MATCH(ROWS(AF$15:AF99),AF:AF,0))) ->  | AH99: =IF(AD99="",AH98,AH98+IF(COUNTIF($AD$15:AD99,AD99)>1,0,1)) -> 0 | AI99: =IF(ROWS($AH$15:AH99)>MAX(AH:AH),"",INDEX(AD:AD,MATCH(ROWS($AH$15:AH99),AH:AH,0))) -> 
Q100: 15 | U100: 4 | W100: 0 | AB100: 86 | AC100: 1 | AF100: =AF99+IF(COUNTIF($AC$15:AC100,AC100)>1,0,1) -> 1 | AG100: =IF(ROWS(AF$15:AF100)>MAX(AF:AF),"",INDEX(AC:AC,MATCH(ROWS(AF$15:AF100),AF:AF,0))) ->  | AH100: =IF(AD100="",AH99,AH99+IF(COUNTIF($AD$15:AD100,AD100)>1,0,1)) -> 0 | AI100: =IF(ROWS($AH$15:AH100)>MAX(AH:AH),"",INDEX(AD:AD,MATCH(ROWS($AH$15:AH100),AH:AH,0))) -> 
A101: FALSE | C101: RD5 - Emergency Department: Admit Decision Time to ED Departure Time for Admitted Patients | Q101: 15.75 | U101: 5 | W101: 0 | AB101: 87 | AC101: 1 | AF101: =AF100+IF(COUNTIF($AC$15:AC101,AC101)>1,0,1) -> 1 | AG101: =IF(ROWS(AF$15:AF101)>MAX(AF:AF),"",INDEX(AC:AC,MATCH(ROWS(AF$15:AF101),AF:AF,0))) ->  | AH101: =IF(AD101="",AH100,AH100+IF(COUNTIF($AD$15:AD101,AD101)>1,0,1)) -> 0 | AI101: =IF(ROWS($AH$15:AH101)>MAX(AH:AH),"",INDEX(AD:AD,MATCH(ROWS($AH$15:AH101),AH:AH,0))) -> 
Q102: 15 | U102: 5 | W102: 0 | AB102: 88 | AC102: 1 | AF102: =AF101+IF(COUNTIF($AC$15:AC102,AC102)>1,0,1) -> 1 | AG102: =IF(ROWS(AF$15:AF102)>MAX(AF:AF),"",INDEX(AC:AC,MATCH(ROWS(AF$15:AF102),AF:AF,0))) ->  | AH102: =IF(AD102="",AH101,AH101+IF(COUNTIF($AD$15:AD102,AD102)>1,0,1)) -> 0 | AI102: =IF(ROWS($AH$15:AH102)>MAX(AH:AH),"",INDEX(AD:AD,MATCH(ROWS($AH$15:AH102),AH:AH,0))) -> 
A103: FALSE | C103: ="Will you be reporting on RD"&$U103&" in "&$AM$4&"?" -> Will you be reporting on RD5 in April? | L103: ="RD"&U103&" Reporting Status:" -> RD5 Reporting Status: | Q103: 15 | R103: =W103 -> 0 | S103: =W103*COUNTA(F103) -> 0 | U103: 5 | W103: 0 | AB103: 89 | AC103: 1 | AF103: =AF102+IF(COUNTIF($AC$15:AC103,AC103)>1,0,1) -> 1 | AG103: =IF(ROWS(AF$15:AF103)>MAX(AF:AF),"",INDEX(AC:AC,MATCH(ROWS(AF$15:AF103),AF:AF,0))) ->  | AH103: =IF(AD103="",AH102,AH102+IF(COUNTIF($AD$15:AD103,AD103)>1,0,1)) -> 0 | AI103: =IF(ROWS($AH$15:AH103)>MAX(AH:AH),"",INDEX(AD:AD,MATCH(ROWS($AH$15:AH103),AH:AH,0))) -> 
L104: =IF(M104=1,"100% - Complete",TEXT(M104,"0%")&" - Incomplete") ->  | M104: =SUMIF(U:U,U104,S:S)/SUMIF(U:U,U104,R:R) ->  | Q104: 15 | U104: 5 | W104: 0 | AB104: 90 | AC104: 1 | AF104: =AF103+IF(COUNTIF($AC$15:AC104,AC104)>1,0,1) -> 1 | AG104: =IF(ROWS(AF$15:AF104)>MAX(AF:AF),"",INDEX(AC:AC,MATCH(ROWS(AF$15:AF104),AF:AF,0))) ->  | AH104: =IF(AD104="",AH103,AH103+IF(COUNTIF($AD$15:AD104,AD104)>1,0,1)) -> 0 | AI104: =IF(ROWS($AH$15:AH104)>MAX(AH:AH),"",INDEX(AD:AD,MATCH(ROWS($AH$15:AH104),AH:AH,0))) -> 
A105: =IF(AND(OFFSET(A105,-2,0)=TRUE,OFFSET(A105,-4,0)=TRUE),"WARNING! Domain marked for multiple NMI periods!","") ->  | C105: First Component: ED Admit Decision Time to ED Departure | Q105: 15.75 | U105: 5 | V105: =IF($F$103="Yes",1,0) -> 0 | W105: 0 | AB105: 91 | AC105: 1 | AF105: =AF104+IF(COUNTIF($AC$15:AC105,AC105)>1,0,1) -> 1 | AG105: =IF(ROWS(AF$15:AF105)>MAX(AF:AF),"",INDEX(AC:AC,MATCH(ROWS(AF$15:AF105),AF:AF,0))) ->  | AH105: =IF(AD105="",AH104,AH104+IF(COUNTIF($AD$15:AD105,AD105)>1,0,1)) -> 0 | AI105: =IF(ROWS($AH$15:AH105)>MAX(AH:AH),"",INDEX(AD:AD,MATCH(ROWS($AH$15:AH105),AH:AH,0))) -> 
C106: DY4 Measurement Period: | E106: =AL19 ->  | Q106: 15 | U106: 5 | V106: =IF(AND($F$103="Yes",ISERROR(SEARCH("TBD",$AL$19))),1,0) -> 0 | W106: 0 | AB106: 92 | AC106: 1 | AF106: =AF105+IF(COUNTIF($AC$15:AC106,AC106)>1,0,1) -> 1 | AG106: =IF(ROWS(AF$15:AF106)>MAX(AF:AF),"",INDEX(AC:AC,MATCH(ROWS(AF$15:AF106),AF:AF,0))) ->  | AH106: =IF(AD106="",AH105,AH105+IF(COUNTIF($AD$15:AD106,AD106)>1,0,1)) -> 0 | AI106: =IF(ROWS($AH$15:AH106)>MAX(AH:AH),"",INDEX(AD:AD,MATCH(ROWS($AH$15:AH106),AH:AH,0))) -> 
C107: Select Component 1 DY4 Measurement Period: | Q107: 15 | U107: 5 | V107: =IF(AND($F$103="Yes",NOT(ISERROR(SEARCH("TBD",$AL$19)))),1,0) -> 0 | W107: 0 | AB107: 93 | AC107: 2 | AF107: =AF106+IF(COUNTIF($AC$15:AC107,AC107)>1,0,1) -> 2 | AG107: =IF(ROWS(AF$15:AF107)>MAX(AF:AF),"",INDEX(AC:AC,MATCH(ROWS(AF$15:AF107),AF:AF,0))) ->  | AH107: =IF(AD107="",AH106,AH106+IF(COUNTIF($AD$15:AD107,AD107)>1,0,1)) -> 0 | AI107: =IF(ROWS($AH$15:AH107)>MAX(AH:AH),"",INDEX(AD:AD,MATCH(ROWS($AH$15:AH107),AH:AH,0))) -> 
C108: Start: | E108: End: | Q108: 15 | R108: =W108*2 -> 0 | S108: =W108*COUNTA(D108,F108) -> 0 | U108: 5 | V108: =IF(AND($F$103="Yes",NOT(ISERROR(SEARCH("TBD",$AL$19)))),1,0) -> 0 | W108: 0 | AB108: 94 | AC108: 2 | AF108: =AF107+IF(COUNTIF($AC$15:AC108,AC108)>1,0,1) -> 2 | AG108: =IF(ROWS(AF$15:AF108)>MAX(AF:AF),"",INDEX(AC:AC,MATCH(ROWS(AF$15:AF108),AF:AF,0))) ->  | AH108: =IF(AD108="",AH107,AH107+IF(COUNTIF($AD$15:AD108,AD108)>1,0,1)) -> 0 | AI108: =IF(ROWS($AH$15:AH108)>MAX(AH:AH),"",INDEX(AD:AD,MATCH(ROWS($AH$15:AH108),AH:AH,0))) -> 
Q109: 15 | U109: 5 | V109: =IF($F$103="Yes",1,0) -> 0 | W109: 0 | AB109: 95 | AC109: 2 | AF109: =AF108+IF(COUNTIF($AC$15:AC109,AC109)>1,0,1) -> 2 | AG109: =IF(ROWS(AF$15:AF109)>MAX(AF:AF),"",INDEX(AC:AC,MATCH(ROWS(AF$15:AF109),AF:AF,0))) ->  | AH109: =IF(AD109="",AH108,AH108+IF(COUNTIF($AD$15:AD109,AD109)>1,0,1)) -> 0 | AI109: =IF(ROWS($AH$15:AH109)>MAX(AH:AH),"",INDEX(AD:AD,MATCH(ROWS($AH$15:AH109),AH:AH,0))) -> 
C110: Median Time (in minutes) from admit decision time to time of departure from the emergency department for admitted patients: | Q110: 60 | R110: =W110 -> 0 | S110: =W110*COUNTA(G110) -> 0 | U110: 5 | V110: 0 | W110: 0 | AB110: 96 | AC110: 2 | AF110: =AF109+IF(COUNTIF($AC$15:AC110,AC110)>1,0,1) -> 2 | AG110: =IF(ROWS(AF$15:AF110)>MAX(AF:AF),"",INDEX(AC:AC,MATCH(ROWS(AF$15:AF110),AF:AF,0))) ->  | AH110: =IF(AD110="",AH109,AH109+IF(COUNTIF($AD$15:AD110,AD110)>1,0,1)) -> 0 | AI110: =IF(ROWS($AH$15:AH110)>MAX(AH:AH),"",INDEX(AD:AD,MATCH(ROWS($AH$15:AH110),AH:AH,0))) -> 
C111: Number of emergency department (ED) patients seen and used to calculate median time in minutes from admit decision time to time of departure from the ED for admitted patients | Q111: 60 | R111: 0 | S111: =W111*COUNTA(G111) -> 0 | U111: 5 | V111: 0 | W111: 0 | AB111: 97 | AC111: 2 | AF111: =AF110+IF(COUNTIF($AC$15:AC111,AC111)>1,0,1) -> 2 | AG111: =IF(ROWS(AF$15:AF111)>MAX(AF:AF),"",INDEX(AC:AC,MATCH(ROWS(AF$15:AF111),AF:AF,0))) ->  | AH111: =IF(AD111="",AH110,AH110+IF(COUNTIF($AD$15:AD111,AD111)>1,0,1)) -> 0 | AI111: =IF(ROWS($AH$15:AH111)>MAX(AH:AH),"",INDEX(AD:AD,MATCH(ROWS($AH$15:AH111),AH:AH,0))) -> 
Q112: 15 | U112: 5 | V112: 0 | W112: 0 | AB112: 98 | AC112: 2 | AF112: =AF111+IF(COUNTIF($AC$15:AC112,AC112)>1,0,1) -> 2 | AG112: =IF(ROWS(AF$15:AF112)>MAX(AF:AF),"",INDEX(AC:AC,MATCH(ROWS(AF$15:AF112),AF:AF,0))) ->  | AH112: =IF(AD112="",AH111,AH111+IF(COUNTIF($AD$15:AD112,AD112)>1,0,1)) -> 0 | AI112: =IF(ROWS($AH$15:AH112)>MAX(AH:AH),"",INDEX(AD:AD,MATCH(ROWS($AH$15:AH112),AH:AH,0))) -> 
C113: Does the median time reported in DY4 represent a change over the prior reporting period? What factors have contributed to any increase or decrease? | Q113: 15 | U113: 5 | V113: 0 | W113: 0 | AB113: 99 | AC113: 2 | AF113: =AF112+IF(COUNTIF($AC$15:AC113,AC113)>1,0,1) -> 2 | AG113: =IF(ROWS(AF$15:AF113)>MAX(AF:AF),"",INDEX(AC:AC,MATCH(ROWS(AF$15:AF113),AF:AF,0))) ->  | AH113: =IF(AD113="",AH112,AH112+IF(COUNTIF($AD$15:AD113,AD113)>1,0,1)) -> 0 | AI113: =IF(ROWS($AH$15:AH113)>MAX(AH:AH),"",INDEX(AD:AD,MATCH(ROWS($AH$15:AH113),AH:AH,0))) -> 
Q114: 36 | R114: =W114 -> 0 | S114: =W114*IF(LEN(TRIM(C114))>0,1,0) -> 0 | U114: 5 | V114: 0 | W114: 0 | AB114: 100 | AC114: 2 | AF114: =AF113+IF(COUNTIF($AC$15:AC114,AC114)>1,0,1) -> 2 | AG114: =IF(ROWS(AF$15:AF114)>MAX(AF:AF),"",INDEX(AC:AC,MATCH(ROWS(AF$15:AF114),AF:AF,0))) ->  | AH114: =IF(AD114="",AH113,AH113+IF(COUNTIF($AD$15:AD114,AD114)>1,0,1)) -> 0 | AI114: =IF(ROWS($AH$15:AH114)>MAX(AH:AH),"",INDEX(AD:AD,MATCH(ROWS($AH$15:AH114),AH:AH,0))) -> 
Q115: 15 | U115: 5 | V115: 0 | W115: 0 | AB115: 101 | AC115: 2 | AF115: =AF114+IF(COUNTIF($AC$15:AC115,AC115)>1,0,1) -> 2 | AG115: =IF(ROWS(AF$15:AF115)>MAX(AF:AF),"",INDEX(AC:AC,MATCH(ROWS(AF$15:AF115),AF:AF,0))) ->  | AH115: =IF(AD115="",AH114,AH114+IF(COUNTIF($AD$15:AD115,AD115)>1,0,1)) -> 0 | AI115: =IF(ROWS($AH$15:AH115)>MAX(AH:AH),"",INDEX(AD:AD,MATCH(ROWS($AH$15:AH115),AH:AH,0))) -> 
C116: Are you able to report Medicaid-only rates for RD-5? | Q116: 15 | R116: =W116 -> 0 | S116: =W116*COUNTA(G116) -> 0 | U116: 5 | V116: 0 | W116: 0 | AB116: 102 | AC116: 2 | AF116: =AF115+IF(COUNTIF($AC$15:AC116,AC116)>1,0,1) -> 2 | AG116: =IF(ROWS(AF$15:AF116)>MAX(AF:AF),"",INDEX(AC:AC,MATCH(ROWS(AF$15:AF116),AF:AF,0))) ->  | AH116: =IF(AD116="",AH115,AH115+IF(COUNTIF($AD$15:AD116,AD116)>1,0,1)) -> 0 | AI116: =IF(ROWS($AH$15:AH116)>MAX(AH:AH),"",INDEX(AD:AD,MATCH(ROWS($AH$15:AH116),AH:AH,0))) -> 
Q117: 15 | U117: 5 | V117: =IF(AND($F$103="Yes",$G$116="Yes"),1,0) -> 0 | W117: 0 | AB117: 103 | AC117: 2 | AF117: =AF116+IF(COUNTIF($AC$15:AC117,AC117)>1,0,1) -> 2 | AG117: =IF(ROWS(AF$15:AF117)>MAX(AF:AF),"",INDEX(AC:AC,MATCH(ROWS(AF$15:AF117),AF:AF,0))) ->  | AH117: =IF(AD117="",AH116,AH116+IF(COUNTIF($AD$15:AD117,AD117)>1,0,1)) -> 0 | AI117: =IF(ROWS($AH$15:AH117)>MAX(AH:AH),"",INDEX(AD:AD,MATCH(ROWS($AH$15:AH117),AH:AH,0))) -> 
C118: Median Time (in minutes) from admit decision time to time of departure from the emergency department for admitted patients: | Q118: 60 | R118: =W118 -> 0 | S118: =W118*COUNTA(G118) -> 0 | U118: 5 | V118: 0 | W118: 0 | AB118: 104 | AC118: 2 | AF118: =AF117+IF(COUNTIF($AC$15:AC118,AC118)>1,0,1) -> 2 | AG118: =IF(ROWS(AF$15:AF118)>MAX(AF:AF),"",INDEX(AC:AC,MATCH(ROWS(AF$15:AF118),AF:AF,0))) ->  | AH118: =IF(AD118="",AH117,AH117+IF(COUNTIF($AD$15:AD118,AD118)>1,0,1)) -> 0 | AI118: =IF(ROWS($AH$15:AH118)>MAX(AH:AH),"",INDEX(AD:AD,MATCH(ROWS($AH$15:AH118),AH:AH,0))) -> 
C119: Number of emergency department (ED) patients seen and used to calculate median time in minutes from admit decision time to time of departure from the ED for admitted patients: | Q119: 60 | R119: =W119 -> 0 | S119: 0 | U119: 5 | V119: 0 | W119: 0 | AB119: 105 | AC119: 2 | AF119: =AF118+IF(COUNTIF($AC$15:AC119,AC119)>1,0,1) -> 2 | AG119: =IF(ROWS(AF$15:AF119)>MAX(AF:AF),"",INDEX(AC:AC,MATCH(ROWS(AF$15:AF119),AF:AF,0))) ->  | AH119: =IF(AD119="",AH118,AH118+IF(COUNTIF($AD$15:AD119,AD119)>1,0,1)) -> 0 | AI119: =IF(ROWS($AH$15:AH119)>MAX(AH:AH),"",INDEX(AD:AD,MATCH(ROWS($AH$15:AH119),AH:AH,0))) -> 
Q120: 15 | U120: 5 | V120: 0 | W120: 0 | AB120: 106 | AC120: 2 | AF120: =AF119+IF(COUNTIF($AC$15:AC120,AC120)>1,0,1) -> 2 | AG120: =IF(ROWS(AF$15:AF120)>MAX(AF:AF),"",INDEX(AC:AC,MATCH(ROWS(AF$15:AF120),AF:AF,0))) ->  | AH120: =IF(AD120="",AH119,AH119+IF(COUNTIF($AD$15:AD120,AD120)>1,0,1)) -> 0 | AI120: =IF(ROWS($AH$15:AH120)>MAX(AH:AH),"",INDEX(AD:AD,MATCH(ROWS($AH$15:AH120),AH:AH,0))) -> 
C121: Additional comments an Medicaid-only rate: | Q121: 15 | U121: 5 | V121: 0 | W121: 0 | AB121: 107 | AC121: 2 | AF121: =AF120+IF(COUNTIF($AC$15:AC121,AC121)>1,0,1) -> 2 | AG121: =IF(ROWS(AF$15:AF121)>MAX(AF:AF),"",INDEX(AC:AC,MATCH(ROWS(AF$15:AF121),AF:AF,0))) ->  | AH121: =IF(AD121="",AH120,AH120+IF(COUNTIF($AD$15:AD121,AD121)>1,0,1)) -> 0 | AI121: =IF(ROWS($AH$15:AH121)>MAX(AH:AH),"",INDEX(AD:AD,MATCH(ROWS($AH$15:AH121),AH:AH,0))) -> 
Q122: 60 | R122: =W122 -> 0 | S122: =W122*IF(LEN(TRIM(C122))>0,1,0) -> 0 | U122: 5 | V122: 0 | W122: 0 | AB122: 108 | AC122: 2 | AF122: =AF121+IF(COUNTIF($AC$15:AC122,AC122)>1,0,1) -> 2 | AG122: =IF(ROWS(AF$15:AF122)>MAX(AF:AF),"",INDEX(AC:AC,MATCH(ROWS(AF$15:AF122),AF:AF,0))) ->  | AH122: =IF(AD122="",AH121,AH121+IF(COUNTIF($AD$15:AD122,AD122)>1,0,1)) -> 0 | AI122: =IF(ROWS($AH$15:AH122)>MAX(AH:AH),"",INDEX(AD:AD,MATCH(ROWS($AH$15:AH122),AH:AH,0))) -> 
Q123: 15 | U123: 5 | W123: 0 | AB123: 109 | AC123: 2 | AF123: =AF122+IF(COUNTIF($AC$15:AC123,AC123)>1,0,1) -> 2 | AG123: =IF(ROWS(AF$15:AF123)>MAX(AF:AF),"",INDEX(AC:AC,MATCH(ROWS(AF$15:AF123),AF:AF,0))) ->  | AH123: =IF(AD123="",AH122,AH122+IF(COUNTIF($AD$15:AD123,AD123)>1,0,1)) -> 0 | AI123: =IF(ROWS($AH$15:AH123)>MAX(AH:AH),"",INDEX(AD:AD,MATCH(ROWS($AH$15:AH123),AH:AH,0))) -> 
A124: FALSE | C124: RD6 - Potentially Preventable Readmissions: Initial Core Set of Health Care Quality Measures | Q124: 15.75 | U124: 6 | W124: 0 | AB124: 110 | AC124: 2 | AF124: =AF123+IF(COUNTIF($AC$15:AC124,AC124)>1,0,1) -> 2 | AG124: =IF(ROWS(AF$15:AF124)>MAX(AF:AF),"",INDEX(AC:AC,MATCH(ROWS(AF$15:AF124),AF:AF,0))) ->  | AH124: =IF(AD124="",AH123,AH123+IF(COUNTIF($AD$15:AD124,AD124)>1,0,1)) -> 0 | AI124: =IF(ROWS($AH$15:AH124)>MAX(AH:AH),"",INDEX(AD:AD,MATCH(ROWS($AH$15:AH124),AH:AH,0))) -> 
Q125: 15 | U125: 6 | W125: 0 | AB125: 111 | AC125: 2 | AF125: =AF124+IF(COUNTIF($AC$15:AC125,AC125)>1,0,1) -> 2 | AG125: =IF(ROWS(AF$15:AF125)>MAX(AF:AF),"",INDEX(AC:AC,MATCH(ROWS(AF$15:AF125),AF:AF,0))) ->  | AH125: =IF(AD125="",AH124,AH124+IF(COUNTIF($AD$15:AD125,AD125)>1,0,1)) -> 0 | AI125: =IF(ROWS($AH$15:AH125)>MAX(AH:AH),"",INDEX(AD:AD,MATCH(ROWS($AH$15:AH125),AH:AH,0))) -> 
A126: FALSE | C126: ="Will you be reporting on RD"&$U126&" in "&$AM$4&"?" -> Will you be reporting on RD6 in April? | L126: ="RD"&U126&" Reporting Status:" -> RD6 Reporting Status: | Q126: 15 | R126: =W126 -> 0 | S126: =W126*COUNTA(F126) -> 0 | U126: 6 | W126: 0 | AB126: 112 | AC126: 2 | AF126: =AF125+IF(COUNTIF($AC$15:AC126,AC126)>1,0,1) -> 2 | AG126: =IF(ROWS(AF$15:AF126)>MAX(AF:AF),"",INDEX(AC:AC,MATCH(ROWS(AF$15:AF126),AF:AF,0))) ->  | AH126: =IF(AD126="",AH125,AH125+IF(COUNTIF($AD$15:AD126,AD126)>1,0,1)) -> 0 | AI126: =IF(ROWS($AH$15:AH126)>MAX(AH:AH),"",INDEX(AD:AD,MATCH(ROWS($AH$15:AH126),AH:AH,0))) -> 
L127: =IF(M127=1,"100% - Complete",TEXT(M127,"0%")&" - Incomplete") ->  | M127: =SUMIF(U:U,U127,S:S)/SUMIF(U:U,U127,R:R) ->  | Q127: 15 | U127: 6 | W127: 0 | AB127: 113 | AC127: 2 | AF127: =AF126+IF(COUNTIF($AC$15:AC127,AC127)>1,0,1) -> 2 | AG127: =IF(ROWS(AF$15:AF127)>MAX(AF:AF),"",INDEX(AC:AC,MATCH(ROWS(AF$15:AF127),AF:AF,0))) ->  | AH127: =IF(AD127="",AH126,AH126+IF(COUNTIF($AD$15:AD127,AD127)>1,0,1)) -> 0 | AI127: =IF(ROWS($AH$15:AH127)>MAX(AH:AH),"",INDEX(AD:AD,MATCH(ROWS($AH$15:AH127),AH:AH,0))) -> 
C128: First Component: Measures for Adult Population | Q128: 15.75 | U128: 6 | V128: =IF($F$126="Yes",1,0) -> 0 | W128: 0 | AB128: 114 | AC128: 2 | AF128: =AF127+IF(COUNTIF($AC$15:AC128,AC128)>1,0,1) -> 2 | AG128: =IF(ROWS(AF$15:AF128)>MAX(AF:AF),"",INDEX(AC:AC,MATCH(ROWS(AF$15:AF128),AF:AF,0))) ->  | AH128: =IF(AD128="",AH127,AH127+IF(COUNTIF($AD$15:AD128,AD128)>1,0,1)) -> 0 | AI128: =IF(ROWS($AH$15:AH128)>MAX(AH:AH),"",INDEX(AD:AD,MATCH(ROWS($AH$15:AH128),AH:AH,0))) -> 
C129: DY4 Measurement Period: | E129: =AL20 ->  | Q129: 15 | U129: 6 | V129: =IF(AND($F$126="Yes",ISERROR(SEARCH("TBD",$AL$20))),1,0) -> 0 | W129: 0 | AB129: 115 | AC129: 2 | AF129: =AF128+IF(COUNTIF($AC$15:AC129,AC129)>1,0,1) -> 2 | AG129: =IF(ROWS(AF$15:AF129)>MAX(AF:AF),"",INDEX(AC:AC,MATCH(ROWS(AF$15:AF129),AF:AF,0))) ->  | AH129: =IF(AD129="",AH128,AH128+IF(COUNTIF($AD$15:AD129,AD129)>1,0,1)) -> 0 | AI129: =IF(ROWS($AH$15:AH129)>MAX(AH:AH),"",INDEX(AD:AD,MATCH(ROWS($AH$15:AH129),AH:AH,0))) -> 
C130: Select Component 1 DY4 Measurement Period: | Q130: 15 | U130: 6 | V130: =IF(AND($F$126="Yes",NOT(ISERROR(SEARCH("TBD",$AL$20)))),1,0) -> 0 | W130: 0 | AB130: 116 | AC130: 2 | AF130: =AF129+IF(COUNTIF($AC$15:AC130,AC130)>1,0,1) -> 2 | AG130: =IF(ROWS(AF$15:AF130)>MAX(AF:AF),"",INDEX(AC:AC,MATCH(ROWS(AF$15:AF130),AF:AF,0))) ->  | AH130: =IF(AD130="",AH129,AH129+IF(COUNTIF($AD$15:AD130,AD130)>1,0,1)) -> 0 | AI130: =IF(ROWS($AH$15:AH130)>MAX(AH:AH),"",INDEX(AD:AD,MATCH(ROWS($AH$15:AH130),AH:AH,0))) -> 
C131: Start: | E131: End: | Q131: 15 | U131: 6 | V131: =IF(AND($F$126="Yes",NOT(ISERROR(SEARCH("TBD",$AL$20)))),1,0) -> 0 | W131: 0 | AB131: 117 | AC131: 2 | AF131: =AF130+IF(COUNTIF($AC$15:AC131,AC131)>1,0,1) -> 2 | AG131: =IF(ROWS(AF$15:AF131)>MAX(AF:AF),"",INDEX(AC:AC,MATCH(ROWS(AF$15:AF131),AF:AF,0))) ->  | AH131: =IF(AD131="",AH130,AH130+IF(COUNTIF($AD$15:AD131,AD131)>1,0,1)) -> 0 | AI131: =IF(ROWS($AH$15:AH131)>MAX(AH:AH),"",INDEX(AD:AD,MATCH(ROWS($AH$15:AH131),AH:AH,0))) -> 
Q132: 15 | U132: 6 | V132: =IF($F$126="Yes",1,0) -> 0 | W132: 0 | AB132: 118 | AC132: 2 | AF132: =AF131+IF(COUNTIF($AC$15:AC132,AC132)>1,0,1) -> 2 | AG132: =IF(ROWS(AF$15:AF132)>MAX(AF:AF),"",INDEX(AC:AC,MATCH(ROWS(AF$15:AF132),AF:AF,0))) ->  | AH132: =IF(AD132="",AH131,AH131+IF(COUNTIF($AD$15:AD132,AD132)>1,0,1)) -> 0 | AI132: =IF(ROWS($AH$15:AH132)>MAX(AH:AH),"",INDEX(AD:AD,MATCH(ROWS($AH$15:AH132),AH:AH,0))) -> 
C133: NQF # | D133: Measure Steward | E133: Measure Name | H133: Provider Numerator | I133: Provider Denominator | J133: Provider Rate | K133: If not reporting measure, please provide an explanation of why the measure is not being reported. | M133: Additional information on measures not reported: | O133: Reporting Measure Options | Q133: 30 | U133: 6 | V133: 0 | W133: 0 | AB133: 119 | AC133: 2 | AF133: =AF132+IF(COUNTIF($AC$15:AC133,AC133)>1,0,1) -> 2 | AG133: =IF(ROWS(AF$15:AF133)>MAX(AF:AF),"",INDEX(AC:AC,MATCH(ROWS(AF$15:AF133),AF:AF,0))) ->  | AH133: =IF(AD133="",AH132,AH132+IF(COUNTIF($AD$15:AD133,AD133)>1,0,1)) -> 0 | AI133: =IF(ROWS($AH$15:AH133)>MAX(AH:AH),"",INDEX(AD:AD,MATCH(ROWS($AH$15:AH133),AH:AH,0))) -> 
C134: 0039 | D134: NCQA | E134: Flu Shots for Adults Ages 50-64 (Collected as part of HEDIS CAHPS Supplemental Survey)* | J134: =IFERROR(H134/I134,"") ->  | O134: The hospital does not serve the population that is being measured. | Q134: 47.25 | R134: =W134*2 -> 0 | S134: =W134*(IF(COUNTBLANK(H134:I134)=2,IF(LEN(TRIM(K134))>0,1,0)+IF(LEN(TRIM(M134))>0,1,0),COUNTA(H134:I134))) -> 0 | U134: 6 | V134: 0 | W134: 0 | AB134: 120 | AC134: 2 | AF134: =AF133+IF(COUNTIF($AC$15:AC134,AC134)>1,0,1) -> 2 | AG134: =IF(ROWS(AF$15:AF134)>MAX(AF:AF),"",INDEX(AC:AC,MATCH(ROWS(AF$15:AF134),AF:AF,0))) ->  | AH134: =IF(AD134="",AH133,AH133+IF(COUNTIF($AD$15:AD134,AD134)>1,0,1)) -> 0 | AI134: =IF(ROWS($AH$15:AH134)>MAX(AH:AH),"",INDEX(AD:AD,MATCH(ROWS($AH$15:AH134),AH:AH,0))) -> 
C135: 0421 | D135: NCQA | E135: Adult BMI Assessment*,** | J135: =IFERROR(H135/I135,"") ->  | O135: The hospital does not provide outpatient services that are being measured. | Q135: 47.25 | R135: =W135*2 -> 0 | S135: =W135*(IF(COUNTBLANK(H135:I135)=2,IF(LEN(TRIM(K135))>0,1,0)+IF(LEN(TRIM(M135))>0,1,0),COUNTA(H135:I135))) -> 0 | U135: 6 | V135: 0 | W135: 0 | AB135: 121 | AC135: 2 | AF135: =AF134+IF(COUNTIF($AC$15:AC135,AC135)>1,0,1) -> 2 | AG135: =IF(ROWS(AF$15:AF135)>MAX(AF:AF),"",INDEX(AC:AC,MATCH(ROWS(AF$15:AF135),AF:AF,0))) ->  | AH135: =IF(AD135="",AH134,AH134+IF(COUNTIF($AD$15:AD135,AD135)>1,0,1)) -> 0 | AI135: =IF(ROWS($AH$15:AH135)>MAX(AH:AH),"",INDEX(AD:AD,MATCH(ROWS($AH$15:AH135),AH:AH,0))) -> 
C136: 0031 | D136: NCQA | E136: Breast Cancer Screening*, ** | O136: The hospital’s current data systems do not allow for the measure to be reported (must provide additional information) | Q136: 47.25 | R136: 0 | S136: 0 | U136: 6 | V136: 0 | W136: 0 | AB136: 122 | AC136: 2 | AF136: =AF135+IF(COUNTIF($AC$15:AC136,AC136)>1,0,1) -> 2 | AG136: =IF(ROWS(AF$15:AF136)>MAX(AF:AF),"",INDEX(AC:AC,MATCH(ROWS(AF$15:AF136),AF:AF,0))) ->  | AH136: =IF(AD136="",AH135,AH135+IF(COUNTIF($AD$15:AD136,AD136)>1,0,1)) -> 0 | AI136: =IF(ROWS($AH$15:AH136)>MAX(AH:AH),"",INDEX(AD:AD,MATCH(ROWS($AH$15:AH136),AH:AH,0))) -> 
C137: 0032 | D137: NCQA | E137: Cervical Cancer Screening*.** | O137: There is not a statistically significant population to report the measure – defined as at least 30 cases included in the denominator. | Q137: 47.25 | R137: 0 | S137: 0 | U137: 6 | V137: 0 | W137: 0 | AB137: 123 | AC137: 2 | AF137: =AF136+IF(COUNTIF($AC$15:AC137,AC137)>1,0,1) -> 2 | AG137: =IF(ROWS(AF$15:AF137)>MAX(AF:AF),"",INDEX(AC:AC,MATCH(ROWS(AF$15:AF137),AF:AF,0))) ->  | AH137: =IF(AD137="",AH136,AH136+IF(COUNTIF($AD$15:AD137,AD137)>1,0,1)) -> 0 | AI137: =IF(ROWS($AH$15:AH137)>MAX(AH:AH),"",INDEX(AD:AD,MATCH(ROWS($AH$15:AH137),AH:AH,0))) -> 
C138: 0027 | D138: NCQA | E138: Medical Assistance with Smoking and Tobacco Use Cessation (Collected as part of HEDIS)* | O138: The hospital’s current data systems do not allow for the measure to be reported (must provide additional information) | Q138: 47.25 | R138: 0 | S138: 0 | U138: 6 | V138: 0 | W138: 0 | AB138: 124 | AC138: 2 | AF138: =AF137+IF(COUNTIF($AC$15:AC138,AC138)>1,0,1) -> 2 | AG138: =IF(ROWS(AF$15:AF138)>MAX(AF:AF),"",INDEX(AC:AC,MATCH(ROWS(AF$15:AF138),AF:AF,0))) ->  | AH138: =IF(AD138="",AH137,AH137+IF(COUNTIF($AD$15:AD138,AD138)>1,0,1)) -> 0 | AI138: =IF(ROWS($AH$15:AH138)>MAX(AH:AH),"",INDEX(AD:AD,MATCH(ROWS($AH$15:AH138),AH:AH,0))) -> 
C139: 0418 | D139: CMS | E139: Screening for Clinical Depression and Follow-Up Plan | O139: The identical data is being reported as a Category 3 outcome | Q139: 47.25 | R139: 0 | S139: 0 | U139: 6 | V139: 0 | W139: 0 | AB139: 125 | AC139: 2 | AF139: =AF138+IF(COUNTIF($AC$15:AC139,AC139)>1,0,1) -> 2 | AG139: =IF(ROWS(AF$15:AF139)>MAX(AF:AF),"",INDEX(AC:AC,MATCH(ROWS(AF$15:AF139),AF:AF,0))) ->  | AH139: =IF(AD139="",AH138,AH138+IF(COUNTIF($AD$15:AD139,AD139)>1,0,1)) -> 0 | AI139: =IF(ROWS($AH$15:AH139)>MAX(AH:AH),"",INDEX(AD:AD,MATCH(ROWS($AH$15:AH139),AH:AH,0))) -> 
C140: 1768 | D140: NCQA | E140: Hospital-Wide All-Cause Readmission** | Q140: 47.25 | R140: 0 | S140: 0 | U140: 6 | V140: 0 | W140: 0 | AB140: 126 | AC140: 2 | AF140: =AF139+IF(COUNTIF($AC$15:AC140,AC140)>1,0,1) -> 2 | AG140: =IF(ROWS(AF$15:AF140)>MAX(AF:AF),"",INDEX(AC:AC,MATCH(ROWS(AF$15:AF140),AF:AF,0))) ->  | AH140: =IF(AD140="",AH139,AH139+IF(COUNTIF($AD$15:AD140,AD140)>1,0,1)) -> 0 | AI140: =IF(ROWS($AH$15:AH140)>MAX(AH:AH),"",INDEX(AD:AD,MATCH(ROWS($AH$15:AH140),AH:AH,0))) -> 
C141: 0272 | D141: AHRQ | E141: PQI 01: Diabetes, Short-term Complications Admission Rate** | Q141: 47.25 | R141: 0 | S141: 0 | U141: 6 | V141: 0 | W141: 0 | AB141: 127 | AC141: 2 | AF141: =AF140+IF(COUNTIF($AC$15:AC141,AC141)>1,0,1) -> 2 | AG141: =IF(ROWS(AF$15:AF141)>MAX(AF:AF),"",INDEX(AC:AC,MATCH(ROWS(AF$15:AF141),AF:AF,0))) ->  | AH141: =IF(AD141="",AH140,AH140+IF(COUNTIF($AD$15:AD141,AD141)>1,0,1)) -> 0 | AI141: =IF(ROWS($AH$15:AH141)>MAX(AH:AH),"",INDEX(AD:AD,MATCH(ROWS($AH$15:AH141),AH:AH,0))) -> 
C142: 0275 | D142: AHRQ | E142: PQI 05: Chronic Obstructive Pulmonary Disease (COPD) Admission Rate** | Q142: 47.25 | R142: 0 | S142: 0 | U142: 6 | V142: 0 | W142: 0 | AB142: 128 | AC142: 2 | AF142: =AF141+IF(COUNTIF($AC$15:AC142,AC142)>1,0,1) -> 2 | AG142: =IF(ROWS(AF$15:AF142)>MAX(AF:AF),"",INDEX(AC:AC,MATCH(ROWS(AF$15:AF142),AF:AF,0))) ->  | AH142: =IF(AD142="",AH141,AH141+IF(COUNTIF($AD$15:AD142,AD142)>1,0,1)) -> 0 | AI142: =IF(ROWS($AH$15:AH142)>MAX(AH:AH),"",INDEX(AD:AD,MATCH(ROWS($AH$15:AH142),AH:AH,0))) -> 
C143: 0277 | D143: AHRQ | E143: PQI 08: Congestive Heart Failure Admission Rate** | Q143: 47.25 | R143: 0 | S143: 0 | U143: 6 | V143: 0 | W143: 0 | AB143: 129 | AC143: 2 | AF143: =AF142+IF(COUNTIF($AC$15:AC143,AC143)>1,0,1) -> 2 | AG143: =IF(ROWS(AF$15:AF143)>MAX(AF:AF),"",INDEX(AC:AC,MATCH(ROWS(AF$15:AF143),AF:AF,0))) ->  | AH143: =IF(AD143="",AH142,AH142+IF(COUNTIF($AD$15:AD143,AD143)>1,0,1)) -> 0 | AI143: =IF(ROWS($AH$15:AH143)>MAX(AH:AH),"",INDEX(AD:AD,MATCH(ROWS($AH$15:AH143),AH:AH,0))) -> 
C144: 0283 | D144: AHRQ | E144: PQI 15: Adult Asthma Admission Rate*,** | Q144: 47.25 | R144: 0 | S144: 0 | U144: 6 | V144: 0 | W144: 0 | AB144: 130 | AC144: =IF(INDIRECT($AC$1&"D"&$AB144+1)="","",INDIRECT($AC$1&"D"&$AB144+1)) -> 2 | AD144: =IF(AC144="","",IF($E$16=AC144,INDIRECT($AC$1&"E"&$AB144+1),"")) ->  | AE144: =IF(ISBLANK($E$17),"",IF($E$17<>AD144,"",IF(INDIRECT($AC$1&"U"&$AB144+1)="Yes",INDIRECT($AC$1&"I"&$AB144+1),""))) ->  | AF144: =AF143+IF(COUNTIF($AC$15:AC144,AC144)>1,0,1) -> 2 | AG144: =IF(ROWS(AF$15:AF144)>MAX(AF:AF),"",INDEX(AC:AC,MATCH(ROWS(AF$15:AF144),AF:AF,0))) ->  | AH144: =IF(AD144="",AH143,AH143+IF(COUNTIF($AD$15:AD144,AD144)>1,0,1)) -> 0 | AI144: =IF(ROWS($AH$15:AH144)>MAX(AH:AH),"",INDEX(AD:AD,MATCH(ROWS($AH$15:AH144),AH:AH,0))) -> 
C145: 0033 | D145: NCQA | E145: Chlamydia Screening in Women Ages 21-24* | Q145: 47.25 | R145: 0 | S145: 0 | U145: 6 | V145: 0 | W145: 0 | AB145: =AB144+1 -> 131 | AC145: 2 | AF145: =AF144+IF(COUNTIF($AC$15:AC145,AC145)>1,0,1) -> 2 | AG145: =IF(ROWS(AF$15:AF145)>MAX(AF:AF),"",INDEX(AC:AC,MATCH(ROWS(AF$15:AF145),AF:AF,0))) ->  | AH145: =IF(AD145="",AH144,AH144+IF(COUNTIF($AD$15:AD145,AD145)>1,0,1)) -> 0 | AI145: =IF(ROWS($AH$15:AH145)>MAX(AH:AH),"",INDEX(AD:AD,MATCH(ROWS($AH$15:AH145),AH:AH,0))) -> 
C146: 0576 | D146: NCQA | E146: Follow-Up After Hospitalization for Mental Illness* (7-day) | Q146: 47.25 | R146: 0 | S146: 0 | U146: 6 | V146: 0 | W146: 0 | AB146: 132 | AC146: 2 | AF146: =AF145+IF(COUNTIF($AC$15:AC146,AC146)>1,0,1) -> 2 | AG146: =IF(ROWS(AF$15:AF146)>MAX(AF:AF),"",INDEX(AC:AC,MATCH(ROWS(AF$15:AF146),AF:AF,0))) ->  | AH146: =IF(AD146="",AH145,AH145+IF(COUNTIF($AD$15:AD146,AD146)>1,0,1)) -> 0 | AI146: =IF(ROWS($AH$15:AH146)>MAX(AH:AH),"",INDEX(AD:AD,MATCH(ROWS($AH$15:AH146),AH:AH,0))) -> 
E147: Follow-Up After Hospitalization for Mental Illness* (30-day) | Q147: 47.25 | R147: 0 | S147: 0 | U147: 6 | V147: 0 | W147: 0 | AB147: 133 | AC147: 2 | AF147: =AF146+IF(COUNTIF($AC$15:AC147,AC147)>1,0,1) -> 2 | AG147: =IF(ROWS(AF$15:AF147)>MAX(AF:AF),"",INDEX(AC:AC,MATCH(ROWS(AF$15:AF147),AF:AF,0))) ->  | AH147: =IF(AD147="",AH146,AH146+IF(COUNTIF($AD$15:AD147,AD147)>1,0,1)) -> 0 | AI147: =IF(ROWS($AH$15:AH147)>MAX(AH:AH),"",INDEX(AD:AD,MATCH(ROWS($AH$15:AH147),AH:AH,0))) -> 
C148: 0469 | D148: HCA/TJC | E148: PC-01: Elective Delivery | Q148: 47.25 | R148: 0 | S148: 0 | U148: 6 | V148: 0 | W148: 0 | AB148: 134 | AC148: 2 | AF148: =AF147+IF(COUNTIF($AC$15:AC148,AC148)>1,0,1) -> 2 | AG148: =IF(ROWS(AF$15:AF148)>MAX(AF:AF),"",INDEX(AC:AC,MATCH(ROWS(AF$15:AF148),AF:AF,0))) ->  | AH148: =IF(AD148="",AH147,AH147+IF(COUNTIF($AD$15:AD148,AD148)>1,0,1)) -> 0 | AI148: =IF(ROWS($AH$15:AH148)>MAX(AH:AH),"",INDEX(AD:AD,MATCH(ROWS($AH$15:AH148),AH:AH,0))) -> 
C149: 0476 | D149: Prov/ CWISH/NPIC/ | E149: PC-03: Antenatal Steroids | Q149: 47.25 | R149: 0 | S149: 0 | U149: 6 | V149: 0 | W149: 0 | AB149: 135 | AC149: 3 | AF149: =AF148+IF(COUNTIF($AC$15:AC149,AC149)>1,0,1) -> 3 | AG149: =IF(ROWS(AF$15:AF149)>MAX(AF:AF),"",INDEX(AC:AC,MATCH(ROWS(AF$15:AF149),AF:AF,0))) ->  | AH149: =IF(AD149="",AH148,AH148+IF(COUNTIF($AD$15:AD149,AD149)>1,0,1)) -> 0 | AI149: =IF(ROWS($AH$15:AH149)>MAX(AH:AH),"",INDEX(AD:AD,MATCH(ROWS($AH$15:AH149),AH:AH,0))) -> 
C150: 0018 | D150: NCQA | E150: Controlling High Blood Pressure*,** | Q150: 47.25 | R150: 0 | S150: 0 | U150: 6 | V150: 0 | W150: 0 | AB150: 136 | AC150: 3 | AF150: =AF149+IF(COUNTIF($AC$15:AC150,AC150)>1,0,1) -> 3 | AG150: =IF(ROWS(AF$15:AF150)>MAX(AF:AF),"",INDEX(AC:AC,MATCH(ROWS(AF$15:AF150),AF:AF,0))) ->  | AH150: =IF(AD150="",AH149,AH149+IF(COUNTIF($AD$15:AD150,AD150)>1,0,1)) -> 0 | AI150: =IF(ROWS($AH$15:AH150)>MAX(AH:AH),"",INDEX(AD:AD,MATCH(ROWS($AH$15:AH150),AH:AH,0))) -> 
C151: 0063 | D151: NCQA | E151: Comprehensive Diabetes Care: LDL-C Screening*,** | Q151: 47.25 | R151: 0 | S151: 0 | U151: 6 | V151: 0 | W151: 0 | AB151: 137 | AC151: 3 | AF151: =AF150+IF(COUNTIF($AC$15:AC151,AC151)>1,0,1) -> 3 | AG151: =IF(ROWS(AF$15:AF151)>MAX(AF:AF),"",INDEX(AC:AC,MATCH(ROWS(AF$15:AF151),AF:AF,0))) ->  | AH151: =IF(AD151="",AH150,AH150+IF(COUNTIF($AD$15:AD151,AD151)>1,0,1)) -> 0 | AI151: =IF(ROWS($AH$15:AH151)>MAX(AH:AH),"",INDEX(AD:AD,MATCH(ROWS($AH$15:AH151),AH:AH,0))) -> 
C152: 0403 | D152: NCQA | E152: Annual HIV/AIDS Medical Visit*( 90 days) | Q152: 47.25 | R152: 0 | S152: 0 | U152: 6 | V152: 0 | W152: 0 | AB152: 138 | AC152: 3 | AF152: =AF151+IF(COUNTIF($AC$15:AC152,AC152)>1,0,1) -> 3 | AG152: =IF(ROWS(AF$15:AF152)>MAX(AF:AF),"",INDEX(AC:AC,MATCH(ROWS(AF$15:AF152),AF:AF,0))) ->  | AH152: =IF(AD152="",AH151,AH151+IF(COUNTIF($AD$15:AD152,AD152)>1,0,1)) -> 0 | AI152: =IF(ROWS($AH$15:AH152)>MAX(AH:AH),"",INDEX(AD:AD,MATCH(ROWS($AH$15:AH152),AH:AH,0))) -> 
E153: Annual HIV/AIDS Medical Visit*( 180 days) | Q153: 47.25 | R153: 0 | S153: 0 | U153: 6 | V153: 0 | W153: 0 | AB153: 139 | AC153: 3 | AF153: =AF152+IF(COUNTIF($AC$15:AC153,AC153)>1,0,1) -> 3 | AG153: =IF(ROWS(AF$15:AF153)>MAX(AF:AF),"",INDEX(AC:AC,MATCH(ROWS(AF$15:AF153),AF:AF,0))) ->  | AH153: =IF(AD153="",AH152,AH152+IF(COUNTIF($AD$15:AD153,AD153)>1,0,1)) -> 0 | AI153: =IF(ROWS($AH$15:AH153)>MAX(AH:AH),"",INDEX(AD:AD,MATCH(ROWS($AH$15:AH153),AH:AH,0))) -> 
C154: 0057 | D154: NCQA | E154: Comprehensive Diabetes Care: Hemoglobin A1c Testing* | Q154: 47.25 | R154: 0 | S154: 0 | U154: 6 | V154: 0 | W154: 0 | AB154: 140 | AC154: 3 | AF154: =AF153+IF(COUNTIF($AC$15:AC154,AC154)>1,0,1) -> 3 | AG154: =IF(ROWS(AF$15:AF154)>MAX(AF:AF),"",INDEX(AC:AC,MATCH(ROWS(AF$15:AF154),AF:AF,0))) ->  | AH154: =IF(AD154="",AH153,AH153+IF(COUNTIF($AD$15:AD154,AD154)>1,0,1)) -> 0 | AI154: =IF(ROWS($AH$15:AH154)>MAX(AH:AH),"",INDEX(AD:AD,MATCH(ROWS($AH$15:AH154),AH:AH,0))) -> 
C155: 0105 | D155: NCQA | E155: Antidepressant Medication Management* (Acute Phase) | Q155: 47.25 | R155: 0 | S155: 0 | U155: 6 | V155: 0 | W155: 0 | AB155: 141 | AC155: 3 | AF155: =AF154+IF(COUNTIF($AC$15:AC155,AC155)>1,0,1) -> 3 | AG155: =IF(ROWS(AF$15:AF155)>MAX(AF:AF),"",INDEX(AC:AC,MATCH(ROWS(AF$15:AF155),AF:AF,0))) ->  | AH155: =IF(AD155="",AH154,AH154+IF(COUNTIF($AD$15:AD155,AD155)>1,0,1)) -> 0 | AI155: =IF(ROWS($AH$15:AH155)>MAX(AH:AH),"",INDEX(AD:AD,MATCH(ROWS($AH$15:AH155),AH:AH,0))) -> 
E156: Antidepressant Medication Management* (Continuation Phase) | Q156: 47.25 | R156: 0 | S156: 0 | U156: 6 | V156: 0 | W156: 0 | AB156: 142 | AC156: 3 | AF156: =AF155+IF(COUNTIF($AC$15:AC156,AC156)>1,0,1) -> 3 | AG156: =IF(ROWS(AF$15:AF156)>MAX(AF:AF),"",INDEX(AC:AC,MATCH(ROWS(AF$15:AF156),AF:AF,0))) ->  | AH156: =IF(AD156="",AH155,AH155+IF(COUNTIF($AD$15:AD156,AD156)>1,0,1)) -> 0 | AI156: =IF(ROWS($AH$15:AH156)>MAX(AH:AH),"",INDEX(AD:AD,MATCH(ROWS($AH$15:AH156),AH:AH,0))) -> 
C157: NA | D157: CMS-QMHAG | E157: Adherence to Antipsychotics for Individuals with Schizophrenia*,** | Q157: 47.25 | R157: 0 | S157: 0 | U157: 6 | V157: 0 | W157: =IF(ISBLANK(V157),INDEX($Y$15:$Y$21,MATCH($U157,$X$15:$X$21,0)),IF(V157+INDEX($Y$15:$Y$21,MATCH($U157,$X$15:$X$21,0))>1,1,0)) -> 0 | AB157: 143 | AC157: 3 | AF157: =AF156+IF(COUNTIF($AC$15:AC157,AC157)>1,0,1) -> 3 | AG157: =IF(ROWS(AF$15:AF157)>MAX(AF:AF),"",INDEX(AC:AC,MATCH(ROWS(AF$15:AF157),AF:AF,0))) ->  | AH157: =IF(AD157="",AH156,AH156+IF(COUNTIF($AD$15:AD157,AD157)>1,0,1)) -> 0 | AI157: =IF(ROWS($AH$15:AH157)>MAX(AH:AH),"",INDEX(AD:AD,MATCH(ROWS($AH$15:AH157),AH:AH,0))) -> 
C158: 0021 | D158: NCQA | E158: Annual Monitoring for Patients on Persistent Medications*.** | Q158: 47.25 | R158: 0 | S158: 0 | U158: 6 | V158: 0 | W158: 0 | AB158: 144 | AC158: 3 | AF158: =AF157+IF(COUNTIF($AC$15:AC158,AC158)>1,0,1) -> 3 | AG158: =IF(ROWS(AF$15:AF158)>MAX(AF:AF),"",INDEX(AC:AC,MATCH(ROWS(AF$15:AF158),AF:AF,0))) ->  | AH158: =IF(AD158="",AH157,AH157+IF(COUNTIF($AD$15:AD158,AD158)>1,0,1)) -> 0 | AI158: =IF(ROWS($AH$15:AH158)>MAX(AH:AH),"",INDEX(AD:AD,MATCH(ROWS($AH$15:AH158),AH:AH,0))) -> 
E159: Annual monitoring for patients on (ACE) or (ARB) | Q159: 47.25 | R159: 0 | S159: 0 | U159: 6 | V159: 0 | W159: 0 | AB159: 145 | AC159: 3 | AF159: =AF158+IF(COUNTIF($AC$15:AC159,AC159)>1,0,1) -> 3 | AG159: =IF(ROWS(AF$15:AF159)>MAX(AF:AF),"",INDEX(AC:AC,MATCH(ROWS(AF$15:AF159),AF:AF,0))) ->  | AH159: =IF(AD159="",AH158,AH158+IF(COUNTIF($AD$15:AD159,AD159)>1,0,1)) -> 0 | AI159: =IF(ROWS($AH$15:AH159)>MAX(AH:AH),"",INDEX(AD:AD,MATCH(ROWS($AH$15:AH159),AH:AH,0))) -> 
E160: Annual monitoring for patients on persistent medications - Digoxin*. ** | Q160: 47.25 | R160: 0 | S160: 0 | U160: 6 | V160: 0 | W160: 0 | AB160: 146 | AC160: 3 | AF160: =AF159+IF(COUNTIF($AC$15:AC160,AC160)>1,0,1) -> 3 | AG160: =IF(ROWS(AF$15:AF160)>MAX(AF:AF),"",INDEX(AC:AC,MATCH(ROWS(AF$15:AF160),AF:AF,0))) ->  | AH160: =IF(AD160="",AH159,AH159+IF(COUNTIF($AD$15:AD160,AD160)>1,0,1)) -> 0 | AI160: =IF(ROWS($AH$15:AH160)>MAX(AH:AH),"",INDEX(AD:AD,MATCH(ROWS($AH$15:AH160),AH:AH,0))) -> 
E161: Annual monitoring for patients on persistent medications - Diuretic*. ** | Q161: 47.25 | R161: 0 | S161: 0 | U161: 6 | V161: 0 | W161: 0 | AB161: 147 | AC161: 3 | AF161: =AF160+IF(COUNTIF($AC$15:AC161,AC161)>1,0,1) -> 3 | AG161: =IF(ROWS(AF$15:AF161)>MAX(AF:AF),"",INDEX(AC:AC,MATCH(ROWS(AF$15:AF161),AF:AF,0))) ->  | AH161: =IF(AD161="",AH160,AH160+IF(COUNTIF($AD$15:AD161,AD161)>1,0,1)) -> 0 | AI161: =IF(ROWS($AH$15:AH161)>MAX(AH:AH),"",INDEX(AD:AD,MATCH(ROWS($AH$15:AH161),AH:AH,0))) -> 
E162: Annual monitoring for patients on persistent medications - Anticonvulsant*. ** | Q162: 47.25 | R162: 0 | S162: 0 | U162: 6 | V162: 0 | W162: 0 | AB162: 148 | AC162: 3 | AF162: =AF161+IF(COUNTIF($AC$15:AC162,AC162)>1,0,1) -> 3 | AG162: =IF(ROWS(AF$15:AF162)>MAX(AF:AF),"",INDEX(AC:AC,MATCH(ROWS(AF$15:AF162),AF:AF,0))) ->  | AH162: =IF(AD162="",AH161,AH161+IF(COUNTIF($AD$15:AD162,AD162)>1,0,1)) -> 0 | AI162: =IF(ROWS($AH$15:AH162)>MAX(AH:AH),"",INDEX(AD:AD,MATCH(ROWS($AH$15:AH162),AH:AH,0))) -> 
C163: 0006 & 0007 | D163: AHRQ & NCQA | E163: CAHPS® Health Plan Survey v 4.0—Adult Questionnaire with CAHPS® Health Plan Survey* | Q163: 47.25 | R163: 0 | S163: 0 | U163: 6 | V163: 0 | W163: 0 | AB163: 149 | AC163: 3 | AF163: =AF162+IF(COUNTIF($AC$15:AC163,AC163)>1,0,1) -> 3 | AG163: =IF(ROWS(AF$15:AF163)>MAX(AF:AF),"",INDEX(AC:AC,MATCH(ROWS(AF$15:AF163),AF:AF,0))) ->  | AH163: =IF(AD163="",AH162,AH162+IF(COUNTIF($AD$15:AD163,AD163)>1,0,1)) -> 0 | AI163: =IF(ROWS($AH$15:AH163)>MAX(AH:AH),"",INDEX(AD:AD,MATCH(ROWS($AH$15:AH163),AH:AH,0))) -> 
C164: 648 | D164: AMA-PCPI | E164: Care Transition–Transition Record Transmitted to Health Care Professional | Q164: 47.25 | R164: 0 | S164: 0 | U164: 6 | V164: =IF($F$126="Yes",1,0) -> 0 | W164: 0 | AB164: 150 | AC164: 3 | AF164: =AF163+IF(COUNTIF($AC$15:AC164,AC164)>1,0,1) -> 3 | AG164: =IF(ROWS(AF$15:AF164)>MAX(AF:AF),"",INDEX(AC:AC,MATCH(ROWS(AF$15:AF164),AF:AF,0))) ->  | AH164: =IF(AD164="",AH163,AH163+IF(COUNTIF($AD$15:AD164,AD164)>1,0,1)) -> 0 | AI164: =IF(ROWS($AH$15:AH164)>MAX(AH:AH),"",INDEX(AD:AD,MATCH(ROWS($AH$15:AH164),AH:AH,0))) -> 
C165: 0004 | D165: NCQA | E165: Initiation and Engagement of Alcohol and Other Drug Dependence Treatment*,** | Q165: 47.25 | R165: 0 | S165: 0 | U165: 6 | V165: 0 | W165: 0 | AB165: 151 | AC165: 3 | AF165: =AF164+IF(COUNTIF($AC$15:AC165,AC165)>1,0,1) -> 3 | AG165: =IF(ROWS(AF$15:AF165)>MAX(AF:AF),"",INDEX(AC:AC,MATCH(ROWS(AF$15:AF165),AF:AF,0))) ->  | AH165: =IF(AD165="",AH164,AH164+IF(COUNTIF($AD$15:AD165,AD165)>1,0,1)) -> 0 | AI165: =IF(ROWS($AH$15:AH165)>MAX(AH:AH),"",INDEX(AD:AD,MATCH(ROWS($AH$15:AH165),AH:AH,0))) -> 
C166: 1517 | D166: NCQA | E166: Prenatal and Postpartum Care: Postpartum Care Rate* | Q166: 47.25 | R166: 0 | S166: 0 | U166: 6 | V166: 0 | W166: 0 | AB166: 152 | AC166: 3 | AF166: =AF165+IF(COUNTIF($AC$15:AC166,AC166)>1,0,1) -> 3 | AG166: =IF(ROWS(AF$15:AF166)>MAX(AF:AF),"",INDEX(AC:AC,MATCH(ROWS(AF$15:AF166),AF:AF,0))) ->  | AH166: =IF(AD166="",AH165,AH165+IF(COUNTIF($AD$15:AD166,AD166)>1,0,1)) -> 0 | AI166: =IF(ROWS($AH$15:AH166)>MAX(AH:AH),"",INDEX(AD:AD,MATCH(ROWS($AH$15:AH166),AH:AH,0))) -> 
Q167: 15 | U167: 6 | V167: 0 | W167: 0 | AB167: 153 | AC167: 3 | AF167: =AF166+IF(COUNTIF($AC$15:AC167,AC167)>1,0,1) -> 3 | AG167: =IF(ROWS(AF$15:AF167)>MAX(AF:AF),"",INDEX(AC:AC,MATCH(ROWS(AF$15:AF167),AF:AF,0))) ->  | AH167: =IF(AD167="",AH166,AH166+IF(COUNTIF($AD$15:AD167,AD167)>1,0,1)) -> 0 | AI167: =IF(ROWS($AH$15:AH167)>MAX(AH:AH),"",INDEX(AD:AD,MATCH(ROWS($AH$15:AH167),AH:AH,0))) -> 
C168: Second Component: Measures for Child Population | Q168: 15.75 | U168: 6 | V168: 0 | W168: 0 | AB168: 154 | AC168: 3 | AF168: =AF167+IF(COUNTIF($AC$15:AC168,AC168)>1,0,1) -> 3 | AG168: =IF(ROWS(AF$15:AF168)>MAX(AF:AF),"",INDEX(AC:AC,MATCH(ROWS(AF$15:AF168),AF:AF,0))) ->  | AH168: =IF(AD168="",AH167,AH167+IF(COUNTIF($AD$15:AD168,AD168)>1,0,1)) -> 0 | AI168: =IF(ROWS($AH$15:AH168)>MAX(AH:AH),"",INDEX(AD:AD,MATCH(ROWS($AH$15:AH168),AH:AH,0))) -> 
C169: DY4 Measurement Period: | E169: =AL20 ->  | Q169: 15 | U169: 6 | V169: 0 | W169: 0 | AB169: 155 | AC169: 3 | AF169: =AF168+IF(COUNTIF($AC$15:AC169,AC169)>1,0,1) -> 3 | AG169: =IF(ROWS(AF$15:AF169)>MAX(AF:AF),"",INDEX(AC:AC,MATCH(ROWS(AF$15:AF169),AF:AF,0))) ->  | AH169: =IF(AD169="",AH168,AH168+IF(COUNTIF($AD$15:AD169,AD169)>1,0,1)) -> 0 | AI169: =IF(ROWS($AH$15:AH169)>MAX(AH:AH),"",INDEX(AD:AD,MATCH(ROWS($AH$15:AH169),AH:AH,0))) -> 
Q170: 15 | U170: 6 | V170: 0 | W170: 0 | AB170: 156 | AC170: 3 | AF170: =AF169+IF(COUNTIF($AC$15:AC170,AC170)>1,0,1) -> 3 | AG170: =IF(ROWS(AF$15:AF170)>MAX(AF:AF),"",INDEX(AC:AC,MATCH(ROWS(AF$15:AF170),AF:AF,0))) ->  | AH170: =IF(AD170="",AH169,AH169+IF(COUNTIF($AD$15:AD170,AD170)>1,0,1)) -> 0 | AI170: =IF(ROWS($AH$15:AH170)>MAX(AH:AH),"",INDEX(AD:AD,MATCH(ROWS($AH$15:AH170),AH:AH,0))) -> 
C171: NQF # | D171: Measure Steward | E171: Measure Name | H171: Provider Numerator | I171: Provider Denominator | J171: Provider Rate | K171: If not reporting measure, please provide an explanation of why the measure is not being reported. | M171: Additional information on measures not reported: | Q171: 30 | U171: 6 | V171: 0 | W171: 0 | AB171: 157 | AC171: 3 | AF171: =AF170+IF(COUNTIF($AC$15:AC171,AC171)>1,0,1) -> 3 | AG171: =IF(ROWS(AF$15:AF171)>MAX(AF:AF),"",INDEX(AC:AC,MATCH(ROWS(AF$15:AF171),AF:AF,0))) ->  | AH171: =IF(AD171="",AH170,AH170+IF(COUNTIF($AD$15:AD171,AD171)>1,0,1)) -> 0 | AI171: =IF(ROWS($AH$15:AH171)>MAX(AH:AH),"",INDEX(AD:AD,MATCH(ROWS($AH$15:AH171),AH:AH,0))) -> 
C172: 0108 | D172: NCQA | E172: Follow-Up Care for Children Prescribed Attention Deficit Hyperactivity Disorder*,** | J172: =IFERROR(H172/I172,"") ->  | Q172: 47.25 | R172: =W172*2 -> 0 | S172: =W172*(IF(COUNTBLANK(H172:I172)=2,IF(LEN(TRIM(K172))>0,1,0)+IF(LEN(TRIM(M172))>0,1,0),COUNTA(H172:I172))) -> 0 | U172: 6 | V172: 0 | W172: 0 | AB172: 158 | AC172: 3 | AF172: =AF171+IF(COUNTIF($AC$15:AC172,AC172)>1,0,1) -> 3 | AG172: =IF(ROWS(AF$15:AF172)>MAX(AF:AF),"",INDEX(AC:AC,MATCH(ROWS(AF$15:AF172),AF:AF,0))) ->  | AH172: =IF(AD172="",AH171,AH171+IF(COUNTIF($AD$15:AD172,AD172)>1,0,1)) -> 0 | AI172: =IF(ROWS($AH$15:AH172)>MAX(AH:AH),"",INDEX(AD:AD,MATCH(ROWS($AH$15:AH172),AH:AH,0))) -> 
E173: Initiation Phase | J173: =IFERROR(H173/I173,"") ->  | Q173: 47.25 | R173: 0 | S173: 0 | U173: 6 | V173: 0 | W173: 0 | AB173: 159 | AC173: 3 | AF173: =AF172+IF(COUNTIF($AC$15:AC173,AC173)>1,0,1) -> 3 | AG173: =IF(ROWS(AF$15:AF173)>MAX(AF:AF),"",INDEX(AC:AC,MATCH(ROWS(AF$15:AF173),AF:AF,0))) ->  | AH173: =IF(AD173="",AH172,AH172+IF(COUNTIF($AD$15:AD173,AD173)>1,0,1)) -> 0 | AI173: =IF(ROWS($AH$15:AH173)>MAX(AH:AH),"",INDEX(AD:AD,MATCH(ROWS($AH$15:AH173),AH:AH,0))) -> 
E174: Continuation and Maintenance Phase | Q174: 47.25 | R174: 0 | S174: 0 | U174: 6 | V174: 0 | W174: 0 | AB174: 160 | AC174: 3 | AF174: =AF173+IF(COUNTIF($AC$15:AC174,AC174)>1,0,1) -> 3 | AG174: =IF(ROWS(AF$15:AF174)>MAX(AF:AF),"",INDEX(AC:AC,MATCH(ROWS(AF$15:AF174),AF:AF,0))) ->  | AH174: =IF(AD174="",AH173,AH173+IF(COUNTIF($AD$15:AD174,AD174)>1,0,1)) -> 0 | AI174: =IF(ROWS($AH$15:AH174)>MAX(AH:AH),"",INDEX(AD:AD,MATCH(ROWS($AH$15:AH174),AH:AH,0))) -> 
C175: NA | D175: NCQA | E175: Ambulatory Care - Emergency Department (ED) Visits** (Overall) | Q175: 47.25 | R175: 0 | S175: 0 | U175: 6 | V175: 0 | W175: 0 | AB175: 161 | AC175: 3 | AF175: =AF174+IF(COUNTIF($AC$15:AC175,AC175)>1,0,1) -> 3 | AG175: =IF(ROWS(AF$15:AF175)>MAX(AF:AF),"",INDEX(AC:AC,MATCH(ROWS(AF$15:AF175),AF:AF,0))) ->  | AH175: =IF(AD175="",AH174,AH174+IF(COUNTIF($AD$15:AD175,AD175)>1,0,1)) -> 0 | AI175: =IF(ROWS($AH$15:AH175)>MAX(AH:AH),"",INDEX(AD:AD,MATCH(ROWS($AH$15:AH175),AH:AH,0))) -> 
E176: Ambulatory Care - Emergency Department (ED) Visits** (less than 1 year of age) | Q176: 47.25 | R176: 0 | S176: 0 | U176: 6 | V176: 0 | W176: 0 | AB176: 162 | AC176: 3 | AF176: =AF175+IF(COUNTIF($AC$15:AC176,AC176)>1,0,1) -> 3 | AG176: =IF(ROWS(AF$15:AF176)>MAX(AF:AF),"",INDEX(AC:AC,MATCH(ROWS(AF$15:AF176),AF:AF,0))) ->  | AH176: =IF(AD176="",AH175,AH175+IF(COUNTIF($AD$15:AD176,AD176)>1,0,1)) -> 0 | AI176: =IF(ROWS($AH$15:AH176)>MAX(AH:AH),"",INDEX(AD:AD,MATCH(ROWS($AH$15:AH176),AH:AH,0))) -> 
E177: Ambulatory Care - Emergency Department (ED) Visits** (1-9 years of age) | Q177: 47.25 | R177: 0 | S177: 0 | U177: 6 | V177: 0 | W177: 0 | AB177: 163 | AC177: 3 | AF177: =AF176+IF(COUNTIF($AC$15:AC177,AC177)>1,0,1) -> 3 | AG177: =IF(ROWS(AF$15:AF177)>MAX(AF:AF),"",INDEX(AC:AC,MATCH(ROWS(AF$15:AF177),AF:AF,0))) ->  | AH177: =IF(AD177="",AH176,AH176+IF(COUNTIF($AD$15:AD177,AD177)>1,0,1)) -> 0 | AI177: =IF(ROWS($AH$15:AH177)>MAX(AH:AH),"",INDEX(AD:AD,MATCH(ROWS($AH$15:AH177),AH:AH,0))) -> 
E178: Ambulatory Care - Emergency Department (ED) Visits** (10-19 years of age) | Q178: 47.25 | R178: 0 | S178: 0 | U178: 6 | V178: 0 | W178: 0 | AB178: 164 | AC178: 3 | AF178: =AF177+IF(COUNTIF($AC$15:AC178,AC178)>1,0,1) -> 3 | AG178: =IF(ROWS(AF$15:AF178)>MAX(AF:AF),"",INDEX(AC:AC,MATCH(ROWS(AF$15:AF178),AF:AF,0))) ->  | AH178: =IF(AD178="",AH177,AH177+IF(COUNTIF($AD$15:AD178,AD178)>1,0,1)) -> 0 | AI178: =IF(ROWS($AH$15:AH178)>MAX(AH:AH),"",INDEX(AD:AD,MATCH(ROWS($AH$15:AH178),AH:AH,0))) -> 
C179: NA | D179: NCQA | E179: Adolescent Well-Care Visit** | Q179: 47.25 | R179: 0 | S179: 0 | U179: 6 | V179: 0 | W179: 0 | AB179: 165 | AC179: 3 | AF179: =AF178+IF(COUNTIF($AC$15:AC179,AC179)>1,0,1) -> 3 | AG179: =IF(ROWS(AF$15:AF179)>MAX(AF:AF),"",INDEX(AC:AC,MATCH(ROWS(AF$15:AF179),AF:AF,0))) ->  | AH179: =IF(AD179="",AH178,AH178+IF(COUNTIF($AD$15:AD179,AD179)>1,0,1)) -> 0 | AI179: =IF(ROWS($AH$15:AH179)>MAX(AH:AH),"",INDEX(AD:AD,MATCH(ROWS($AH$15:AH179),AH:AH,0))) -> 
C180: NA | D180: AMA-PCPI | E180: Behavioral Health Risk Assessment (for Pregnant Women)* | Q180: 47.25 | R180: 0 | S180: 0 | U180: 6 | V180: 0 | W180: 0 | AB180: 166 | AC180: 3 | AF180: =AF179+IF(COUNTIF($AC$15:AC180,AC180)>1,0,1) -> 3 | AG180: =IF(ROWS(AF$15:AF180)>MAX(AF:AF),"",INDEX(AC:AC,MATCH(ROWS(AF$15:AF180),AF:AF,0))) ->  | AH180: =IF(AD180="",AH179,AH179+IF(COUNTIF($AD$15:AD180,AD180)>1,0,1)) -> 0 | AI180: =IF(ROWS($AH$15:AH180)>MAX(AH:AH),"",INDEX(AD:AD,MATCH(ROWS($AH$15:AH180),AH:AH,0))) -> 
C181: NA | D181: NCQA | E181: Child and Adolescents’ Access to Primary Care Practitioners*,** | Q181: 47.25 | R181: 0 | S181: 0 | U181: 6 | V181: 0 | W181: 0 | AB181: 167 | AC181: 3 | AF181: =AF180+IF(COUNTIF($AC$15:AC181,AC181)>1,0,1) -> 3 | AG181: =IF(ROWS(AF$15:AF181)>MAX(AF:AF),"",INDEX(AC:AC,MATCH(ROWS(AF$15:AF181),AF:AF,0))) ->  | AH181: =IF(AD181="",AH180,AH180+IF(COUNTIF($AD$15:AD181,AD181)>1,0,1)) -> 0 | AI181: =IF(ROWS($AH$15:AH181)>MAX(AH:AH),"",INDEX(AD:AD,MATCH(ROWS($AH$15:AH181),AH:AH,0))) -> 
C182: 0033 | D182: NCQA | E182: Chlamydia Screening in Women*,** | Q182: 47.25 | R182: 0 | S182: 0 | U182: 6 | V182: 0 | W182: 0 | AB182: 168 | AC182: 3 | AF182: =AF181+IF(COUNTIF($AC$15:AC182,AC182)>1,0,1) -> 3 | AG182: =IF(ROWS(AF$15:AF182)>MAX(AF:AF),"",INDEX(AC:AC,MATCH(ROWS(AF$15:AF182),AF:AF,0))) ->  | AH182: =IF(AD182="",AH181,AH181+IF(COUNTIF($AD$15:AD182,AD182)>1,0,1)) -> 0 | AI182: =IF(ROWS($AH$15:AH182)>MAX(AH:AH),"",INDEX(AD:AD,MATCH(ROWS($AH$15:AH182),AH:AH,0))) -> 
C183: 0038 | D183: NCQA | E183: Childhood Immunization Status*,** | Q183: 47.25 | R183: 0 | S183: 0 | U183: 6 | V183: 0 | W183: 0 | AB183: 169 | AC183: 3 | AF183: =AF182+IF(COUNTIF($AC$15:AC183,AC183)>1,0,1) -> 3 | AG183: =IF(ROWS(AF$15:AF183)>MAX(AF:AF),"",INDEX(AC:AC,MATCH(ROWS(AF$15:AF183),AF:AF,0))) ->  | AH183: =IF(AD183="",AH182,AH182+IF(COUNTIF($AD$15:AD183,AD183)>1,0,1)) -> 0 | AI183: =IF(ROWS($AH$15:AH183)>MAX(AH:AH),"",INDEX(AD:AD,MATCH(ROWS($AH$15:AH183),AH:AH,0))) -> 
C184: 0139 | D184: CDC | E184: Pediatric Central-line Associated Bloodstream Infections–Neonatal Intensive Care Unit | Q184: 47.25 | R184: 0 | S184: 0 | U184: 6 | V184: 0 | W184: 0 | AB184: 170 | AC184: 3 | AF184: =AF183+IF(COUNTIF($AC$15:AC184,AC184)>1,0,1) -> 3 | AG184: =IF(ROWS(AF$15:AF184)>MAX(AF:AF),"",INDEX(AC:AC,MATCH(ROWS(AF$15:AF184),AF:AF,0))) ->  | AH184: =IF(AD184="",AH183,AH183+IF(COUNTIF($AD$15:AD184,AD184)>1,0,1)) -> 0 | AI184: =IF(ROWS($AH$15:AH184)>MAX(AH:AH),"",INDEX(AD:AD,MATCH(ROWS($AH$15:AH184),AH:AH,0))) -> 
C185: NA | D185: NCQA | E185: Consumer Assessment of Healthcare Providers and Systems® CAHPS 5.0H (Child Version* | Q185: 47.25 | R185: 0 | S185: 0 | U185: 6 | V185: 0 | W185: 0 | AB185: 171 | AC185: 3 | AF185: =AF184+IF(COUNTIF($AC$15:AC185,AC185)>1,0,1) -> 3 | AG185: =IF(ROWS(AF$15:AF185)>MAX(AF:AF),"",INDEX(AC:AC,MATCH(ROWS(AF$15:AF185),AF:AF,0))) ->  | AH185: =IF(AD185="",AH184,AH184+IF(COUNTIF($AD$15:AD185,AD185)>1,0,1)) -> 0 | AI185: =IF(ROWS($AH$15:AH185)>MAX(AH:AH),"",INDEX(AD:AD,MATCH(ROWS($AH$15:AH185),AH:AH,0))) -> 
C186: 0471 | D186: CMQCC | E186: Cesarean Rate for Nulliparous Singleton Vertex | Q186: 47.25 | R186: 0 | S186: 0 | U186: 6 | V186: 0 | W186: 0 | AB186: 172 | AC186: 3 | AF186: =AF185+IF(COUNTIF($AC$15:AC186,AC186)>1,0,1) -> 3 | AG186: =IF(ROWS(AF$15:AF186)>MAX(AF:AF),"",INDEX(AC:AC,MATCH(ROWS(AF$15:AF186),AF:AF,0))) ->  | AH186: =IF(AD186="",AH185,AH185+IF(COUNTIF($AD$15:AD186,AD186)>1,0,1)) -> 0 | AI186: =IF(ROWS($AH$15:AH186)>MAX(AH:AH),"",INDEX(AD:AD,MATCH(ROWS($AH$15:AH186),AH:AH,0))) -> 
C187: 1448 | D187: OHSU | E187: Developmental Screening in the First Three Years of Life* | Q187: 47.25 | R187: 0 | S187: 0 | U187: 6 | V187: 0 | W187: 0 | AB187: 173 | AC187: 3 | AF187: =AF186+IF(COUNTIF($AC$15:AC187,AC187)>1,0,1) -> 3 | AG187: =IF(ROWS(AF$15:AF187)>MAX(AF:AF),"",INDEX(AC:AC,MATCH(ROWS(AF$15:AF187),AF:AF,0))) ->  | AH187: =IF(AD187="",AH186,AH186+IF(COUNTIF($AD$15:AD187,AD187)>1,0,1)) -> 0 | AI187: =IF(ROWS($AH$15:AH187)>MAX(AH:AH),"",INDEX(AD:AD,MATCH(ROWS($AH$15:AH187),AH:AH,0))) -> 
E188: Indicator 1: Screened by 12 Months of Age | Q188: 47.25 | R188: 0 | S188: 0 | U188: 6 | V188: 0 | W188: 0 | AB188: 174 | AC188: 3 | AF188: =AF187+IF(COUNTIF($AC$15:AC188,AC188)>1,0,1) -> 3 | AG188: =IF(ROWS(AF$15:AF188)>MAX(AF:AF),"",INDEX(AC:AC,MATCH(ROWS(AF$15:AF188),AF:AF,0))) ->  | AH188: =IF(AD188="",AH187,AH187+IF(COUNTIF($AD$15:AD188,AD188)>1,0,1)) -> 0 | AI188: =IF(ROWS($AH$15:AH188)>MAX(AH:AH),"",INDEX(AD:AD,MATCH(ROWS($AH$15:AH188),AH:AH,0))) -> 
E189: Indicator 2: Screened by 24 Months of Age | Q189: 47.25 | R189: 0 | S189: 0 | U189: 6 | V189: 0 | W189: 0 | AB189: 175 | AC189: 3 | AF189: =AF188+IF(COUNTIF($AC$15:AC189,AC189)>1,0,1) -> 3 | AG189: =IF(ROWS(AF$15:AF189)>MAX(AF:AF),"",INDEX(AC:AC,MATCH(ROWS(AF$15:AF189),AF:AF,0))) ->  | AH189: =IF(AD189="",AH188,AH188+IF(COUNTIF($AD$15:AD189,AD189)>1,0,1)) -> 0 | AI189: =IF(ROWS($AH$15:AH189)>MAX(AH:AH),"",INDEX(AD:AD,MATCH(ROWS($AH$15:AH189),AH:AH,0))) -> 
E190: Indicator 3: Screened by 36 Months of Age | Q190: 47.25 | R190: 0 | S190: 0 | U190: 6 | V190: 0 | W190: 0 | AB190: 176 | AC190: 3 | AF190: =AF189+IF(COUNTIF($AC$15:AC190,AC190)>1,0,1) -> 3 | AG190: =IF(ROWS(AF$15:AF190)>MAX(AF:AF),"",INDEX(AC:AC,MATCH(ROWS(AF$15:AF190),AF:AF,0))) ->  | AH190: =IF(AD190="",AH189,AH189+IF(COUNTIF($AD$15:AD190,AD190)>1,0,1)) -> 0 | AI190: =IF(ROWS($AH$15:AH190)>MAX(AH:AH),"",INDEX(AD:AD,MATCH(ROWS($AH$15:AH190),AH:AH,0))) -> 
C191: 1391 | D191: NCQA | E191: Frequency of Ongoing Prenatal Care* | Q191: 47.25 | R191: 0 | S191: 0 | U191: 6 | V191: 0 | W191: 0 | AB191: 177 | AC191: 3 | AF191: =AF190+IF(COUNTIF($AC$15:AC191,AC191)>1,0,1) -> 3 | AG191: =IF(ROWS(AF$15:AF191)>MAX(AF:AF),"",INDEX(AC:AC,MATCH(ROWS(AF$15:AF191),AF:AF,0))) ->  | AH191: =IF(AD191="",AH190,AH190+IF(COUNTIF($AD$15:AD191,AD191)>1,0,1)) -> 0 | AI191: =IF(ROWS($AH$15:AH191)>MAX(AH:AH),"",INDEX(AD:AD,MATCH(ROWS($AH$15:AH191),AH:AH,0))) -> 
E192: •<21 percent of expected visits | Q192: 47.25 | R192: 0 | S192: 0 | U192: 6 | V192: 0 | W192: 0 | AB192: 178 | AC192: 3 | AF192: =AF191+IF(COUNTIF($AC$15:AC192,AC192)>1,0,1) -> 3 | AG192: =IF(ROWS(AF$15:AF192)>MAX(AF:AF),"",INDEX(AC:AC,MATCH(ROWS(AF$15:AF192),AF:AF,0))) ->  | AH192: =IF(AD192="",AH191,AH191+IF(COUNTIF($AD$15:AD192,AD192)>1,0,1)) -> 0 | AI192: =IF(ROWS($AH$15:AH192)>MAX(AH:AH),"",INDEX(AD:AD,MATCH(ROWS($AH$15:AH192),AH:AH,0))) -> 
E193: •21 percent–40 percent of expected visits | Q193: 47.25 | R193: 0 | S193: 0 | U193: 6 | V193: 0 | W193: 0 | AB193: 179 | AC193: 3 | AF193: =AF192+IF(COUNTIF($AC$15:AC193,AC193)>1,0,1) -> 3 | AG193: =IF(ROWS(AF$15:AF193)>MAX(AF:AF),"",INDEX(AC:AC,MATCH(ROWS(AF$15:AF193),AF:AF,0))) ->  | AH193: =IF(AD193="",AH192,AH192+IF(COUNTIF($AD$15:AD193,AD193)>1,0,1)) -> 0 | AI193: =IF(ROWS($AH$15:AH193)>MAX(AH:AH),"",INDEX(AD:AD,MATCH(ROWS($AH$15:AH193),AH:AH,0))) -> 
E194: •41 percent–60 percent of expected visits | Q194: 47.25 | R194: 0 | S194: 0 | U194: 6 | V194: 0 | W194: 0 | AB194: 180 | AC194: 3 | AF194: =AF193+IF(COUNTIF($AC$15:AC194,AC194)>1,0,1) -> 3 | AG194: =IF(ROWS(AF$15:AF194)>MAX(AF:AF),"",INDEX(AC:AC,MATCH(ROWS(AF$15:AF194),AF:AF,0))) ->  | AH194: =IF(AD194="",AH193,AH193+IF(COUNTIF($AD$15:AD194,AD194)>1,0,1)) -> 0 | AI194: =IF(ROWS($AH$15:AH194)>MAX(AH:AH),"",INDEX(AD:AD,MATCH(ROWS($AH$15:AH194),AH:AH,0))) -> 
E195: •61 percent–80 percent of expected visits | Q195: 47.25 | R195: 0 | S195: 0 | U195: 6 | V195: 0 | W195: 0 | AB195: 181 | AC195: 3 | AF195: =AF194+IF(COUNTIF($AC$15:AC195,AC195)>1,0,1) -> 3 | AG195: =IF(ROWS(AF$15:AF195)>MAX(AF:AF),"",INDEX(AC:AC,MATCH(ROWS(AF$15:AF195),AF:AF,0))) ->  | AH195: =IF(AD195="",AH194,AH194+IF(COUNTIF($AD$15:AD195,AD195)>1,0,1)) -> 0 | AI195: =IF(ROWS($AH$15:AH195)>MAX(AH:AH),"",INDEX(AD:AD,MATCH(ROWS($AH$15:AH195),AH:AH,0))) -> 
E196: •> or =81 percent of expected visits | Q196: 47.25 | R196: 0 | S196: 0 | U196: 6 | V196: =IF($F$126="Yes",1,0) -> 0 | W196: 0 | AB196: 182 | AC196: 3 | AF196: =AF195+IF(COUNTIF($AC$15:AC196,AC196)>1,0,1) -> 3 | AG196: =IF(ROWS(AF$15:AF196)>MAX(AF:AF),"",INDEX(AC:AC,MATCH(ROWS(AF$15:AF196),AF:AF,0))) ->  | AH196: =IF(AD196="",AH195,AH195+IF(COUNTIF($AD$15:AD196,AD196)>1,0,1)) -> 0 | AI196: =IF(ROWS($AH$15:AH196)>MAX(AH:AH),"",INDEX(AD:AD,MATCH(ROWS($AH$15:AH196),AH:AH,0))) -> 
C197: 0576 | D197: NCQA | E197: Follow-up After Hospitalization for Mental Illness* | Q197: 47.25 | R197: 0 | S197: 0 | U197: 6 | V197: 0 | W197: 0 | AB197: 183 | AC197: 3 | AF197: =AF196+IF(COUNTIF($AC$15:AC197,AC197)>1,0,1) -> 3 | AG197: =IF(ROWS(AF$15:AF197)>MAX(AF:AF),"",INDEX(AC:AC,MATCH(ROWS(AF$15:AF197),AF:AF,0))) ->  | AH197: =IF(AD197="",AH196,AH196+IF(COUNTIF($AD$15:AD197,AD197)>1,0,1)) -> 0 | AI197: =IF(ROWS($AH$15:AH197)>MAX(AH:AH),"",INDEX(AD:AD,MATCH(ROWS($AH$15:AH197),AH:AH,0))) -> 
E198: Percentage of discharges for which the patient received follow-up within 30 days of discharge | Q198: 47.25 | R198: 0 | S198: 0 | U198: 6 | V198: 0 | W198: 0 | AB198: 184 | AC198: 3 | AF198: =AF197+IF(COUNTIF($AC$15:AC198,AC198)>1,0,1) -> 3 | AG198: =IF(ROWS(AF$15:AF198)>MAX(AF:AF),"",INDEX(AC:AC,MATCH(ROWS(AF$15:AF198),AF:AF,0))) ->  | AH198: =IF(AD198="",AH197,AH197+IF(COUNTIF($AD$15:AD198,AD198)>1,0,1)) -> 0 | AI198: =IF(ROWS($AH$15:AH198)>MAX(AH:AH),"",INDEX(AD:AD,MATCH(ROWS($AH$15:AH198),AH:AH,0))) -> 
E199: Percentage of discharges for which the patient received follow-up within 7 days of discharge. | Q199: 47.25 | R199: 0 | S199: 0 | U199: 6 | V199: 0 | W199: 0 | AB199: 185 | AC199: 3 | AF199: =AF198+IF(COUNTIF($AC$15:AC199,AC199)>1,0,1) -> 3 | AG199: =IF(ROWS(AF$15:AF199)>MAX(AF:AF),"",INDEX(AC:AC,MATCH(ROWS(AF$15:AF199),AF:AF,0))) ->  | AH199: =IF(AD199="",AH198,AH198+IF(COUNTIF($AD$15:AD199,AD199)>1,0,1)) -> 0 | AI199: =IF(ROWS($AH$15:AH199)>MAX(AH:AH),"",INDEX(AD:AD,MATCH(ROWS($AH$15:AH199),AH:AH,0))) -> 
C200: 1959 | D200: NCQA | E200: Human Papillomavirus (HPV) Vaccine for Female Adolescents* | Q200: 47.25 | R200: 0 | S200: 0 | U200: 6 | V200: 0 | W200: 0 | AB200: 186 | AC200: 3 | AF200: =AF199+IF(COUNTIF($AC$15:AC200,AC200)>1,0,1) -> 3 | AG200: =IF(ROWS(AF$15:AF200)>MAX(AF:AF),"",INDEX(AC:AC,MATCH(ROWS(AF$15:AF200),AF:AF,0))) ->  | AH200: =IF(AD200="",AH199,AH199+IF(COUNTIF($AD$15:AD200,AD200)>1,0,1)) -> 0 | AI200: =IF(ROWS($AH$15:AH200)>MAX(AH:AH),"",INDEX(AD:AD,MATCH(ROWS($AH$15:AH200),AH:AH,0))) -> 
C201: 1407 | D201: NCQA | E201: Immunization Status for Adolescents* | Q201: 47.25 | R201: 0 | S201: 0 | U201: 6 | V201: 0 | W201: 0 | AB201: 187 | AC201: 3 | AF201: =AF200+IF(COUNTIF($AC$15:AC201,AC201)>1,0,1) -> 3 | AG201: =IF(ROWS(AF$15:AF201)>MAX(AF:AF),"",INDEX(AC:AC,MATCH(ROWS(AF$15:AF201),AF:AF,0))) ->  | AH201: =IF(AD201="",AH200,AH200+IF(COUNTIF($AD$15:AD201,AD201)>1,0,1)) -> 0 | AI201: =IF(ROWS($AH$15:AH201)>MAX(AH:AH),"",INDEX(AD:AD,MATCH(ROWS($AH$15:AH201),AH:AH,0))) -> 
C202: 1382 | D202: CDC | E202: Live Births Weighing Less than 2,500 Grams** | Q202: 47.25 | R202: 0 | S202: 0 | U202: 6 | V202: 0 | W202: 0 | AB202: 188 | AC202: 3 | AF202: =AF201+IF(COUNTIF($AC$15:AC202,AC202)>1,0,1) -> 3 | AG202: =IF(ROWS(AF$15:AF202)>MAX(AF:AF),"",INDEX(AC:AC,MATCH(ROWS(AF$15:AF202),AF:AF,0))) ->  | AH202: =IF(AD202="",AH201,AH201+IF(COUNTIF($AD$15:AD202,AD202)>1,0,1)) -> 0 | AI202: =IF(ROWS($AH$15:AH202)>MAX(AH:AH),"",INDEX(AD:AD,MATCH(ROWS($AH$15:AH202),AH:AH,0))) -> 
... 798 more rows

Sheet DY3 Category 4 (hidden)
A1: DC_Check TPI | B1: DC TPI_RD | C1: RHP_TPI | D1: RHP | E1: TPI | F1: Provider Name | G1: Project ID | H1: Old Reporting Domain ID | I1: Mstone/RD | J1: Year | K1: Rd 1 Achieved? | L1: Rd 1 HHSC Signoff | M1: Rd 1 HHSC Comment | N1: Rd 2 Progress Update Signoff | O1: Rd 2 Achieved? | P1: Rd 2 HHSC Signoff | Q1: Rd 2 HHSC Comment | R1: Reported | S1: Measurement Period Component 1 End Date | T1: Measurement Period Component 2 End Date | U1: April Eligible | V1: Begin DY4 Comp 1 | W1: End DY4 Comp 1 | X1: Begin DY4 Comp 2 | Y1: End DY4 Comp 2
A2: =LEN(E2) -> 9 | B2: =E2&"_"&I2 -> 017624007_3 | C2: =D2&"_"&E2 -> 1_017624007 | D2: 1 | E2: 017624007 | F2: ETMC Quitman | G2: 017624002.4 | H2: 017624002.4.1 | I2: 3 | J2: 3 | K2: Yes-Completed | L2: Approved | M2: Provider submitted required documentation to support Category 4 achievement. Project 017624002.4.1 is approved and eligible for DY3 payment. | O2: Yes-Completed | P2: Previously Approved | R2: Round 1 (April) | S2: 2012-12-31 | U2: YES | V2: 2013-01-01 | W2: 2013-12-31
A3: =LEN(E3) -> 9 | B3: =E3&"_"&I3 -> 017624007_1 | C3: =D3&"_"&E3 -> 1_017624007 | D3: 1 | E3: 017624007 | F3: ETMC Quitman | G3: 017624002.4 | H3: 017624002.4.2 | I3: 1 | J3: 3 | K3: Yes-Completed | L3: Approved | M3: Provider submitted required documentation to support Category 4 achievement. Project 017624002.4.2 is approved and eligible for DY3 payment. | O3: Yes-Completed | P3: Previously Approved | R3: Round 1 (April) | S3: 2012-12-31 | U3: YES | V3: 2013-01-01 | W3: 2013-12-31
A4: 9 | B4: 017624007_2 | C4: 1_017624007 | D4: 1 | E4: 017624007 | F4: ETMC Quitman | G4: 017624002.4 | H4: 017624002.4.3 | I4: 2 | J4: 3 | K4: Yes-Completed | L4: Approved | M4: Provider submitted required documentation to support Category 4 achievement. Project 017624002.4.3 is approved and eligible for DY3 payment. | O4: Yes-Completed | P4: Previously Approved | R4: Round 1 (April) | S4: 2012-12-31 | U4: YES | V4: 2013-01-01 | W4: 2013-12-31
A5: 9 | B5: 017624007_4 | C5: 1_017624007 | D5: 1 | E5: 017624007 | F5: ETMC Quitman | G5: 017624002.4 | H5: 017624002.4.5 | I5: 4 | J5: 3 | K5: No-Not Started | L5: Did Not Report | O5: Yes-Completed | P5: Approved | Q5: Category 4 reporting domian was reviewed, and HHSC found provider submitted documentation to support achievement. Project is approved and eligible for payment. | R5: Round 2 (October) | S5: 2013-06-30 | T5: 2014-09-30 | U5: NO | V5: 2013-07-01 | W5: 2014-06-30 | X5: 2014-10-01 | Y5: 2015-09-30
A6: 9 | B6: 017624007_5 | C6: 1_017624007 | D6: 1 | E6: 017624007 | F6: ETMC Quitman | G6: 017624002.4 | H6: 017624002.4.6 | I6: 5 | J6: 3 | K6: No-Not Started | L6: Did Not Report | O6: Yes-Completed | P6: Needs More Info - Approved | Q6: Category 4 reporting domain was reviewed, and HHSC found provider submitted documentation to support achievement. Reporting domain is approved and eligible for payment. | R6: Round 2 (October) - Needs More Info | S6: 2014-09-30 | U6: NO | V6: 2014-10-01 | W6: 2015-09-30
A7: 9 | B7: 020812601_3 | C7: 1_020812601 | D7: 1 | E7: 020812601 | F7: East Texas Medical Center | G7: 020812601.4 | H7: 020812601.4.1 | I7: 3 | J7: 3 | K7: Yes-Completed | L7: Approved | M7: Provider submitted required documentation to support Category 4 achievement. Project 020812601.4.1 is approved and eligible for DY3 payment. | O7: Yes-Completed | P7: Previously Approved | R7: Round 1 (April) | S7: 2012-12-31 | U7: YES | V7: 2013-01-01 | W7: 2013-12-31
A8: 9 | B8: 020812601_1 | C8: 1_020812601 | D8: 1 | E8: 020812601 | F8: East Texas Medical Center | G8: 020812601.4 | H8: 020812601.4.2 | I8: 1 | J8: 3 | K8: Yes-Completed | L8: Approved | M8: Provider submitted required documentation to support Category 4 achievement. Project 020812601.4.2 is approved and eligible for DY3 payment. | O8: Yes-Completed | P8: Previously Approved | R8: Round 1 (April) | S8: 2012-12-31 | U8: YES | V8: 2013-01-01 | W8: 2013-12-31
A9: 9 | B9: 020812601_2 | C9: 1_020812601 | D9: 1 | E9: 020812601 | F9: East Texas Medical Center | G9: 020812601.4 | H9: 020812601.4.3 | I9: 2 | J9: 3 | K9: Yes-Completed | L9: Approved | M9: Provider submitted required documentation to support Category 4 achievement. Project 020812601.4.3 is approved and eligible for DY3 payment. | O9: Yes-Completed | P9: Previously Approved | R9: Round 1 (April) | S9: 2012-12-31 | U9: YES | V9: 2013-01-01 | W9: 2013-12-31
A10: 9 | B10: 020812601_4 | C10: 1_020812601 | D10: 1 | E10: 020812601 | F10: East Texas Medical Center | G10: 020812601.4 | H10: 020812601.4.5 | I10: 4 | J10: 3 | K10: No-Not Started | L10: Did Not Report | O10: Yes-Completed | P10: Approved | Q10: Category 4 reporting domain was reviewed, and HHSC found provider submitted documentation to support achievement. Project is approved and eligible for payment. | R10: Round 2 (October) | S10: 2013-06-30 | T10: 2014-09-30 | U10: NO | V10: 2013-07-01 | W10: 2014-06-30 | X10: 2014-10-01 | Y10: 2015-09-30
A11: 9 | B11: 020812601_5 | C11: 1_020812601 | D11: 1 | E11: 020812601 | F11: East Texas Medical Center | G11: 020812601.4 | H11: 020812601.4.6 | I11: 5 | J11: 3 | K11: No-Not Started | L11: Did Not Report | O11: Yes-Completed | P11: Needs More Info - Approved | Q11: Category 4 reporting domain was reviewed, and HHSC found provider submitted documentation to support achievement. Reporting domain is approved and eligible for payment. | R11: Round 2 (October) - Needs More Info | S11: 2014-09-30 | U11: NO | V11: 2014-10-01 | W11: 2015-09-30
A12: 9 | B12: 094095902_3 | C12: 1_094095902 | D12: 1 | E12: 094095902 | F12: The Good Shepherd Hospital dba Good Shepherd Medic | G12: 094095902.4 | H12: 094095902.4.1 | I12: 3 | J12: 3 | K12: No-Not Started | L12: Did Not Report | R12: Did Not Report | S12: 2012-12-31 | U12: YES | V12: 2013-01-01 | W12: 2013-12-31
A13: 9 | B13: 094095902_1 | C13: 1_094095902 | D13: 1 | E13: 094095902 | F13: The Good Shepherd Hospital dba Good Shepherd Medic | G13: 094095902.4 | H13: 094095902.4.2 | I13: 1 | J13: 3 | K13: No-Not Started | L13: Did Not Report | O13: Yes-Completed | P13: Approved | Q13: Category 4 reporting domain was reviewed, and HHSC found provider submitted documentation to support achievement. Project is approved and eligible for payment. | R13: Round 2 (October) | S13: 2012-12-31 | U13: YES | V13: 2013-01-01 | W13: 2013-12-31
A14: 9 | B14: 094095902_2 | C14: 1_094095902 | D14: 1 | E14: 094095902 | F14: The Good Shepherd Hospital dba Good Shepherd Medic | G14: 094095902.4 | H14: 094095902.4.3 | I14: 2 | J14: 3 | K14: No-Not Started | L14: Did Not Report | O14: Yes-Completed | P14: Approved | Q14: Category 4 reporting domain was reviewed, and HHSC found provider submitted documentation to support achievement. Project is approved and eligible for payment. | R14: Round 2 (October) | S14: 2012-12-31 | U14: YES | V14: 2013-01-01 | W14: 2013-12-31
A15: 9 | B15: 094095902_4 | C15: 1_094095902 | D15: 1 | E15: 094095902 | F15: The Good Shepherd Hospital dba Good Shepherd Medic | G15: 094095902.4 | H15: 094095902.4.5 | I15: 4 | J15: 3 | K15: No-Not Started | L15: Did Not Report | O15: Yes-Completed | P15: Not Approved | Q15: HHSC found achievement of Category 4 reporting domain is not clearly demonstrated. Provider did not report a medication management rate in accordance with the October DY3 reporting companion. Reporting domain is not approved and is no longer eligible for payment. | R15: Round 2 (October) - Not Approved | S15: 2013-09-30 | T15: DNR | U15: YES | V15: 2013-10-01 | W15: 2014-09-30 | X15: TBD | Y15: TBD
A16: 9 | B16: 094095902_5 | C16: 1_094095902 | D16: 1 | E16: 094095902 | F16: The Good Shepherd Hospital dba Good Shepherd Medic | G16: 094095902.4 | H16: 094095902.4.6 | I16: 5 | J16: 3 | K16: No-Not Started | L16: Did Not Report | O16: Yes-Completed | P16: Approved | Q16: Category 4 reporting domain was reviewed, and HHSC found provider submitted documentation to support achievement. Project is approved and eligible for payment. | R16: Round 2 (October) | S16: 2014-09-30 | U16: NO | V16: 2014-10-01 | W16: 2015-09-30
A17: 9 | B17: 094095902_6 | C17: 1_094095902 | D17: 1 | E17: 094095902 | F17: The Good Shepherd Hospital dba Good Shepherd Medic | G17: 094095902.4 | H17: 094095902.4.7 | I17: 6 | J17: 3 | K17: No-Not Started | L17: Did Not Report | O17: Yes-Completed | P17: Needs More Info - Approved | Q17: Category 4 reporting domain was reviewed, and HHSC found provider submitted documentation to support achievement. Reporting domain is approved and eligible for payment. | R17: Round 2 (October) - Needs More Info | S17: 2013-09-30 | U17: YES | V17: 2013-10-01 | W17: 2014-09-30
A18: 9 | B18: 094108002_3 | C18: 1_094108002 | D18: 1 | E18: 094108002 | F18: Mother Frances Hospital Regional Healthcare Center | G18: 094108002.4 | H18: 094108002.4.1 | I18: 3 | J18: 3 | K18: Yes-Completed | L18: Approved | M18: Provider submitted required documentation to support Category 4 achievement. Project 094108002.4.1 is approved and eligible for DY3 payment. | O18: Yes-Completed | P18: Previously Approved | R18: Round 1 (April) | S18: 2012-12-31 | U18: YES | V18: 2013-01-01 | W18: 2013-12-31
A19: 9 | B19: 094108002_1 | C19: 1_094108002 | D19: 1 | E19: 094108002 | F19: Mother Frances Hospital Regional Healthcare Center | G19: 094108002.4 | H19: 094108002.4.2 | I19: 1 | J19: 3 | K19: Yes-Completed | L19: Approved | M19: Provider submitted required documentation to support Category 4 achievement. Project 094108002.4.2 is approved and eligible for DY3 payment. | O19: Yes-Completed | P19: Previously Approved | R19: Round 1 (April) | S19: 2012-12-31 | U19: YES | V19: 2013-01-01 | W19: 2013-12-31
A20: 9 | B20: 094108002_2 | C20: 1_094108002 | D20: 1 | E20: 094108002 | F20: Mother Frances Hospital Regional Healthcare Center | G20: 094108002.4 | H20: 094108002.4.3 | I20: 2 | J20: 3 | K20: Yes-Completed | L20: Approved | M20: Provider submitted required documentation to support Category 4 achievement. Project 094108002.4.3 is approved and eligible for DY3 payment. | O20: Yes-Completed | P20: Previously Approved | R20: Round 1 (April) | S20: 2012-12-31 | U20: YES | V20: 2013-01-01 | W20: 2013-12-31
A21: 9 | B21: 094108002_4 | C21: 1_094108002 | D21: 1 | E21: 094108002 | F21: Mother Frances Hospital Regional Healthcare Center | G21: 094108002.4 | H21: 094108002.4.5 | I21: 4 | J21: 3 | K21: No-Not Started | L21: Did Not Report | O21: Yes-Completed | P21: Approved | Q21: Category 4 reporting domain was reviewed, and HHSC found provider submitted documentation to support achievement. Reporting domain is approved and eligible for payment. | R21: Round 2 (October) | S21: 2013-12-31 | T21: 2013-12-31 | U21: YES | V21: 2014-01-01 | W21: 2014-12-31 | X21: 2014-01-01 | Y21: 2014-12-31
A22: 9 | B22: 094108002_5 | C22: 1_094108002 | D22: 1 | E22: 094108002 | F22: Mother Frances Hospital Regional Healthcare Center | G22: 094108002.4 | H22: 094108002.4.6 | I22: 5 | J22: 3 | K22: No-Not Started | L22: Did Not Report | O22: Yes-Completed | P22: Needs More Info - Approved | Q22: Category 4 reporting domain was reviewed, and HHSC found provider submitted documentation to support achievement. Reporting domain is approved and eligible for payment. | R22: Round 2 (October) - Needs More Info | S22: 2013-12-31 | U22: YES | V22: 2014-01-01 | W22: 2014-12-31
A23: 9 | B23: 094127002_3 | C23: 1_094127002 | D23: 1 | E23: 094127002 | F23: East Texas Medical Center Carthage | G23: 094127002.4 | H23: 094127002.4.1 | I23: 3 | J23: 3 | K23: Yes-Completed | L23: Approved | M23: Provider submitted required documentation to support Category 4 achievement. Project 094127002.4.1 is approved and eligible for DY3 payment. | O23: Yes-Completed | P23: Previously Approved | R23: Round 1 (April) | S23: 2012-12-31 | U23: YES | V23: 2013-01-01 | W23: 2013-12-31
A24: 9 | B24: 094127002_1 | C24: 1_094127002 | D24: 1 | E24: 094127002 | F24: East Texas Medical Center Carthage | G24: 094127002.4 | H24: 094127002.4.2 | I24: 1 | J24: 3 | K24: Yes-Completed | L24: Approved | M24: Provider submitted required documentation to support Category 4 achievement. Project 094127002.4.2 is approved and eligible for DY3 payment. | O24: Yes-Completed | P24: Previously Approved | R24: Round 1 (April) | S24: 2012-12-31 | U24: YES | V24: 2013-01-01 | W24: 2013-12-31
A25: 9 | B25: 094127002_2 | C25: 1_094127002 | D25: 1 | E25: 094127002 | F25: East Texas Medical Center Carthage | G25: 094127002.4 | H25: 094127002.4.3 | I25: 2 | J25: 3 | K25: Yes-Completed | L25: Approved | M25: Provider submitted required documentation to support Category 4 achievement. Project 094127002.4.3 is approved and eligible for DY3 payment. | O25: Yes-Completed | P25: Previously Approved | R25: Round 1 (April) | S25: 2012-12-31 | U25: YES | V25: 2013-01-01 | W25: 2013-12-31
A26: 9 | B26: 094127002_4 | C26: 1_094127002 | D26: 1 | E26: 094127002 | F26: East Texas Medical Center Carthage | G26: 094127002.4 | H26: 094127002.4.5 | I26: 4 | J26: 3 | K26: No-Not Started | L26: Did Not Report | O26: Yes-Completed | P26: Approved | Q26: Category 4 reporting domain was reviewed, and HHSC found provider submitted documentation to support achievement. Reporting domain is approved and eligible for payment. | R26: Round 2 (October) | S26: 2013-06-30 | T26: 2013-06-30 | U26: YES | V26: 2013-07-01 | W26: 2014-06-30 | X26: 2013-07-01 | Y26: 2014-06-30
A27: 9 | B27: 094127002_5 | C27: 1_094127002 | D27: 1 | E27: 094127002 | F27: East Texas Medical Center Carthage | G27: 094127002.4 | H27: 094127002.4.6 | I27: 5 | J27: 3 | K27: No-Not Started | L27: Did Not Report | O27: Yes-Completed | P27: Needs More Info - Approved | Q27: Category 4 reporting domain was reviewed, and HHSC found provider submitted documentation to support achievement. Reporting domain is approved and eligible for payment. | R27: Round 2 (October) - Needs More Info | S27: 2014-09-30 | U27: NO | V27: 2014-10-01 | W27: 2015-09-30
A28: 9 | B28: 094190802_3 | C28: 1_094190802 | D28: 1 | E28: 094190802 | F28: East Texas Medical Center Fairfield dba ETMC Fairf | G28: 094190802.4 | H28: 094190802.4.1 | I28: 3 | J28: 3 | K28: Yes-Completed | L28: Approved | M28: Provider submitted required documentation to support Category 4 achievement. Project 094190802.4.1 is approved and eligible for DY3 payment. | O28: Yes-Completed | P28: Previously Approved | R28: Round 1 (April) | S28: 2012-12-31 | U28: YES | V28: 2013-01-01 | W28: 2013-12-31
A29: 9 | B29: 094190802_1 | C29: 1_094190802 | D29: 1 | E29: 094190802 | F29: East Texas Medical Center Fairfield dba ETMC Fairf | G29: 094190802.4 | H29: 094190802.4.2 | I29: 1 | J29: 3 | K29: Yes-Completed | L29: Approved | M29: Provider submitted required documentation to support Category 4 achievement. Project 094190802.4.2 is approved and eligible for DY3 payment. | O29: Yes-Completed | P29: Previously Approved | R29: Round 1 (April) | S29: 2012-12-31 | U29: YES | V29: 2013-01-01 | W29: 2013-12-31
A30: 9 | B30: 094190802_2 | C30: 1_094190802 | D30: 1 | E30: 094190802 | F30: East Texas Medical Center Fairfield dba ETMC Fairf | G30: 094190802.4 | H30: 094190802.4.3 | I30: 2 | J30: 3 | K30: Yes-Completed | L30: Approved | M30: Provider submitted required documentation to support Category 4 achievement. Project 094190802.4.3 is approved and eligible for DY3 payment. | O30: Yes-Completed | P30: Previously Approved | R30: Round 1 (April) | S30: 2012-12-31 | U30: YES | V30: 2013-01-01 | W30: 2013-12-31
A31: 9 | B31: 094190802_4 | C31: 1_094190802 | D31: 1 | E31: 094190802 | F31: East Texas Medical Center Fairfield dba ETMC Fairf | G31: 094190802.4 | H31: 094190802.4.5 | I31: 4 | J31: 3 | K31: No-Not Started | L31: Did Not Report | O31: Yes-Completed | P31: Needs More Info - Approved | Q31: Category 4 reporting domain was reviewed, and HHSC found provider submitted documentation to support achievement. Reporting domain is approved and eligible for payment. | R31: Round 2 (October) - Needs More Info | S31: 2013-06-30 | T31: 2014-09-30 | U31: NO | V31: 2013-07-01 | W31: 2014-06-30 | X31: 2014-10-01 | Y31: 2015-09-30
A32: 9 | B32: 094190802_5 | C32: 1_094190802 | D32: 1 | E32: 094190802 | F32: East Texas Medical Center Fairfield dba ETMC Fairf | G32: 094190802.4 | H32: 094190802.4.6 | I32: 5 | J32: 3 | K32: No-Not Started | L32: Did Not Report | O32: Yes-Completed | P32: Needs More Info - Approved | Q32: Category 4 reporting domain was reviewed, and HHSC found provider submitted documentation to support achievement. Reporting domain is approved and eligible for payment. | R32: Round 2 (October) - Needs More Info | S32: 2014-09-30 | U32: NO | V32: 2014-10-01 | W32: 2015-09-30
A33: 9 | B33: 121817401_3 | C33: 1_121817401 | D33: 1 | E33: 121817401 | F33: East Texas Medical Center Trinity | G33: 121817401.4 | H33: 121817401.4.1 | I33: 3 | J33: 3 | K33: Yes-Completed | L33: Approved | M33: Provider submitted required documentation to support Category 4 achievement. Project 121817401.4.1 is approved and eligible for DY3 payment. | O33: Yes-Completed | P33: Previously Approved | R33: Round 1 (April) | S33: 2012-12-31 | U33: YES | V33: 2013-01-01 | W33: 2013-12-31
A34: 9 | B34: 121817401_1 | C34: 1_121817401 | D34: 1 | E34: 121817401 | F34: East Texas Medical Center Trinity | G34: 121817401.4 | H34: 121817401.4.2 | I34: 1 | J34: 3 | K34: Yes-Completed | L34: Approved | M34: Provider submitted required documentation to support Category 4 achievement. Project 121817401.4.2 is approved and eligible for DY3 payment. | O34: Yes-Completed | P34: Previously Approved | R34: Round 1 (April) | S34: 2012-12-31 | U34: YES | V34: 2013-01-01 | W34: 2013-12-31
A35: 9 | B35: 121817401_2 | C35: 1_121817401 | D35: 1 | E35: 121817401 | F35: East Texas Medical Center Trinity | G35: 121817401.4 | H35: 121817401.4.3 | I35: 2 | J35: 3 | K35: Yes-Completed | L35: Approved | M35: Provider submitted required documentation to support Category 4 achievement. Project 121817401.4.3 is approved and eligible for DY3 payment. | O35: Yes-Completed | P35: Previously Approved | R35: Round 1 (April) | S35: 2012-12-31 | U35: YES | V35: 2013-01-01 | W35: 2013-12-31
A36: 9 | B36: 121817401_4 | C36: 1_121817401 | D36: 1 | E36: 121817401 | F36: East Texas Medical Center Trinity | G36: 121817401.4 | H36: 121817401.4.5 | I36: 4 | J36: 3 | K36: No-Not Started | L36: Did Not Report | O36: Yes-Completed | P36: Approved | Q36: Category 4 reporting domain was reviewed, and HHSC found provider submitted documentation to support achievement. Reporting domain is approved and eligible for payment. | R36: Round 2 (October) | S36: 2013-06-30 | T36: 2013-06-30 | U36: YES | V36: 2013-07-01 | W36: 2014-06-30 | X36: 2013-07-01 | Y36: 2014-06-30
A37: 9 | B37: 121817401_5 | C37: 1_121817401 | D37: 1 | E37: 121817401 | F37: East Texas Medical Center Trinity | G37: 121817401.4 | H37: 121817401.4.6 | I37: 5 | J37: 3 | K37: No-Not Started | L37: Did Not Report | O37: Yes-Completed | P37: Needs More Info - Approved | Q37: Category 4 reporting domain was reviewed, and HHSC found provider submitted documentation to support achievement. Reporting domain is approved and eligible for payment. | R37: Round 2 (October) - Needs More Info | S37: 2014-09-30 | U37: NO | V37: 2014-10-01 | W37: 2015-09-30
A38: 9 | B38: 130612806_3 | C38: 1_130612806 | D38: 1 | E38: 130612806 | F38: East Texas Medical Center, Jacksonville | G38: 130612806.4 | H38: 130612806.4.1 | I38: 3 | J38: 3 | K38: Yes-Completed | L38: Approved | M38: Provider submitted required documentation to support Category 4 achievement. Project 130612806.4.1 is approved and eligible for DY3 payment. | O38: Yes-Completed | P38: Previously Approved | R38: Round 1 (April) | S38: 2012-12-31 | U38: YES | V38: 2013-01-01 | W38: 2013-12-31
A39: 9 | B39: 130612806_1 | C39: 1_130612806 | D39: 1 | E39: 130612806 | F39: East Texas Medical Center, Jacksonville | G39: 130612806.4 | H39: 130612806.4.2 | I39: 1 | J39: 3 | K39: Yes-Completed | L39: Approved | M39: Provider submitted required documentation to support Category 4 achievement. Project 130612806.4.2 is approved and eligible for DY3 payment. | O39: Yes-Completed | P39: Previously Approved | R39: Round 1 (April) | S39: 2012-12-31 | U39: YES | V39: 2013-01-01 | W39: 2013-12-31
A40: 9 | B40: 130612806_2 | C40: 1_130612806 | D40: 1 | E40: 130612806 | F40: East Texas Medical Center, Jacksonville | G40: 130612806.4 | H40: 130612806.4.3 | I40: 2 | J40: 3 | K40: Yes-Completed | L40: Approved | M40: Provider submitted required documentation to support Category 4 achievement. Project 130612806.4.3 is approved and eligible for DY3 payment. | O40: Yes-Completed | P40: Previously Approved | R40: Round 1 (April) | S40: 2012-12-31 | U40: YES | V40: 2013-01-01 | W40: 2013-12-31
A41: 9 | B41: 130612806_4 | C41: 1_130612806 | D41: 1 | E41: 130612806 | F41: East Texas Medical Center, Jacksonville | G41: 130612806.4 | H41: 130612806.4.5 | I41: 4 | J41: 3 | K41: No-Not Started | L41: Did Not Report | O41: Yes-Completed | P41: Approved | Q41: Category 4 reporting domain was reviewed, and HHSC found provider submitted documentation to support achievement. Project is approved and eligible for payment. | R41: Round 2 (October) | S41: 2013-06-30 | T41: 2014-09-30 | U41: NO | V41: 2013-07-01 | W41: 2014-06-30 | X41: 2014-10-01 | Y41: 2015-09-30
A42: 9 | B42: 130612806_5 | C42: 1_130612806 | D42: 1 | E42: 130612806 | F42: East Texas Medical Center, Jacksonville | G42: 130612806.4 | H42: 130612806.4.6 | I42: 5 | J42: 3 | K42: No-Not Started | L42: Did Not Report | O42: Yes-Completed | P42: Needs More Info - Approved | Q42: Category 4 reporting domain was reviewed, and HHSC found provider submitted documentation to support achievement. Reporting domain is approved and eligible for payment. | R42: Round 2 (October) - Needs More Info | S42: 2014-09-30 | U42: NO | V42: 2014-10-01 | W42: 2015-09-30
A43: 9 | B43: 130862905_3 | C43: 1_130862905 | D43: 1 | E43: 130862905 | F43: East Texas Medical Center Clarksville | G43: 130862905.4 | H43: 130862905.4.1 | I43: 3 | J43: 3 | K43: Yes-Completed | L43: Approved | M43: Provider submitted required documentation to support Category 4 achievement. Project 130862905.4.1 is approved and eligible for DY3 payment. | O43: Yes-Completed | P43: Previously Approved | R43: Round 1 (April) | S43: 2012-12-31 | U43: YES | V43: 2013-01-01 | W43: 2013-12-31
A44: 9 | B44: 130862905_1 | C44: 1_130862905 | D44: 1 | E44: 130862905 | F44: East Texas Medical Center Clarksville | G44: 130862905.4 | H44: 130862905.4.2 | I44: 1 | J44: 3 | K44: Yes-Completed | L44: Approved | M44: Provider submitted required documentation to support Category 4 achievement. Project 130862905.4.2 is approved and eligible for DY3 payment. | O44: Yes-Completed | P44: Previously Approved | R44: Round 1 (April) | S44: 2012-12-31 | U44: YES | V44: 2013-01-01 | W44: 2013-12-31
A45: 9 | B45: 130862905_2 | C45: 1_130862905 | D45: 1 | E45: 130862905 | F45: East Texas Medical Center Clarksville | G45: 130862905.4 | H45: 130862905.4.3 | I45: 2 | J45: 3 | K45: Yes-Completed | L45: Approved | M45: Provider submitted required documentation to support Category 4 achievement. Project 130862905.4.3 is approved and eligible for DY3 payment. | O45: Yes-Completed | P45: Previously Approved | R45: Round 1 (April) | S45: 2012-12-31 | U45: YES | V45: 2013-01-01 | W45: 2013-12-31
A46: 9 | B46: 130862905_4 | C46: 1_130862905 | D46: 1 | E46: 130862905 | F46: East Texas Medical Center Clarksville | G46: 130862905.4 | H46: 130862905.4.5 | I46: 4 | J46: 3 | K46: No-Not Started | L46: Did Not Report | O46: Yes-Completed | P46: Approved | Q46: Category 4 reporting domain was reviewed, and HHSC found provider submitted documentation to support achievement. Project is approved and eligible for payment. | R46: Round 2 (October) | S46: 2013-07-01 | T46: 2013-07-01 | U46: YES | V46: 2013-07-02 | W46: 2014-07-01 | X46: 2013-07-02 | Y46: 2014-07-01
A47: 9 | B47: 130862905_5 | C47: 1_130862905 | D47: 1 | E47: 130862905 | F47: East Texas Medical Center Clarksville | G47: 130862905.4 | H47: 130862905.4.6 | I47: 5 | J47: 3 | K47: No-Not Started | L47: Did Not Report | O47: Yes-Completed | P47: Not Approved | Q47: HHSC found successful reporting of Category 4 Reporting Domain 4 is not clearly demonstrated. Provider has not reported emergency department admit decision time during the DY3 reporting period, and has stated that they are not pursuing this project further due to facility closure. Project is not approved and is no longer eligible for payment. | R47: Round 2 (October) - Not Approved | S47: DNR-closed fac | U47: YES | V47: TBD | W47: TBD
A48: 9 | B48: 131038504_3 | C48: 1_131038504 | D48: 1 | E48: 131038504 | F48: Hunt Mem Hosp Dist dba Hunt Reg Med Ctr Greenville | G48: 131038504.4 | H48: 131038504.4.1 | I48: 3 | J48: 3 | K48: Yes-Completed | L48: Approved | M48: Provider submitted required documentation to support Category 4 achievement. Project 131038504.4.1 is approved and eligible for DY3 payment. | O48: Yes-Completed | P48: Previously Approved | R48: Round 1 (April) | S48: 2012-12-31 | U48: YES | V48: 2013-01-01 | W48: 2013-12-31
A49: 9 | B49: 131038504_1 | C49: 1_131038504 | D49: 1 | E49: 131038504 | F49: Hunt Mem Hosp Dist dba Hunt Reg Med Ctr Greenville | G49: 131038504.4 | H49: 131038504.4.2 | I49: 1 | J49: 3 | K49: Yes-Completed | L49: Approved | M49: Provider submitted required documentation to support Category 4 achievement. Project 131038504.4.2 is approved and eligible for DY3 payment. | O49: Yes-Completed | P49: Previously Approved | R49: Round 1 (April) | S49: 2012-12-31 | U49: YES | V49: 2013-01-01 | W49: 2013-12-31
A50: 9 | B50: 131038504_2 | C50: 1_131038504 | D50: 1 | E50: 131038504 | F50: Hunt Mem Hosp Dist dba Hunt Reg Med Ctr Greenville | G50: 131038504.4 | H50: 131038504.4.3 | I50: 2 | J50: 3 | K50: Yes-Completed | L50: Approved | M50: Provider submitted required documentation to support Category 4 achievement. Project 131038504.4.3 is approved and eligible for DY3 payment. | O50: Yes-Completed | P50: Previously Approved | R50: Round 1 (April) | S50: 2012-12-31 | U50: YES | V50: 2013-01-01 | W50: 2013-12-31
A51: 9 | B51: 131038504_4 | C51: 1_131038504 | D51: 1 | E51: 131038504 | F51: Hunt Mem Hosp Dist dba Hunt Reg Med Ctr Greenville | G51: 131038504.4 | H51: 131038504.4.5 | I51: 4 | J51: 3 | K51: Yes-Completed | L51: Approved | M51: Provider submitted required documentation to support Category 4 achievement. Project 131038504.4.5 is approved and eligible for DY3 payment. | O51: Yes-Completed | P51: Previously Approved | R51: Round 1 (April) | S51: 2013-12-31 | T51: 2013-12-31 | U51: YES | V51: 2014-01-01 | W51: 2014-12-31 | X51: 2014-01-01 | Y51: 2014-12-31
A52: 9 | B52: 131038504_5 | C52: 1_131038504 | D52: 1 | E52: 131038504 | F52: Hunt Mem Hosp Dist dba Hunt Reg Med Ctr Greenville | G52: 131038504.4 | H52: 131038504.4.6 | I52: 5 | J52: 3 | K52: Yes-Completed | L52: Approved | M52: Provider submitted required documentation to support Category 4 achievement. Project 131038504.4.6 is approved and eligible for DY3 payment. | O52: Yes-Completed | P52: Previously Approved | R52: Round 1 (April) | S52: 2013-12-31 | U52: YES | V52: 2014-01-01 | W52: 2014-12-31
A53: 9 | B53: 136140407_3 | C53: 1_136140407 | D53: 1 | E53: 136140407 | F53: East Texas Medical Center Mount Vernon | G53: 136140407.4 | H53: 136140407.4.1 | I53: 3 | J53: 3 | K53: Yes-Completed | L53: Approved | M53: Provider submitted required documentation to support Category 4 achievement. Project 136140407.4.1 is approved and eligible for DY3 payment. | O53: Yes-Completed | P53: Previously Approved | R53: Round 1 (April) | S53: 2012-12-31 | U53: YES | V53: 2013-01-01 | W53: 2013-12-31
A54: 9 | B54: 136140407_1 | C54: 1_136140407 | D54: 1 | E54: 136140407 | F54: East Texas Medical Center Mount Vernon | G54: 136140407.4 | H54: 136140407.4.2 | I54: 1 | J54: 3 | K54: Yes-Completed | L54: Approved | M54: Provider submitted required documentation to support Category 4 achievement. Project 136140407.4.2 is approved and eligible for DY3 payment. | O54: Yes-Completed | P54: Previously Approved | R54: Round 1 (April) | S54: 2012-12-31 | U54: YES | V54: 2013-01-01 | W54: 2013-12-31
A55: 9 | B55: 136140407_2 | C55: 1_136140407 | D55: 1 | E55: 136140407 | F55: East Texas Medical Center Mount Vernon | G55: 136140407.4 | H55: 136140407.4.3 | I55: 2 | J55: 3 | K55: Yes-Completed | L55: Approved | M55: Provider submitted required documentation to support Category 4 achievement. Project 136140407.4.3 is approved and eligible for DY3 payment. | O55: Yes-Completed | P55: Previously Approved | R55: Round 1 (April) | S55: 2012-12-31 | U55: YES | V55: 2013-01-01 | W55: 2013-12-31
A56: 9 | B56: 136140407_4 | C56: 1_136140407 | D56: 1 | E56: 136140407 | F56: East Texas Medical Center Mount Vernon | G56: 136140407.4 | H56: 136140407.4.5 | I56: 4 | J56: 3 | K56: No-Not Started | L56: Did Not Report | O56: Yes-Completed | P56: Approved | Q56: Category 4 reporting domain was reviewed, and HHSC found provider submitted documentation to support achievement. Project is approved and eligible for payment. | R56: Round 2 (October) | S56: 2013-06-30 | T56: 2014-09-30 | U56: NO | V56: 2013-07-01 | W56: 2014-06-30 | X56: 2014-10-01 | Y56: 2015-09-30
A57: 9 | B57: 136140407_5 | C57: 1_136140407 | D57: 1 | E57: 136140407 | F57: East Texas Medical Center Mount Vernon | G57: 136140407.4 | H57: 136140407.4.6 | I57: 5 | J57: 3 | K57: No-Not Started | L57: Did Not Report | O57: Yes-Completed | P57: Not Approved | Q57: HHSC found successful reporting of Category 4 Reporting Domain 4 is not clearly demonstrated. Provider has not reported emergency department admit decision time during the DY3 reporting period, and has stated that they are not pursuing this project further due to facility closure. Project is not approved and is no longer eligible for payment. | R57: Round 2 (October) - Not Approved | S57: DNR-closed fac | U57: YES | V57: TBD | W57: TBD
A58: 9 | B58: 137319306_3 | C58: 1_137319306 | D58: 1 | E58: 137319306 | F58: East Texas Medical Center- Crockett | G58: 137319306.4 | H58: 137319306.4.1 | I58: 3 | J58: 3 | K58: Yes-Completed | L58: Approved | M58: Provider submitted required documentation to support Category 4 achievement. Project 137319306.4.1 is approved and eligible for DY3 payment. | O58: Yes-Completed | P58: Previously Approved | R58: Round 1 (April) | S58: 2012-12-31 | U58: YES | V58: 2013-01-01 | W58: 2013-12-31
A59: 9 | B59: 137319306_1 | C59: 1_137319306 | D59: 1 | E59: 137319306 | F59: East Texas Medical Center- Crockett | G59: 137319306.4 | H59: 137319306.4.2 | I59: 1 | J59: 3 | K59: Yes-Completed | L59: Approved | M59: Provider submitted required documentation to support Category 4 achievement. Project 137319306.4.2 is approved and eligible for DY3 payment. | O59: Yes-Completed | P59: Previously Approved | R59: Round 1 (April) | S59: 2012-12-31 | U59: YES | V59: 2013-01-01 | W59: 2013-12-31
A60: 9 | B60: 137319306_2 | C60: 1_137319306 | D60: 1 | E60: 137319306 | F60: East Texas Medical Center- Crockett | G60: 137319306.4 | H60: 137319306.4.3 | I60: 2 | J60: 3 | K60: Yes-Completed | L60: Approved | M60: Provider submitted required documentation to support Category 4 achievement. Project 137319306.4.3 is approved and eligible for DY3 payment. | O60: Yes-Completed | P60: Previously Approved | R60: Round 1 (April) | S60: 2012-12-31 | U60: YES | V60: 2013-01-01 | W60: 2013-12-31
A61: 9 | B61: 137319306_4 | C61: 1_137319306 | D61: 1 | E61: 137319306 | F61: East Texas Medical Center- Crockett | G61: 137319306.4 | H61: 137319306.4.5 | I61: 4 | J61: 3 | K61: No-Not Started | L61: Did Not Report | O61: Yes-Completed | P61: Approved | Q61: Category 4 reporting domain was reviewed, and HHSC found provider submitted documentation to support achievement. Project is approved and eligible for payment. | R61: Round 2 (October) | S61: 2013-06-30 | T61: 2014-09-30 | U61: NO | V61: 2013-07-01 | W61: 2014-06-30 | X61: 2014-10-01 | Y61: 2015-09-30
A62: 9 | B62: 137319306_5 | C62: 1_137319306 | D62: 1 | E62: 137319306 | F62: East Texas Medical Center- Crockett | G62: 137319306.4 | H62: 137319306.4.6 | I62: 5 | J62: 3 | K62: No-Not Started | L62: Did Not Report | O62: Yes-Completed | P62: Needs More Info - Approved | Q62: Category 4 reporting domain was reviewed, and HHSC found provider submitted documentation to support achievement. Reporting domain is approved and eligible for payment. | R62: Round 2 (October) - Needs More Info | S62: 2014-09-30 | U62: NO | V62: 2014-10-01 | W62: 2015-09-30
A63: 9 | B63: 138374715_3 | C63: 1_138374715 | D63: 1 | E63: 138374715 | F63: East Texas Medical Center Pittsburg | G63: 138374715.4 | H63: 138374715.4.1 | I63: 3 | J63: 3 | K63: Yes-Completed | L63: Approved | M63: Provider submitted required documentation to support Category 4 achievement. Project 138374715.4.1 is approved and eligible for DY3 payment. | O63: Yes-Completed | P63: Previously Approved | R63: Round 1 (April) | S63: 2012-12-31 | U63: YES | V63: 2013-01-01 | W63: 2013-12-31
A64: 9 | B64: 138374715_1 | C64: 1_138374715 | D64: 1 | E64: 138374715 | F64: East Texas Medical Center Pittsburg | G64: 138374715.4 | H64: 138374715.4.2 | I64: 1 | J64: 3 | K64: Yes-Completed | L64: Approved | M64: Provider submitted required documentation to support Category 4 achievement. Project 138374715.4.2 is approved and eligible for DY3 payment. | O64: Yes-Completed | P64: Previously Approved | R64: Round 1 (April) | S64: 2012-12-31 | U64: YES | V64: 2013-01-01 | W64: 2013-12-31
A65: 9 | B65: 138374715_2 | C65: 1_138374715 | D65: 1 | E65: 138374715 | F65: East Texas Medical Center Pittsburg | G65: 138374715.4 | H65: 138374715.4.3 | I65: 2 | J65: 3 | K65: Yes-Completed | L65: Approved | M65: Provider submitted required documentation to support Category 4 achievement. Project 138374715.4.3 is approved and eligible for DY3 payment. | O65: Yes-Completed | P65: Previously Approved | R65: Round 1 (April) | S65: 2012-12-31 | U65: YES | V65: 2013-01-01 | W65: 2013-12-31
A66: 9 | B66: 138374715_4 | C66: 1_138374715 | D66: 1 | E66: 138374715 | F66: East Texas Medical Center Pittsburg | G66: 138374715.4 | H66: 138374715.4.5 | I66: 4 | J66: 3 | K66: No-Not Started | L66: Did Not Report | O66: Yes-Completed | P66: Approved | Q66: Category 4 reporting domain was reviewed, and HHSC found provider submitted documentation to support achievement. Project is approved and eligible for payment. | R66: Round 2 (October) | S66: 2013-06-30 | T66: 2014-09-30 | U66: NO | V66: 2013-07-01 | W66: 2014-06-30 | X66: 2014-10-01 | Y66: 2015-09-30
A67: =LEN(E67) -> 9 | B67: =E67&"_"&I67 -> 138374715_5 | C67: =D67&"_"&E67 -> 1_138374715 | D67: 1 | E67: 138374715 | F67: East Texas Medical Center Pittsburg | G67: 138374715.4 | H67: 138374715.4.6 | I67: 5 | J67: 3 | K67: No-Not Started | L67: Did Not Report | O67: Yes-Completed | P67: Needs More Info - Approved | Q67: Category 4 reporting domain was reviewed, and HHSC found provider submitted documentation to support achievement. Reporting domain is approved and eligible for payment. | R67: Round 2 (October) - Needs More Info | S67: 2014-09-30 | U67: NO | V67: 2014-10-01 | W67: 2015-09-30
A68: 9 | B68: 138913209_3 | C68: 1_138913209 | D68: 1 | E68: 138913209 | F68: Titus County Memorial Hospital dba Titus Regional | G68: 138913209.4 | H68: 138913209.4.1 | I68: 3 | J68: 3 | K68: Yes-Completed | L68: Approved | M68: Provider submitted required documentation to support Category 4 achievement. Project 138913209.4.1 is approved and eligible for DY3 payment. | O68: Yes-Completed | P68: Previously Approved | R68: Round 1 (April) | S68: 2012-12-31 | U68: YES | V68: 2013-01-01 | W68: 2013-12-31
A69: 9 | B69: 138913209_1 | C69: 1_138913209 | D69: 1 | E69: 138913209 | F69: Titus County Memorial Hospital dba Titus Regional | G69: 138913209.4 | H69: 138913209.4.2 | I69: 1 | J69: 3 | K69: Yes-Completed | L69: Approved | M69: Provider submitted required documentation to support Category 4 achievement. Project 138913209.4.2 is approved and eligible for DY3 payment. | O69: Yes-Completed | P69: Previously Approved | R69: Round 1 (April) | S69: 2012-12-31 | U69: YES | V69: 2013-01-01 | W69: 2013-12-31
A70: 9 | B70: 138913209_2 | C70: 1_138913209 | D70: 1 | E70: 138913209 | F70: Titus County Memorial Hospital dba Titus Regional | G70: 138913209.4 | H70: 138913209.4.3 | I70: 2 | J70: 3 | K70: Yes-Completed | L70: Approved | M70: Provider submitted required documentation to support Category 4 achievement. Project 138913209.4.3 is approved and eligible for DY3 payment. | O70: Yes-Completed | P70: Previously Approved | R70: Round 1 (April) | S70: 2012-12-31 | U70: YES | V70: 2013-01-01 | W70: 2013-12-31
A71: 9 | B71: 138913209_4 | C71: 1_138913209 | D71: 1 | E71: 138913209 | F71: Titus County Memorial Hospital dba Titus Regional | G71: 138913209.4 | H71: 138913209.4.5 | I71: 4 | J71: 3 | K71: No-Not Started | L71: Did Not Report | O71: Yes-Completed | P71: Needs More Info - Approved | Q71: Category 4 reporting domain was reviewed, and HHSC found provider submitted documentation to support achievement. Reporting domain is approved and eligible for payment. | R71: Round 2 (October) - Needs More Info | S71: 2014-09-30 | T71: 2014-09-30 | U71: NO | V71: 2014-10-01 | W71: 2015-09-30 | X71: 2014-10-01 | Y71: 2015-09-30
A72: 9 | B72: 138913209_5 | C72: 1_138913209 | D72: 1 | E72: 138913209 | F72: Titus County Memorial Hospital dba Titus Regional | G72: 138913209.4 | H72: 138913209.4.6 | I72: 5 | J72: 3 | K72: Yes-Completed | L72: Needs More Info - Approved | M72: Provider submitted required documentation to support Category 4 achievement. Project 138913209.4.6 is approved and eligible for DY3 payment. | O72: Yes-Completed | P72: Previously Approved | R72: Round 1 (April) - Needs More Info | S72: 2013-06-30 | U72: YES | V72: 2013-07-01 | W72: 2014-06-30
A73: 9 | B73: 138913209_6 | C73: 1_138913209 | D73: 1 | E73: 138913209 | F73: Titus County Memorial Hospital dba Titus Regional | G73: 138913209.4 | H73: 138913209.4.7 | I73: 6 | J73: 3 | K73: No-Not Started | L73: Did Not Report | O73: Yes-Completed | P73: Needs More Info - Approved | Q73: Category 4 reporting domain was reviewed, and HHSC found provider submitted documentation to support achievement. Reporting domain is approved and eligible for payment. | R73: Round 2 (October) - Needs More Info | S73: 2014-09-30 | U73: NO | V73: 2014-10-01 | W73: 2015-09-30
A74: 9 | B74: 139173209_3 | C74: 1_139173209 | D74: 1 | E74: 139173209 | F74: East Texas Medical Center Athens | G74: 139173209.4 | H74: 139173209.4.1 | I74: 3 | J74: 3 | K74: Yes-Completed | L74: Approved | M74: Provider submitted required documentation to support Category 4 achievement. Project 139173209.4.1 is approved and eligible for DY3 payment. | O74: Yes-Completed | P74: Previously Approved | R74: Round 1 (April) | S74: 2012-12-31 | U74: YES | V74: 2013-01-01 | W74: 2013-12-31
A75: 9 | B75: 139173209_1 | C75: 1_139173209 | D75: 1 | E75: 139173209 | F75: East Texas Medical Center Athens | G75: 139173209.4 | H75: 139173209.4.2 | I75: 1 | J75: 3 | K75: Yes-Completed | L75: Approved | M75: Provider submitted required documentation to support Category 4 achievement. Project 139173209.4.2 is approved and eligible for DY3 payment. | O75: Yes-Completed | P75: Previously Approved | R75: Round 1 (April) | S75: 2012-12-31 | U75: YES | V75: 2013-01-01 | W75: 2013-12-31
A76: 9 | B76: 139173209_2 | C76: 1_139173209 | D76: 1 | E76: 139173209 | F76: East Texas Medical Center Athens | G76: 139173209.4 | H76: 139173209.4.3 | I76: 2 | J76: 3 | K76: Yes-Completed | L76: Approved | M76: Provider submitted required documentation to support Category 4 achievement. Project 139173209.4.3 is approved and eligible for DY3 payment. | O76: Yes-Completed | P76: Previously Approved | R76: Round 1 (April) | S76: 2012-12-31 | U76: YES | V76: 2013-01-01 | W76: 2013-12-31
A77: 9 | B77: 139173209_4 | C77: 1_139173209 | D77: 1 | E77: 139173209 | F77: East Texas Medical Center Athens | G77: 139173209.4 | H77: 139173209.4.5 | I77: 4 | J77: 3 | K77: No-Not Started | L77: Did Not Report | O77: Yes-Completed | P77: Approved | Q77: Category 4 reporting domain was reviewed, and HHSC found provider submitted documentation to support achievement. Project is approved and eligible for payment. | R77: Round 2 (October) | S77: 2013-06-30 | T77: 2013-06-30 | U77: YES | V77: 2013-07-01 | W77: 2014-06-30 | X77: 2013-07-01 | Y77: 2014-06-30
A78: 9 | B78: 139173209_5 | C78: 1_139173209 | D78: 1 | E78: 139173209 | F78: East Texas Medical Center Athens | G78: 139173209.4 | H78: 139173209.4.6 | I78: 5 | J78: 3 | K78: No-Not Started | L78: Did Not Report | O78: Yes-Completed | P78: Needs More Info - Approved | Q78: Category 4 reporting domain was reviewed, and HHSC found provider submitted documentation to support achievement. Reporting domain is approved and eligible for payment. | R78: Round 2 (October) - Needs More Info | S78: 2014-09-30 | U78: NO | V78: 2014-10-01 | W78: 2015-09-30
A79: 9 | B79: 168447401_3 | C79: 1_168447401 | D79: 1 | E79: 168447401 | F79: East Texas Medical Center Gilmer | G79: 168447401.4 | H79: 168447401.4.1 | I79: 3 | J79: 3 | K79: Yes-Completed | L79: Approved | M79: Provider submitted required documentation to support Category 4 achievement. Project 168447401.4.1 is approved and eligible for DY3 payment. | O79: Yes-Completed | P79: Previously Approved | R79: Round 1 (April) | S79: 2012-12-31 | U79: YES | V79: 2013-01-01 | W79: 2013-12-31
A80: 9 | B80: 168447401_1 | C80: 1_168447401 | D80: 1 | E80: 168447401 | F80: East Texas Medical Center Gilmer | G80: 168447401.4 | H80: 168447401.4.2 | I80: 1 | J80: 3 | K80: Yes-Completed | L80: Approved | M80: Provider submitted required documentation to support Category 4 achievement. Project 168447401.4.2 is approved and eligible for DY3 payment. | O80: Yes-Completed | P80: Previously Approved | R80: Round 1 (April) | S80: 2012-12-31 | U80: YES | V80: 2013-01-01 | W80: 2013-12-31
A81: 9 | B81: 168447401_2 | C81: 1_168447401 | D81: 1 | E81: 168447401 | F81: East Texas Medical Center Gilmer | G81: 168447401.4 | H81: 168447401.4.3 | I81: 2 | J81: 3 | K81: Yes-Completed | L81: Approved | M81: Provider submitted required documentation to support Category 4 achievement. Project 168447401.4.3 is approved and eligible for DY3 payment. | O81: Yes-Completed | P81: Previously Approved | R81: Round 1 (April) | S81: 2012-12-31 | U81: YES | V81: 2013-01-01 | W81: 2013-12-31
A82: 9 | B82: 168447401_4 | C82: 1_168447401 | D82: 1 | E82: 168447401 | F82: East Texas Medical Center Gilmer | G82: 168447401.4 | H82: 168447401.4.5 | I82: 4 | J82: 3 | K82: No-Not Started | L82: Did Not Report | O82: Yes-Completed | P82: Not Approved | Q82: HHSC found successful reporting of Category 4 Reporting Domain 4 is not clearly demonstrated. Provider has not reported HCAHPS during the DY3 reporting period, and has stated that they are not pursuing this project further due to facility closure. Project is not approved and is no longer eligible for payment. | R82: Round 2 (October) - Not Approved | S82: 2013-06-30 | T82: 2014-09-30 | U82: NO | V82: 2013-07-01 | W82: 2014-06-30 | X82: 2014-10-01 | Y82: 2015-09-30
A83: 9 | B83: 168447401_5 | C83: 1_168447401 | D83: 1 | E83: 168447401 | F83: East Texas Medical Center Gilmer | G83: 168447401.4 | H83: 168447401.4.6 | I83: 5 | J83: 3 | K83: No-Not Started | L83: Did Not Report | O83: Yes-Completed | P83: Not Approved | Q83: HHSC found successful reporting of Category 4 Reporting Domain 5 is not clearly demonstrated. Provider has not reported emergency department admit decision time during the DY3 reporting period, and has stated that they are not pursuing this project further due to facility closure. Project is not approved and is no longer eligible for payment. | R83: Round 2 (October) - Not Approved | S83: DNR-closed fac | U83: YES | V83: TBD | W83: TBD
A84: 9 | B84: 177870603_3 | C84: 1_177870603 | D84: 1 | E84: 177870603 | F84: Fannin County Hospital Authority dba Red River Reg | G84: 177870603.4 | H84: 177870603.4.1 | I84: 3 | J84: 3 | K84: Yes-Completed | L84: Needs More Info - Approved | M84: Provider submitted required documentation to support Category 4 achievement. Project 177870603.4.1 is approved and eligible for DY3 payment. | O84: Yes-Completed | P84: Previously Approved | R84: Round 1 (April) - Needs More Info | S84: 2012-12-31 | U84: YES | V84: 2013-01-01 | W84: 2013-12-31
A85: 9 | B85: 177870603_1 | C85: 1_177870603 | D85: 1 | E85: 177870603 | F85: Fannin County Hospital Authority dba Red River Reg | G85: 177870603.4 | H85: 177870603.4.2 | I85: 1 | J85: 3 | K85: Yes-Completed | L85: Approved | M85: Provider submitted required documentation to support Category 4 achievement. Project 177870603.4.2 is approved and eligible for DY3 payment. | O85: Yes-Completed | P85: Previously Approved | R85: Round 1 (April) | S85: 2012-12-31 | U85: YES | V85: 2013-01-01 | W85: 2013-12-31
A86: 9 | B86: 177870603_2 | C86: 1_177870603 | D86: 1 | E86: 177870603 | F86: Fannin County Hospital Authority dba Red River Reg | G86: 177870603.4 | H86: 177870603.4.3 | I86: 2 | J86: 3 | K86: Yes-Completed | L86: Approved | M86: Provider submitted required documentation to support Category 4 achievement. Project 177870603.4.3 is approved and eligible for DY3 payment. | O86: Yes-Completed | P86: Previously Approved | R86: Round 1 (April) | S86: 2012-12-31 | U86: YES | V86: 2013-01-01 | W86: 2013-12-31
A87: 9 | B87: 177870603_4 | C87: 1_177870603 | D87: 1 | E87: 177870603 | F87: Fannin County Hospital Authority dba Red River Reg | G87: 177870603.4 | H87: 177870603.4.5 | I87: 4 | J87: 3 | K87: No-Not Started | L87: Did Not Report | O87: Yes-Completed | P87: Approved | Q87: Category 4 reporting domain was reviewed, and HHSC found provider submitted documentation to support achievement. Project is approved and eligible for payment. | R87: Round 2 (October) | S87: 2014-09-30 | T87: 2014-09-30 | U87: NO | V87: 2014-10-01 | W87: 2015-09-30 | X87: 2014-10-01 | Y87: 2015-09-30
A88: 9 | B88: 177870603_5 | C88: 1_177870603 | D88: 1 | E88: 177870603 | F88: Fannin County Hospital Authority dba Red River Reg | G88: 177870603.4 | H88: 177870603.4.6 | I88: 5 | J88: 3 | K88: No-Not Started | L88: Did Not Report | O88: Yes-Completed | P88: Approved | Q88: Category 4 reporting domain was reviewed, and HHSC found provider submitted documentation to support achievement. Project is approved and eligible for payment. | R88: Round 2 (October) | S88: 2014-09-30 | U88: NO | V88: 2014-10-01 | W88: 2015-09-30
A89: 9 | B89: 208843701_3 | C89: 1_208843701 | D89: 1 | E89: 208843701 | F89: East Texas Medical Center Henderson | G89: 208843701.4 | H89: 208843701.4.1 | I89: 3 | J89: 3 | K89: Yes-Completed | L89: Approved | M89: Provider submitted required documentation to support Category 4 achievement. Project 208843701.4.1 is approved and eligible for DY3 payment. | O89: Yes-Completed | P89: Previously Approved | R89: Round 1 (April) | S89: 2012-12-31 | U89: YES | V89: 2013-01-01 | W89: 2013-12-31
A90: 9 | B90: 208843701_1 | C90: 1_208843701 | D90: 1 | E90: 208843701 | F90: East Texas Medical Center Henderson | G90: 208843701.4 | H90: 208843701.4.2 | I90: 1 | J90: 3 | K90: Yes-Completed | L90: Approved | M90: Provider submitted required documentation to support Category 4 achievement. Project 208843701.4.2 is approved and eligible for DY3 payment. | O90: Yes-Completed | P90: Previously Approved | R90: Round 1 (April) | S90: 2012-12-31 | U90: YES | V90: 2013-01-01 | W90: 2013-12-31
A91: 9 | B91: 208843701_2 | C91: 1_208843701 | D91: 1 | E91: 208843701 | F91: East Texas Medical Center Henderson | G91: 208843701.4 | H91: 208843701.4.3 | I91: 2 | J91: 3 | K91: Yes-Completed | L91: Approved | M91: Provider submitted required documentation to support Category 4 achievement. Project 208843701.4.3 is approved and eligible for DY3 payment. | O91: Yes-Completed | P91: Previously Approved | R91: Round 1 (April) | S91: 2012-12-31 | U91: YES | V91: 2013-01-01 | W91: 2013-12-31
A92: 9 | B92: 208843701_4 | C92: 1_208843701 | D92: 1 | E92: 208843701 | F92: East Texas Medical Center Henderson | G92: 208843701.4 | H92: 208843701.4.5 | I92: 4 | J92: 3 | K92: No-Not Started | L92: Did Not Report | O92: Yes-Completed | P92: Approved | Q92: Category 4 reporting domain was reviewed, and HHSC found provider submitted documentation to support achievement. Project is approved and eligible for payment. | R92: Round 2 (October) | S92: 2013-06-30 | T92: 2014-09-30 | U92: NO | V92: 2013-07-01 | W92: 2014-06-30 | X92: 2014-10-01 | Y92: 2015-09-30
A93: 9 | B93: 208843701_5 | C93: 1_208843701 | D93: 1 | E93: 208843701 | F93: East Texas Medical Center Henderson | G93: 208843701.4 | H93: 208843701.4.6 | I93: 5 | J93: 3 | K93: No-Not Started | L93: Did Not Report | O93: Yes-Completed | P93: Needs More Info - Approved | Q93: Category 4 reporting domain was reviewed, and HHSC found provider submitted documentation to support achievement. Reporting domain is approved and eligible for payment. | R93: Round 2 (October) - Needs More Info | S93: 2014-09-30 | U93: NO | V93: 2014-10-01 | W93: 2015-09-30
A94: 9 | B94: 094092602_3 | C94: 2_094092602 | D94: 2 | E94: 094092602 | F94: University of Texas Medical Branch - Galveston | G94: 094092602.4 | H94: 094092602.4.1 | I94: 3 | J94: 3 | K94: No-Not Started | L94: Did Not Report | O94: Yes-Completed | P94: Approved | Q94: Category 4 reporting domain was reviewed, and HHSC found provider submitted documentation to support achievement. Project is approved and eligible for payment. | R94: Round 2 (October) | S94: 2012-12-31 | U94: YES | V94: 2013-01-01 | W94: 2013-12-31
A95: 9 | B95: 094092602_1 | C95: 2_094092602 | D95: 2 | E95: 094092602 | F95: University of Texas Medical Branch - Galveston | G95: 094092602.4 | H95: 094092602.4.2 | I95: 1 | J95: 3 | K95: No-Not Started | L95: Did Not Report | O95: Yes-Completed | P95: Approved | Q95: Category 4 reporting domain was reviewed, and HHSC found provider submitted documentation to support achievement. Project is approved and eligible for payment. | R95: Round 2 (October) | S95: 2012-12-31 | U95: YES | V95: 2013-01-01 | W95: 2013-12-31
A96: 9 | B96: 094092602_2 | C96: 2_094092602 | D96: 2 | E96: 094092602 | F96: University of Texas Medical Branch - Galveston | G96: 094092602.4 | H96: 094092602.4.3 | I96: 2 | J96: 3 | K96: No-Not Started | L96: Did Not Report | O96: Yes-Completed | P96: Approved | Q96: Category 4 reporting domain was reviewed, and HHSC found provider submitted documentation to support achievement. Project is approved and eligible for payment. | R96: Round 2 (October) | S96: 2012-12-31 | U96: YES | V96: 2013-01-01 | W96: 2013-12-31
A97: 9 | B97: 094092602_4 | C97: 2_094092602 | D97: 2 | E97: 094092602 | F97: University of Texas Medical Branch - Galveston | G97: 094092602.4 | H97: 094092602.4.5 | I97: 4 | J97: 3 | K97: No-Not Started | L97: Did Not Report | O97: Yes-Completed | P97: Approved | Q97: Category 4 reporting domain was reviewed, and HHSC found provider submitted documentation to support achievement. Project is approved and eligible for payment. | R97: Round 2 (October) | S97: 2013-08-31 | T97: 2013-08-31 | U97: YES | V97: 2013-09-01 | W97: 2014-08-31 | X97: 2013-09-01 | Y97: 2014-08-31
A98: 9 | B98: 094092602_5 | C98: 2_094092602 | D98: 2 | E98: 094092602 | F98: University of Texas Medical Branch - Galveston | G98: 094092602.4 | H98: 094092602.4.6 | I98: 5 | J98: 3 | K98: No-Not Started | L98: Did Not Report | O98: Yes-Completed | P98: Approved | Q98: Category 4 reporting domain was reviewed, and HHSC found provider submitted documentation to support achievement. Project is approved and eligible for payment. | R98: Round 2 (October) | S98: 2014-09-30 | U98: NO | V98: 2014-10-01 | W98: 2015-09-30
A99: 9 | B99: 094148602_3 | C99: 2_094148602 | D99: 2 | E99: 094148602 | F99: Baptist Hosp of SE TX dba Mem Hermann Bapt Beaumon | G99: 094148602.4 | H99: 094148602.4.1 | I99: 3 | J99: 3 | K99: Yes-Completed | L99: Approved | M99: Provider submitted required documentation to support Category 4 achievement. Project 094148602.4.1 is approved and eligible for DY3 payment. | O99: Yes-Completed | P99: Previously Approved | R99: Round 1 (April) | S99: 2012-12-31 | U99: YES | V99: 2013-01-01 | W99: 2013-12-31
A100: 9 | B100: 094148602_1 | C100: 2_094148602 | D100: 2 | E100: 094148602 | F100: Baptist Hosp of SE TX dba Mem Hermann Bapt Beaumon | G100: 094148602.4 | H100: 094148602.4.2 | I100: 1 | J100: 3 | K100: Yes-Completed | L100: Approved | M100: Provider submitted required documentation to support Category 4 achievement. Project 094148602.4.2 is approved and eligible for DY3 payment. | O100: Yes-Completed | P100: Previously Approved | R100: Round 1 (April) | S100: 2012-12-31 | U100: YES | V100: 2013-01-01 | W100: 2013-12-31
A101: 9 | B101: 094148602_2 | C101: 2_094148602 | D101: 2 | E101: 094148602 | F101: Baptist Hosp of SE TX dba Mem Hermann Bapt Beaumon | G101: 094148602.4 | H101: 094148602.4.3 | I101: 2 | J101: 3 | K101: Yes-Completed | L101: Approved | M101: Provider submitted required documentation to support Category 4 achievement. Project 094148602.4.3 is approved and eligible for DY3 payment. | O101: Yes-Completed | P101: Previously Approved | R101: Round 1 (April) | S101: 2012-12-31 | U101: YES | V101: 2013-01-01 | W101: 2013-12-31
A102: 9 | B102: 094148602_4 | C102: 2_094148602 | D102: 2 | E102: 094148602 | F102: Baptist Hosp of SE TX dba Mem Hermann Bapt Beaumon | G102: 094148602.4 | H102: 094148602.4.5 | I102: 4 | J102: 3 | K102: No-Not Started | L102: Did Not Report | O102: Yes-Completed | P102: Approved | Q102: Category 4 reporting domain was reviewed, and HHSC found provider submitted documentation to support achievement. Project is approved and eligible for payment. | R102: Round 2 (October) | S102: 2013-09-30 | T102: 2013-12-31 | U102: YES | V102: 2013-10-01 | W102: 2014-09-30 | X102: 2014-01-01 | Y102: 2014-12-31
A103: 9 | B103: 094148602_5 | C103: 2_094148602 | D103: 2 | E103: 094148602 | F103: Baptist Hosp of SE TX dba Mem Hermann Bapt Beaumon | G103: 094148602.4 | H103: 094148602.4.6 | I103: 5 | J103: 3 | K103: Yes-Completed | L103: Approved | M103: Provider submitted required documentation to support Category 4 achievement. Project 094148602.4.6 is approved and eligible for DY3 payment. | O103: Yes-Completed | P103: Previously Approved | R103: Round 1 (April) | S103: 2013-09-30 | U103: YES | V103: 2013-10-01 | W103: 2014-09-30
A104: 9 | B104: 094148602_6 | C104: 2_094148602 | D104: 2 | E104: 094148602 | F104: Baptist Hosp of SE TX dba Mem Hermann Bapt Beaumon | G104: 094148602.4 | H104: 094148602.4.7 | I104: 6 | J104: 3 | K104: No-Not Started | L104: Did Not Report | O104: Yes-Completed | P104: Approved | Q104: Category 4 reporting domain was reviewed, and HHSC found provider submitted documentation to support achievement. Project is approved and eligible for payment. | R104: Round 2 (October) | S104: 2013-12-31 | U104: YES | V104: 2014-01-01 | W104: 2014-12-31
A105: 9 | B105: 112671602_3 | C105: 2_112671602 | D105: 2 | E105: 112671602 | F105: Brazosport Regional Health System | G105: 112671602.4 | H105: 112671602.4.1 | I105: 3 | J105: 3 | K105: No-Not Started | L105: Did Not Report | R105: Did Not Report | S105: 2012-12-31 | U105: YES | V105: 2013-01-01 | W105: 2013-12-31
A106: 9 | B106: 112671602_1 | C106: 2_112671602 | D106: 2 | E106: 112671602 | F106: Brazosport Regional Health System | G106: 112671602.4 | H106: 112671602.4.2 | I106: 1 | J106: 3 | K106: No-Not Started | L106: Did Not Report | O106: Yes-Completed | P106: Not Approved | Q106: HHSC found achievement of Category 4 reporting domain is not clearly demonstrated. Provider did not respond to HHSC's request to submit template with the PPA rate as reported to the provider by ICHP (sent via email from HHSC to the provider on April 16, 2014. Project is not approved and is no longer eligible for payment. | R106: Round 2 (October) - Not Approved | S106: 2012-12-31 | U106: YES | V106: 2013-01-01 | W106: 2013-12-31
A107: 9 | B107: 112671602_2 | C107: 2_112671602 | D107: 2 | E107: 112671602 | F107: Brazosport Regional Health System | G107: 112671602.4 | H107: 112671602.4.3 | I107: 2 | J107: 3 | K107: No-Not Started | L107: Did Not Report | O107: Yes-Completed | P107: Not Approved | Q107: HHSC found achievement of Category 4 reporting domain is not clearly demonstrated. Provider did not respond to HHSC's request to submit template with the PPR rate as reported to the provider by ICHP (sent via email from HHSC to the provider on April 16, 2014. Project is not approved and is no longer eligible for payment. | R107: Round 2 (October) - Not Approved | S107: 2012-12-31 | U107: YES | V107: 2013-01-01 | W107: 2013-12-31
A108: 9 | B108: 112671602_4 | C108: 2_112671602 | D108: 2 | E108: 112671602 | F108: Brazosport Regional Health System | G108: 112671602.4 | H108: 112671602.4.5 | I108: 4 | J108: 3 | K108: No-Not Started | L108: Did Not Report | O108: Yes-Completed | P108: Not Approved | Q108: HHSC found achievement of Category 4 reporting domain is not clearly demonstrated. This reporting domain is not approved at this time. Provider did not respond to HHSC's request to submit a template that included a response to qualitative questions for HCAHPS and medication management performance. Project is not approved and is no longer eligible for payment. | R108: Round 2 (October) - Not Approved | S108: DNR | T108: 2014-09-30 | U108: NO | V108: TBD | W108: TBD | X108: 2014-10-01 | Y108: 2015-09-30
A109: 9 | B109: 112671602_5 | C109: 2_112671602 | D109: 2 | E109: 112671602 | F109: Brazosport Regional Health System | G109: 112671602.4 | H109: 112671602.4.6 | I109: 5 | J109: 3 | K109: No-Not Started | L109: Did Not Report | O109: Yes-Completed | P109: Not Approved | Q109: HHSC found achievement of Category 4 reporting domain is not clearly demonstrated. Provider did not respond to HHSC's request to submit a template that included a response to qualitative questions as outlined in the October DY3 reporting companion which states on page 37 that "Responses to qualitative questions must be included for RDs 4 & 5 and optional RD-6." Project is not approved and is no longer eligible for payment. | R109: Round 2 (October) - Not Approved | S109: 2014-09-30 | U109: NO | V109: 2014-10-01 | W109: 2015-09-30
A110: 9 | B110: 121805903_3 | C110: 2_121805903 | D110: 2 | E110: 121805903 | F110: Angleton-Danbury Medical Center | G110: 121805903.4 | H110: 121805903.4.1 | I110: 3 | J110: 3 | K110: Yes-Completed | L110: Approved | M110: Provider submitted required documentation to support Category 4 achievement. Project 121805903.4.1 is approved and eligible for DY3 payment. | O110: Yes-Completed | P110: Previously Approved | R110: Round 1 (April) | S110: 2012-12-31 | U110: YES | V110: 2013-01-01 | W110: 2013-12-31
A111: 9 | B111: 121805903_1 | C111: 2_121805903 | D111: 2 | E111: 121805903 | F111: Angleton-Danbury Medical Center | G111: 121805903.4 | H111: 121805903.4.2 | I111: 1 | J111: 3 | K111: Yes-Completed | L111: Approved | M111: Provider submitted required documentation to support Category 4 achievement. Project 121805903.4.2 is approved and eligible for DY3 payment. | O111: Yes-Completed | P111: Previously Approved | R111: Round 1 (April) | S111: 2012-12-31 | U111: YES | V111: 2013-01-01 | W111: 2013-12-31
A112: 9 | B112: 121805903_2 | C112: 2_121805903 | D112: 2 | E112: 121805903 | F112: Angleton-Danbury Medical Center | G112: 121805903.4 | H112: 121805903.4.3 | I112: 2 | J112: 3 | K112: Yes-Completed | L112: Approved | M112: Provider submitted required documentation to support Category 4 achievement. Project 121805903.4.3 is approved and eligible for DY3 payment. | O112: Yes-Completed | P112: Previously Approved | R112: Round 1 (April) | S112: 2012-12-31 | U112: YES | V112: 2013-01-01 | W112: 2013-12-31
A113: 9 | B113: 121805903_4 | C113: 2_121805903 | D113: 2 | E113: 121805903 | F113: Angleton-Danbury Medical Center | G113: 121805903.4 | H113: 121805903.4.5 | I113: 4 | J113: 3 | K113: Yes-Completed | L113: Approved | M113: Provider submitted required documentation to support Category 4 achievement. Project 121805903.4.5 is approved and eligible for DY3 payment. | O113: Yes-Completed | P113: Previously Approved | R113: Round 1 (April) | S113: 2013-09-30 | T113: 2013-09-30 | U113: YES | V113: 2013-10-01 | W113: 2014-09-30 | X113: 2013-10-01 | Y113: 2014-09-30
A114: 9 | B114: 121805903_5 | C114: 2_121805903 | D114: 2 | E114: 121805903 | F114: Angleton-Danbury Medical Center | G114: 121805903.4 | H114: 121805903.4.6 | I114: 5 | J114: 3 | K114: Yes-Completed | L114: Approved | M114: Provider submitted required documentation to support Category 4 achievement. Project 121805903.4.6 is approved and eligible for DY3 payment. | O114: Yes-Completed | P114: Previously Approved | R114: Round 1 (April) | S114: 2013-09-30 | U114: YES | V114: 2013-10-01 | W114: 2014-09-30
A115: 9 | B115: 131030203_3 | C115: 2_131030203 | D115: 2 | E115: 131030203 | F115: Nacogdoches County Hospital District | G115: 131030203.4 | H115: 131030203.4.1 | I115: 3 | J115: 3 | K115: Yes-Completed | L115: Approved | M115: Provider submitted required documentation to support Category 4 achievement. Project 131030203.4.1 is approved and eligible for DY3 payment. | O115: Yes-Completed | P115: Previously Approved | R115: Round 1 (April) | S115: 2012-12-31 | U115: YES | V115: 2013-01-01 | W115: 2013-12-31
A116: 9 | B116: 131030203_1 | C116: 2_131030203 | D116: 2 | E116: 131030203 | F116: Nacogdoches County Hospital District | G116: 131030203.4 | H116: 131030203.4.2 | I116: 1 | J116: 3 | K116: Yes-Completed | L116: Approved | M116: Provider submitted required documentation to support Category 4 achievement. Project 131030203.4.2 is approved and eligible for DY3 payment. | O116: Yes-Completed | P116: Previously Approved | R116: Round 1 (April) | S116: 2012-12-31 | U116: YES | V116: 2013-01-01 | W116: 2013-12-31
A117: 9 | B117: 131030203_2 | C117: 2_131030203 | D117: 2 | E117: 131030203 | F117: Nacogdoches County Hospital District | G117: 131030203.4 | H117: 131030203.4.3 | I117: 2 | J117: 3 | K117: Yes-Completed | L117: Approved | M117: Provider submitted required documentation to support Category 4 achievement. Project 131030203.4.3 is approved and eligible for DY3 payment. | O117: Yes-Completed | P117: Previously Approved | R117: Round 1 (April) | S117: 2012-12-31 | U117: YES | V117: 2013-01-01 | W117: 2013-12-31
A118: 9 | B118: 131030203_4 | C118: 2_131030203 | D118: 2 | E118: 131030203 | F118: Nacogdoches County Hospital District | G118: 131030203.4 | H118: 131030203.4.5 | I118: 4 | J118: 3 | K118: No-Not Started | L118: Did Not Report | O118: Yes-Completed | P118: Approved | Q118: Category 4 reporting domain was reviewed, and HHSC found provider submitted documentation to support achievement. Project is approved and eligible for payment. | R118: Round 2 (October) | S118: 2013-12-31 | T118: 2013-12-31 | U118: YES | V118: 2014-01-01 | W118: 2014-12-31 | X118: 2014-01-01 | Y118: 2014-12-31
A119: 9 | B119: 131030203_5 | C119: 2_131030203 | D119: 2 | E119: 131030203 | F119: Nacogdoches County Hospital District | G119: 131030203.4 | H119: 131030203.4.6 | I119: 5 | J119: 3 | K119: No-Not Started | L119: Did Not Report | O119: Yes-Completed | P119: Approved | Q119: Category 4 reporting domain was reviewed, and HHSC found provider submitted documentation to support achievement. Project is approved and eligible for payment. | R119: Round 2 (October) | S119: 2013-12-31 | U119: YES | V119: 2014-01-01 | W119: 2014-12-31
A120: 9 | B120: 138296208_3 | C120: 2_138296208 | D120: 2 | E120: 138296208 | F120: Christus Hospital (prev St. Elizabeth) | G120: 138296208.4 | H120: 138296208.4.1 | I120: 3 | J120: 3 | K120: Yes-Completed | L120: Approved | M120: Provider submitted required documentation to support Category 4 achievement. Project 138296208.4.1 is approved and eligible for DY3 payment. | O120: Yes-Completed | P120: Previously Approved | R120: Round 1 (April) | S120: 2012-12-31 | U120: YES | V120: 2013-01-01 | W120: 2013-12-31
A121: 9 | B121: 138296208_1 | C121: 2_138296208 | D121: 2 | E121: 138296208 | F121: Christus Hospital (prev St. Elizabeth) | G121: 138296208.4 | H121: 138296208.4.2 | I121: 1 | J121: 3 | K121: Yes-Completed | L121: Approved | M121: Provider submitted required documentation to support Category 4 achievement. Project 138296208.4.2 is approved and eligible for DY3 payment. | O121: Yes-Completed | P121: Previously Approved | R121: Round 1 (April) | S121: 2012-12-31 | U121: YES | V121: 2013-01-01 | W121: 2013-12-31
A122: 9 | B122: 138296208_2 | C122: 2_138296208 | D122: 2 | E122: 138296208 | F122: Christus Hospital (prev St. Elizabeth) | G122: 138296208.4 | H122: 138296208.4.3 | I122: 2 | J122: 3 | K122: Yes-Completed | L122: Approved | M122: Provider submitted required documentation to support Category 4 achievement. Project 138296208.4.3 is approved and eligible for DY3 payment. | O122: Yes-Completed | P122: Previously Approved | R122: Round 1 (April) | S122: 2012-12-31 | U122: YES | V122: 2013-01-01 | W122: 2013-12-31
A123: 9 | B123: 138296208_4 | C123: 2_138296208 | D123: 2 | E123: 138296208 | F123: Christus Hospital (prev St. Elizabeth) | G123: 138296208.4 | H123: 138296208.4.5 | I123: 4 | J123: 3 | K123: No-Not Started | L123: Did Not Report | O123: Yes-Completed | P123: Approved | Q123: Category 4 reporting domain was reviewed, and HHSC found provider submitted documentation to support achievement. Project is approved and eligible for payment. | R123: Round 2 (October) | S123: 2013-12-31 | T123: 2013-12-31 | U123: YES | V123: 2014-01-01 | W123: 2014-12-31 | X123: 2014-01-01 | Y123: 2014-12-31
A124: 9 | B124: 138296208_5 | C124: 2_138296208 | D124: 2 | E124: 138296208 | F124: Christus Hospital (prev St. Elizabeth) | G124: 138296208.4 | H124: 138296208.4.6 | I124: 5 | J124: 3 | K124: No-Not Started | L124: Did Not Report | O124: Yes-Completed | P124: Approved | Q124: Category 4 reporting domain was reviewed, and HHSC found provider submitted documentation to support achievement. Project is approved and eligible for payment. | R124: Round 2 (October) | S124: 2013-12-31 | U124: YES | V124: 2014-01-01 | W124: 2014-12-31
A125: 9 | B125: 138296208_6 | C125: 2_138296208 | D125: 2 | E125: 138296208 | F125: Christus Hospital (prev St. Elizabeth) | G125: 138296208.4 | H125: 138296208.4.7 | I125: 6 | J125: 3 | K125: No-Not Started | L125: Did Not Report | O125: Yes-Completed | P125: Needs More Info - Approved | Q125: Category 4 reporting domain was reviewed, and HHSC found provider submitted documentation to support achievement. Reporting domain is approved and eligible for payment. | R125: Round 2 (October) - Needs More Info | S125: 2013-12-31 | U125: YES | V125: 2014-01-01 | W125: 2014-12-31
A126: 9 | B126: 200683501_3 | C126: 2_200683501 | D126: 2 | E126: 200683501 | F126: Preferred Hospital Leasing Hemphill Inc | G126: 261955689.4 | H126: 261955689.4.1 | I126: 3 | J126: 3 | K126: No-Not Started | L126: Did Not Report | O126: Yes-Completed | P126: Needs More Info - Approved | Q126: Category 4 Reporting Domain (RD) was reviewed, and HHSC found provider submitted documentation to support achievement. RD is approved and eligible for payment. | R126: Round 2 (October) - Needs More Info | S126: 2012-12-31 | U126: YES | V126: 2013-01-01 | W126: 2013-12-31
A127: 9 | B127: 200683501_1 | C127: 2_200683501 | D127: 2 | E127: 200683501 | F127: Preferred Hospital Leasing Hemphill Inc | G127: 261955689.4 | H127: 261955689.4.2 | I127: 1 | J127: 3 | K127: No-Not Started | L127: Did Not Report | O127: Yes-Completed | P127: Needs More Info - Approved | Q127: Category 4 Reporting Domain (RD) was reviewed, and HHSC found provider submitted documentation to support achievement. RD is approved and eligible for payment. | R127: Round 2 (October) - Needs More Info | S127: 2012-12-31 | U127: YES | V127: 2013-01-01 | W127: 2013-12-31
A128: 9 | B128: 200683501_2 | C128: 2_200683501 | D128: 2 | E128: 200683501 | F128: Preferred Hospital Leasing Hemphill Inc | G128: 261955689.4 | H128: 261955689.4.3 | I128: 2 | J128: 3 | K128: No-Not Started | L128: Did Not Report | O128: Yes-Completed | P128: Needs More Info - Approved | Q128: Category 4 Reporting Domain (RD) was reviewed, and HHSC found provider submitted documentation to support achievement. RD is approved and eligible for payment. | R128: Round 2 (October) - Needs More Info | S128: 2012-12-31 | U128: YES | V128: 2013-01-01 | W128: 2013-12-31
A129: 9 | B129: 200683501_4 | C129: 2_200683501 | D129: 2 | E129: 200683501 | F129: Preferred Hospital Leasing Hemphill Inc | G129: 261955689.4 | H129: 261955689.4.5 | I129: 4 | J129: 3 | K129: No-Not Started | L129: Did Not Report | O129: Yes-Completed | P129: Not Approved | Q129: HHSC found achievement of Category 4 reporting domain is not clearly demonstrated. Provider did not submit a template that included any response to the Medication Management component of this domain. This reporting domain is not approved for DY3 payment. | R129: Round 2 (October) - Not Approved | S129: 2014-09-30 | T129: DNR | U129: NO | V129: 2014-10-01 | W129: 2015-09-30 | X129: TBD | Y129: TBD
A130: 9 | B130: 200683501_5 | C130: 2_200683501 | D130: 2 | E130: 200683501 | F130: Preferred Hospital Leasing Hemphill Inc | G130: 261955689.4 | H130: 261955689.4.6 | I130: 5 | J130: 3 | K130: No-Not Started | L130: Did Not Report | O130: Yes-Completed | P130: Not Approved | Q130: HHSC found achievement of Category 4 reporting domain is not clearly demonstrated. Provider did not submit a template that included a complete response to the ED Admit time. This reporting domain is not approved for DY3 payment. | R130: Round 2 (October) - Not Approved | S130: DNR | U130: YES | V130: TBD | W130: TBD
A131: =LEN(E131) -> 9 | B131: =E131&"_"&I131 -> 284333601_3 | C131: =D131&"_"&E131 -> 2_284333601 | D131: 2 | E131: 284333601 | F131: Liberty-Dayton Regional Medical Center LLC | G131: 284333601.4 | H131: 284333601.4.1 | I131: 3 | J131: 3 | K131: Yes-Completed | L131: Approved | M131: Provider submitted required documentation to support Category 4 achievement. Project 284333601.4.1 is approved and eligible for DY3 payment. | O131: Yes-Completed | P131: Previously Approved | R131: Round 1 (April) | S131: 2012-12-31 | U131: YES | V131: 2013-01-01 | W131: 2013-12-31
A132: 9 | B132: 284333601_1 | C132: 2_284333601 | D132: 2 | E132: 284333601 | F132: Liberty-Dayton Regional Medical Center LLC | G132: 284333601.4 | H132: 284333601.4.2 | I132: 1 | J132: 3 | K132: Yes-Completed | L132: Approved | M132: Provider submitted required documentation to support Category 4 achievement. Project 284333601.4.2 is approved and eligible for DY3 payment. | O132: Yes-Completed | P132: Previously Approved | R132: Round 1 (April) | S132: 2012-12-31 | U132: YES | V132: 2013-01-01 | W132: 2013-12-31
A133: 9 | B133: 284333601_2 | C133: 2_284333601 | D133: 2 | E133: 284333601 | F133: Liberty-Dayton Regional Medical Center LLC | G133: 284333601.4 | H133: 284333601.4.3 | I133: 2 | J133: 3 | K133: Yes-Completed | L133: Approved | M133: Provider submitted required documentation to support Category 4 achievement. Project 284333601.4.3 is approved and eligible for DY3 payment. | O133: Yes-Completed | P133: Previously Approved | R133: Round 1 (April) | S133: 2012-12-31 | U133: YES | V133: 2013-01-01 | W133: 2013-12-31
A134: 9 | B134: 284333601_4 | C134: 2_284333601 | D134: 2 | E134: 284333601 | F134: Liberty-Dayton Regional Medical Center LLC | G134: 284333601.4 | H134: 284333601.4.5 | I134: 4 | J134: 3 | K134: No-Not Started | L134: Did Not Report | O134: No-Not Started | P134: Not Approved | Q134: HHSC found achievement of Category 4 reporting domain is not clearly demonstrated. Provider could not provide at least 10 months of HCAHPS for reporting in DY3. Project is not approved and is no longer eligible for payment. | R134: Round 2 (October) - Not Approved | S134: DNR | T134: 2014-09-30 | U134: NO | V134: TBD | W134: TBD | X134: 2014-10-01 | Y134: 2015-09-30
A135: 9 | B135: 284333601_5 | C135: 2_284333601 | D135: 2 | E135: 284333601 | F135: Liberty-Dayton Regional Medical Center LLC | G135: 284333601.4 | H135: 284333601.4.6 | I135: 5 | J135: 3 | K135: Yes-Completed | L135: Approved | M135: Provider submitted required documentation to support Category 4 achievement. Project 284333601.4.6 is approved and eligible for DY3 payment. | O135: Yes-Completed | P135: Previously Approved | R135: Round 1 (April) | S135: 2014-03-31 | U135: YES | V135: 2014-04-01 | W135: 2015-03-31
A136: 9 | B136: 020817501_3 | C136: 3_020817501 | D136: 3 | E136: 020817501 | F136: CHCA Bayshore LP dba Bayshore Medical Center | G136: 020817501.4 | H136: 020817501.4.1 | I136: 3 | J136: 3 | K136: Yes-Completed | L136: Approved | M136: Provider submitted required documentation to support Category 4 achievement. Project 020817501.4.1 is approved and eligible for DY3 payment. | O136: Yes-Completed | P136: Previously Approved | R136: Round 1 (April) | S136: 2012-12-31 | U136: YES | V136: 2013-01-01 | W136: 2013-12-31
A137: 9 | B137: 020817501_1 | C137: 3_020817501 | D137: 3 | E137: 020817501 | F137: CHCA Bayshore LP dba Bayshore Medical Center | G137: 020817501.4 | H137: 020817501.4.2 | I137: 1 | J137: 3 | K137: Yes-Completed | L137: Approved | M137: Provider submitted required documentation to support Category 4 achievement. Project 020817501.4.2 is approved and eligible for DY3 payment. | O137: Yes-Completed | P137: Previously Approved | R137: Round 1 (April) | S137: 2012-12-31 | U137: YES | V137: 2013-01-01 | W137: 2013-12-31
A138: 9 | B138: 020817501_2 | C138: 3_020817501 | D138: 3 | E138: 020817501 | F138: CHCA Bayshore LP dba Bayshore Medical Center | G138: 020817501.4 | H138: 020817501.4.3 | I138: 2 | J138: 3 | K138: Yes-Completed | L138: Approved | M138: Provider submitted required documentation to support Category 4 achievement. Project 020817501.4.3 is approved and eligible for DY3 payment. | O138: Yes-Completed | P138: Previously Approved | R138: Round 1 (April) | S138: 2012-12-31 | U138: YES | V138: 2013-01-01 | W138: 2013-12-31
A139: 9 | B139: 020817501_4 | C139: 3_020817501 | D139: 3 | E139: 020817501 | F139: CHCA Bayshore LP dba Bayshore Medical Center | G139: 020817501.4 | H139: 020817501.4.5 | I139: 4 | J139: 3 | K139: No-Not Started | L139: Did Not Report | O139: Yes-Completed | P139: Approved | Q139: Category 4 reporting domain was reviewed, and HHSC found provider submitted documentation to support achievement. Project is approved and eligible for payment. | R139: Round 2 (October) | S139: 2013-09-30 | T139: 2013-12-31 | U139: YES | V139: 2013-10-01 | W139: 2014-09-30 | X139: 2014-01-01 | Y139: 2014-12-31
A140: 9 | B140: 020817501_5 | C140: 3_020817501 | D140: 3 | E140: 020817501 | F140: CHCA Bayshore LP dba Bayshore Medical Center | G140: 020817501.4 | H140: 020817501.4.6 | I140: 5 | J140: 3 | K140: No-Not Started | L140: Did Not Report | O140: Yes-Completed | P140: Approved | Q140: Category 4 reporting domain was reviewed, and HHSC found provider submitted documentation to support achievement. Project is approved and eligible for payment. | R140: Round 2 (October) | S140: 2013-12-31 | U140: YES | V140: 2014-01-01 | W140: 2014-12-31
A141: 9 | B141: 020834001_3 | C141: 3_020834001 | D141: 3 | E141: 020834001 | F141: Memorial Hermann Hospital System (The Woodlands) | G141: 020834001.4 | H141: 020834001.4.1 | I141: 3 | J141: 3 | K141: Yes-Completed | L141: Approved | M141: Provider submitted required documentation to support Category 4 achievement. Project 020834001.4.1 is approved and eligible for DY3 payment. | O141: Yes-Completed | P141: Previously Approved | R141: Round 1 (April) | S141: 2012-12-31 | U141: YES | V141: 2013-01-01 | W141: 2013-12-31
A142: 9 | B142: 020834001_1 | C142: 3_020834001 | D142: 3 | E142: 020834001 | F142: Memorial Hermann Hospital System (The Woodlands) | G142: 020834001.4 | H142: 020834001.4.2 | I142: 1 | J142: 3 | K142: Yes-Completed | L142: Approved | M142: Provider submitted required documentation to support Category 4 achievement. Project 020834001.4.2 is approved and eligible for DY3 payment. | O142: Yes-Completed | P142: Previously Approved | R142: Round 1 (April) | S142: 2012-12-31 | U142: YES | V142: 2013-01-01 | W142: 2013-12-31
A143: 9 | B143: 020834001_2 | C143: 3_020834001 | D143: 3 | E143: 020834001 | F143: Memorial Hermann Hospital System (The Woodlands) | G143: 020834001.4 | H143: 020834001.4.3 | I143: 2 | J143: 3 | K143: Yes-Completed | L143: Approved | M143: Provider submitted required documentation to support Category 4 achievement. Project 020834001.4.3 is approved and eligible for DY3 payment. | O143: Yes-Completed | P143: Previously Approved | R143: Round 1 (April) | S143: 2012-12-31 | U143: YES | V143: 2013-01-01 | W143: 2013-12-31
A144: 9 | B144: 020834001_4 | C144: 3_020834001 | D144: 3 | E144: 020834001 | F144: Memorial Hermann Hospital System (The Woodlands) | G144: 020834001.4 | H144: 020834001.4.5 | I144: 4 | J144: 3 | K144: No-Not Started | L144: Did Not Report | O144: Yes-Completed | P144: Approved | Q144: Category 4 reporting domain was reviewed, and HHSC found provider submitted documentation to support achievement. Project is approved and eligible for payment. | R144: Round 2 (October) | S144: 2014-09-30 | T144: 2014-06-30 | U144: NO | V144: 2014-10-01 | W144: 2015-09-30 | X144: 2014-07-01 | Y144: 2015-06-30
A145: 9 | B145: 020834001_5 | C145: 3_020834001 | D145: 3 | E145: 020834001 | F145: Memorial Hermann Hospital System (The Woodlands) | G145: 020834001.4 | H145: 020834001.4.6 | I145: 5 | J145: 3 | K145: Yes-Completed | L145: Approved | M145: Provider submitted required documentation to support Category 4 achievement. Project 020834001.4.6 is approved and eligible for DY3 payment. | O145: Yes-Completed | P145: Previously Approved | R145: Round 1 (April) | S145: 2013-12-31 | U145: YES | V145: 2014-01-01 | W145: 2014-12-31
A146: 9 | B146: 094187402_3 | C146: 3_094187402 | D146: 3 | E146: 094187402 | F146: CHCA West Houston LP dba West Houston Medical Cent | G146: 094187402.4 | H146: 094187402.4.1 | I146: 3 | J146: 3 | K146: Yes-Completed | L146: Approved | M146: Provider submitted required documentation to support Category 4 achievement. Project 094187402.4.1 is approved and eligible for DY3 payment. | O146: Yes-Completed | P146: Previously Approved | R146: Round 1 (April) | S146: 2012-12-31 | U146: YES | V146: 2013-01-01 | W146: 2013-12-31
A147: 9 | B147: 094187402_1 | C147: 3_094187402 | D147: 3 | E147: 094187402 | F147: CHCA West Houston LP dba West Houston Medical Cent | G147: 094187402.4 | H147: 094187402.4.2 | I147: 1 | J147: 3 | K147: Yes-Completed | L147: Approved | M147: Provider submitted required documentation to support Category 4 achievement. Project 094187402.4.2 is approved and eligible for DY3 payment. | O147: Yes-Completed | P147: Previously Approved | R147: Round 1 (April) | S147: 2012-12-31 | U147: YES | V147: 2013-01-01 | W147: 2013-12-31
A148: 9 | B148: 094187402_2 | C148: 3_094187402 | D148: 3 | E148: 094187402 | F148: CHCA West Houston LP dba West Houston Medical Cent | G148: 094187402.4 | H148: 094187402.4.3 | I148: 2 | J148: 3 | K148: Yes-Completed | L148: Approved | M148: Provider submitted required documentation to support Category 4 achievement. Project 094187402.4.3 is approved and eligible for DY3 payment. | O148: Yes-Completed | P148: Previously Approved | R148: Round 1 (April) | S148: 2012-12-31 | U148: YES | V148: 2013-01-01 | W148: 2013-12-31
A149: 9 | B149: 094187402_4 | C149: 3_094187402 | D149: 3 | E149: 094187402 | F149: CHCA West Houston LP dba West Houston Medical Cent | G149: 094187402.4 | H149: 094187402.4.5 | I149: 4 | J149: 3 | K149: No-Not Started | L149: Did Not Report | O149: Yes-Completed | P149: Approved | Q149: Category 4 reporting domain was reviewed, and HHSC found provider submitted documentation to support achievement. Project is approved and eligible for payment. | R149: Round 2 (October) | S149: 2013-09-30 | T149: 2013-12-31 | U149: YES | V149: 2013-10-01 | W149: 2014-09-30 | X149: 2014-01-01 | Y149: 2014-12-31
A150: 9 | B150: 094187402_5 | C150: 3_094187402 | D150: 3 | E150: 094187402 | F150: CHCA West Houston LP dba West Houston Medical Cent | G150: 094187402.4 | H150: 094187402.4.6 | I150: 5 | J150: 3 | K150: No-Not Started | L150: Did Not Report | O150: Yes-Completed | P150: Approved | Q150: Category 4 reporting domain was reviewed, and HHSC found provider submitted documentation to support achievement. Project is approved and eligible for payment. | R150: Round 2 (October) | S150: 2013-12-31 | U150: YES | V150: 2014-01-01 | W150: 2014-12-31
A151: 9 | B151: 112672402_3 | C151: 3_112672402 | D151: 3 | E151: 112672402 | F151: UT MD Anderson Cancer Center | G151: 112672402.4 | H151: 112672402.4.1 | I151: 3 | J151: 3 | K151: Yes-Completed | L151: Approved | M151: Provider submitted required documentation to support Category 4 achievement. Project 112672402.4.1 is approved and eligible for DY3 payment. | O151: Yes-Completed | P151: Previously Approved | R151: Round 1 (April) | S151: 2012-12-31 | U151: YES | V151: 2013-01-01 | W151: 2013-12-31
A152: 9 | B152: 112672402_1 | C152: 3_112672402 | D152: 3 | E152: 112672402 | F152: UT MD Anderson Cancer Center | G152: 112672402.4 | H152: 112672402.4.2 | I152: 1 | J152: 3 | K152: Yes-Completed | L152: Approved | M152: Provider submitted required documentation to support Category 4 achievement. Project 112672402.4.2 is approved and eligible for DY3 payment. | O152: Yes-Completed | P152: Previously Approved | R152: Round 1 (April) | S152: 2012-12-31 | U152: YES | V152: 2013-01-01 | W152: 2013-12-31
A153: 9 | B153: 112672402_4 | C153: 3_112672402 | D153: 3 | E153: 112672402 | F153: UT MD Anderson Cancer Center | G153: 112672402.4 | H153: 112672402.4.5 | I153: 4 | J153: 3 | K153: Yes-Completed | L153: Approved | M153: Provider submitted required documentation to support Category 4 achievement. Project 112672402.4.4 is approved and eligible for DY3 payment. | O153: Yes-Completed | P153: Previously Approved | R153: Round 1 (April) | S153: 2013-09-30 | T153: 2013-09-30 | U153: YES | V153: 2013-10-01 | W153: 2014-09-30 | X153: 2013-10-01 | Y153: 2014-09-30
A154: 9 | B154: 112672402_5 | C154: 3_112672402 | D154: 3 | E154: 112672402 | F154: UT MD Anderson Cancer Center | G154: 112672402.4 | H154: 112672402.4.6 | I154: 5 | J154: 3 | K154: Yes-Completed | L154: Approved | M154: Provider submitted required documentation to support Category 4 achievement. Project 112672402.4.5 is approved and eligible for DY3 payment. | O154: Yes-Completed | P154: Previously Approved | R154: Round 1 (April) | S154: 2013-09-30 | U154: YES | V154: 2013-10-01 | W154: 2014-09-30
A155: 9 | B155: 127300503_3 | C155: 3_127300503 | D155: 3 | E155: 127300503 | F155: St. Luke's Episcopal Hospital | G155: 127300503.4 | H155: 127300503.4.1 | I155: 3 | J155: 3 | K155: No-Not Started | L155: Did Not Report | O155: Yes-Completed | P155: Approved | Q155: Category 4 reporting domain was reviewed, and HHSC found provider submitted documentation to support achievement. Project is approved and eligible for payment. | R155: Round 2 (October) | S155: 2012-12-31 | U155: YES | V155: 2013-01-01 | W155: 2013-12-31
A156: 9 | B156: 127300503_1 | C156: 3_127300503 | D156: 3 | E156: 127300503 | F156: St. Luke's Episcopal Hospital | G156: 127300503.4 | H156: 127300503.4.2 | I156: 1 | J156: 3 | K156: Yes-Completed | L156: Approved | M156: Provider submitted required documentation to support Category 4 achievement. Project 127300503.4.2 is approved and eligible for DY3 payment. | O156: Yes-Completed | P156: Previously Approved | R156: Round 1 (April) | S156: 2012-12-31 | U156: YES | V156: 2013-01-01 | W156: 2013-12-31
A157: 9 | B157: 127300503_2 | C157: 3_127300503 | D157: 3 | E157: 127300503 | F157: St. Luke's Episcopal Hospital | G157: 127300503.4 | H157: 127300503.4.3 | I157: 2 | J157: 3 | K157: Yes-Completed | L157: Approved | M157: Provider submitted required documentation to support Category 4 achievement. Project 127300503.4.3 is approved and eligible for DY3 payment. | O157: Yes-Completed | P157: Previously Approved | R157: Round 1 (April) | S157: 2012-12-31 | U157: YES | V157: 2013-01-01 | W157: 2013-12-31
A158: 9 | B158: 127300503_4 | C158: 3_127300503 | D158: 3 | E158: 127300503 | F158: St. Luke's Episcopal Hospital | G158: 127300503.4 | H158: 127300503.4.5 | I158: 4 | J158: 3 | K158: No-Not Started | L158: Did Not Report | O158: Yes-Completed | P158: Needs More Info - Approved | Q158: Category 4 reporting domain was reviewed, and HHSC found provider submitted documentation to support achievement. Reporting domain is approved and eligible for payment. | R158: Round 2 (October) - Needs More Info | S158: 2013-12-31 | T158: 2014-06-30 | U158: NO | V158: 2014-01-01 | W158: 2014-12-31 | X158: 2014-07-01 | Y158: 2015-06-30
A159: 9 | B159: 127300503_5 | C159: 3_127300503 | D159: 3 | E159: 127300503 | F159: St. Luke's Episcopal Hospital | G159: 127300503.4 | H159: 127300503.4.6 | I159: 5 | J159: 3 | K159: No-Not Started | L159: Did Not Report | O159: Yes-Completed | P159: Approved | Q159: Category 4 reporting domain was reviewed, and HHSC found provider submitted documentation to support achievement. Project is approved and eligible for payment. | R159: Round 2 (October) | S159: 2013-12-31 | U159: YES | V159: 2014-01-01 | W159: 2014-12-31
A160: 9 | B160: 127303903_3 | C160: 3_127303903 | D160: 3 | E160: 127303903 | F160: Oak Bend Medical Center | G160: 127303903.4 | H160: 127303903.4.1 | I160: 3 | J160: 3 | K160: Yes-Completed | L160: Approved | M160: Provider submitted required documentation to support Category 4 achievement. Project 127303903.4.1 is approved and eligible for DY3 payment. | O160: Yes-Completed | P160: Previously Approved | R160: Round 1 (April) | S160: 2012-12-31 | U160: YES | V160: 2013-01-01 | W160: 2013-12-31
A161: 9 | B161: 127303903_1 | C161: 3_127303903 | D161: 3 | E161: 127303903 | F161: Oak Bend Medical Center | G161: 127303903.4 | H161: 127303903.4.2 | I161: 1 | J161: 3 | K161: Yes-Completed | L161: Approved | M161: Provider submitted required documentation to support Category 4 achievement. Project 127303903.4.2 is approved and eligible for DY3 payment. | O161: Yes-Completed | P161: Previously Approved | R161: Round 1 (April) | S161: 2012-12-31 | U161: YES | V161: 2013-01-01 | W161: 2013-12-31
A162: 9 | B162: 127303903_2 | C162: 3_127303903 | D162: 3 | E162: 127303903 | F162: Oak Bend Medical Center | G162: 127303903.4 | H162: 127303903.4.3 | I162: 2 | J162: 3 | K162: Yes-Completed | L162: Approved | M162: Provider submitted required documentation to support Category 4 achievement. Project 127303903.4.3 is approved and eligible for DY3 payment. | O162: Yes-Completed | P162: Previously Approved | R162: Round 1 (April) | S162: 2012-12-31 | U162: YES | V162: 2013-01-01 | W162: 2013-12-31
A163: 9 | B163: 127303903_4 | C163: 3_127303903 | D163: 3 | E163: 127303903 | F163: Oak Bend Medical Center | G163: 127303903.4 | H163: 127303903.4.5 | I163: 4 | J163: 3 | K163: No-Not Started | L163: Did Not Report | O163: Yes-Completed | P163: Approved | Q163: Category 4 reporting domain was reviewed, and HHSC found provider submitted documentation to support achievement. Project is approved and eligible for payment. | R163: Round 2 (October) | S163: 2013-12-31 | T163: 2013-12-31 | U163: YES | V163: 2014-01-01 | W163: 2014-12-31 | X163: 2014-01-01 | Y163: 2014-12-31
A164: 9 | B164: 127303903_5 | C164: 3_127303903 | D164: 3 | E164: 127303903 | F164: Oak Bend Medical Center | G164: 127303903.4 | H164: 127303903.4.6 | I164: 5 | J164: 3 | K164: No-Not Started | L164: Did Not Report | O164: Yes-Completed | P164: Approved | Q164: Category 4 reporting domain was reviewed, and HHSC found provider submitted documentation to support achievement. Project is approved and eligible for payment. | R164: Round 2 (October) | S164: 2013-12-31 | U164: YES | V164: 2014-01-01 | W164: 2014-12-31
A165: 9 | B165: 130959304_3 | C165: 3_130959304 | D165: 3 | E165: 130959304 | F165: Matagorda County Hospital District dba Matagorda R | G165: 130959304.4 | H165: 130959304.4.1 | I165: 3 | J165: 3 | K165: No-Not Started | L165: Did Not Report | O165: Yes-Completed | P165: Approved | Q165: Category 4 reporting domain was reviewed, and HHSC found provider submitted documentation to support achievement. Project is approved and eligible for payment. | R165: Round 2 (October) | S165: 2012-12-31 | U165: YES | V165: 2013-01-01 | W165: 2013-12-31
A166: 9 | B166: 130959304_1 | C166: 3_130959304 | D166: 3 | E166: 130959304 | F166: Matagorda County Hospital District dba Matagorda R | G166: 130959304.4 | H166: 130959304.4.2 | I166: 1 | J166: 3 | K166: No-Not Started | L166: Did Not Report | O166: Yes-Completed | P166: Approved | Q166: Category 4 reporting domain was reviewed, and HHSC found provider submitted documentation to support achievement. Project is approved and eligible for payment. | R166: Round 2 (October) | S166: 2012-12-31 | U166: YES | V166: 2013-01-01 | W166: 2013-12-31
A167: 9 | B167: 130959304_2 | C167: 3_130959304 | D167: 3 | E167: 130959304 | F167: Matagorda County Hospital District dba Matagorda R | G167: 130959304.4 | H167: 130959304.4.3 | I167: 2 | J167: 3 | K167: No-Not Started | L167: Did Not Report | O167: Yes-Completed | P167: Approved | Q167: Category 4 reporting domain was reviewed, and HHSC found provider submitted documentation to support achievement. Project is approved and eligible for payment. | R167: Round 2 (October) | S167: 2012-12-31 | U167: YES | V167: 2013-01-01 | W167: 2013-12-31
A168: 9 | B168: 130959304_4 | C168: 3_130959304 | D168: 3 | E168: 130959304 | F168: Matagorda County Hospital District dba Matagorda R | G168: 130959304.4 | H168: 130959304.4.5 | I168: 4 | J168: 3 | K168: No-Not Started | L168: Did Not Report | O168: Yes-Completed | P168: Needs More Info - Approved | Q168: Category 4 reporting domain was reviewed, and HHSC found provider submitted documentation to support achievement. Reporting domain is approved and eligible for payment. | R168: Round 2 (October) - Needs More Info | S168: 2013-12-31 | T168: 2013-12-31 | U168: YES | V168: 2014-01-01 | W168: 2014-12-31 | X168: 2014-01-01 | Y168: 2014-12-31
A169: 9 | B169: 130959304_5 | C169: 3_130959304 | D169: 3 | E169: 130959304 | F169: Matagorda County Hospital District dba Matagorda R | G169: 130959304.4 | H169: 130959304.4.6 | I169: 5 | J169: 3 | K169: No-Not Started | L169: Did Not Report | O169: Yes-Completed | P169: Needs More Info - Approved | Q169: Category 4 reporting domain was reviewed, and HHSC found provider submitted documentation to support achievement. Reporting domain is approved and eligible for payment. | R169: Round 2 (October) - Needs More Info | S169: 2013-12-31 | U169: YES | V169: 2014-01-01 | W169: 2014-12-31
A170: 9 | B170: 288523801_3 | C170: 3_288523801 | D170: 3 | E170: 288523801 | F170: Tomball Texas Hospital Company, LLC dba Tomball Re | G170: 131044305.4 | H170: 131044305.4.1 | I170: 3 | J170: 3 | K170: Yes-Completed | L170: Approved | M170: Provider submitted required documentation to support Category 4 achievement. Project 131044305.4.1 is approved and eligible for DY3 payment. | O170: Yes-Completed | P170: Previously Approved | R170: Round 1 (April) | S170: 2012-12-31 | U170: YES | V170: 2013-01-01 | W170: 2013-12-31
A171: 9 | B171: 288523801_1 | C171: 3_288523801 | D171: 3 | E171: 288523801 | F171: Tomball Texas Hospital Company, LLC dba Tomball Re | G171: 131044305.4 | H171: 131044305.4.2 | I171: 1 | J171: 3 | K171: Yes-Completed | L171: Approved | M171: Provider submitted required documentation to support Category 4 achievement. Project 131044305.4.2 is approved and eligible for DY3 payment. | O171: Yes-Completed | P171: Previously Approved | R171: Round 1 (April) | S171: 2012-12-31 | U171: YES | V171: 2013-01-01 | W171: 2013-12-31
A172: 9 | B172: 288523801_2 | C172: 3_288523801 | D172: 3 | E172: 288523801 | F172: Tomball Texas Hospital Company, LLC dba Tomball Re | G172: 131044305.4 | H172: 131044305.4.3 | I172: 2 | J172: 3 | K172: Yes-Completed | L172: Approved | M172: Provider submitted required documentation to support Category 4 achievement. Project 131044305.4.3 is approved and eligible for DY3 payment. | O172: Yes-Completed | P172: Previously Approved | R172: Round 1 (April) | S172: 2012-12-31 | U172: YES | V172: 2013-01-01 | W172: 2013-12-31
A173: 9 | B173: 288523801_4 | C173: 3_288523801 | D173: 3 | E173: 288523801 | F173: Tomball Texas Hospital Company, LLC dba Tomball Re | G173: 131044305.4 | H173: 131044305.4.5 | I173: 4 | J173: 3 | K173: No-Not Started | L173: Did Not Report | M173: Category 4 Status Report was reviewed, and HHSC changed to "Did Not Report" because provider used reporting period shorter than 12-months (as specified in the April DY3 Reporting Companion) for the Medication Management measure -- which was reported as 2/1/2014 to 2/28/2014, which is not 12 months. Provider must report the RD-4 metrics over a 12-month period (note: measurement period cannot be earlier than DY2 [10/1/12 - 9/30/12]). Provider should report in October. | O173: No-Not Started | P173: Not Approved | Q173: HHSC found achievement of Category 4 reporting domain is not clearly demonstrated. Provider has indicated that they are not reporting RD4 in DY3. Project is not approved and is no longer eligible for payment. | R173: Round 2 (October) - Not Approved | S173: DNR | T173: DNR | U173: YES | V173: TBD | W173: TBD | X173: TBD | Y173: TBD
A174: 9 | B174: 288523801_5 | C174: 3_288523801 | D174: 3 | E174: 288523801 | F174: Tomball Texas Hospital Company, LLC dba Tomball Re | G174: 131044305.4 | H174: 131044305.4.6 | I174: 5 | J174: 3 | K174: No-Not Started | L174: Did Not Report | M174: Category 4 Status Report was reviewed, and HHSC changed to "Did Not Report" because provider used reporting period shorter than 12-months (as specified in the April DY3 Reporting Companion). Provider must report the RD-5 metrics over a 12-month period (note: measurement period cannot be earlier than DY2 [10/1/12 - 9/30/12]). The measurement period specified is 1/1/14 to 3/31/14. Provider should report in October. | O174: No-Not Started | P174: Not Approved | Q174: HHSC found achievement of Category 4 reporting domain is not clearly demonstrated. Provider has indicated that they are not reporting RD5 in DY3. Project is not approved and is no longer eligible for payment. | R174: Round 2 (October) - Not Approved | S174: DNR | U174: YES | V174: TBD | W174: TBD
A175: 9 | B175: 131045004_3 | C175: 3_131045004 | D175: 3 | E175: 131045004 | F175: El Campo Memorial Hospital | G175: 131045004.4 | H175: 131045004.4.1 | I175: 3 | J175: 3 | K175: No-Not Started | L175: Did Not Report | O175: Yes-Completed | P175: Approved | Q175: Category 4 reporting domain was reviewed, and HHSC found provider submitted documentation to support achievement. Project is approved and eligible for payment. | R175: Round 2 (October) | S175: 2012-12-31 | U175: YES | V175: 2013-01-01 | W175: 2013-12-31
A176: 9 | B176: 131045004_1 | C176: 3_131045004 | D176: 3 | E176: 131045004 | F176: El Campo Memorial Hospital | G176: 131045004.4 | H176: 131045004.4.2 | I176: 1 | J176: 3 | K176: No-Not Started | L176: Did Not Report | O176: Yes-Completed | P176: Approved | Q176: Category 4 reporting domain was reviewed, and HHSC found provider submitted documentation to support achievement. Project is approved and eligible for payment. | R176: Round 2 (October) | S176: 2012-12-31 | U176: YES | V176: 2013-01-01 | W176: 2013-12-31
A177: 9 | B177: 131045004_2 | C177: 3_131045004 | D177: 3 | E177: 131045004 | F177: El Campo Memorial Hospital | G177: 131045004.4 | H177: 131045004.4.3 | I177: 2 | J177: 3 | K177: No-Not Started | L177: Did Not Report | O177: Yes-Completed | P177: Approved | Q177: Category 4 reporting domain was reviewed, and HHSC found provider submitted documentation to support achievement. Project is approved and eligible for payment. | R177: Round 2 (October) | S177: 2012-12-31 | U177: YES | V177: 2013-01-01 | W177: 2013-12-31
A178: 9 | B178: 131045004_4 | C178: 3_131045004 | D178: 3 | E178: 131045004 | F178: El Campo Memorial Hospital | G178: 131045004.4 | H178: 131045004.4.5 | I178: 4 | J178: 3 | K178: No-Not Started | L178: Did Not Report | O178: Yes-Completed | P178: Approved | Q178: Category 4 reporting domain was reviewed, and HHSC found provider submitted documentation to support achievement. Project is approved and eligible for payment. | R178: Round 2 (October) | S178: 2013-09-30 | T178: 2013-09-30 | U178: YES | V178: 2013-10-01 | W178: 2014-09-30 | X178: 2013-10-01 | Y178: 2014-09-30
A179: 9 | B179: 131045004_5 | C179: 3_131045004 | D179: 3 | E179: 131045004 | F179: El Campo Memorial Hospital | G179: 131045004.4 | H179: 131045004.4.6 | I179: 5 | J179: 3 | K179: No-Not Started | L179: Did Not Report | O179: Yes-Completed | P179: Approved | Q179: Category 4 reporting domain was reviewed, and HHSC found provider submitted documentation to support achievement. Project is approved and eligible for payment. | R179: Round 2 (October) | S179: 2013-12-31 | U179: YES | V179: 2014-01-01 | W179: 2014-12-31
A180: 9 | B180: 133355104_3 | C180: 3_133355104 | D180: 3 | E180: 133355104 | F180: Harris County Hospital District | G180: 133355104.4 | H180: 133355104.4.1 | I180: 3 | J180: 3 | K180: Yes-Completed | L180: Approved | M180: Provider submitted required documentation to support Category 4 achievement. Project 133355104.4.1 is approved and eligible for DY3 payment. | O180: Yes-Completed | P180: Previously Approved | R180: Round 1 (April) | S180: 2012-12-31 | U180: YES | V180: 2013-01-01 | W180: 2013-12-31
A181: 9 | B181: 133355104_1 | C181: 3_133355104 | D181: 3 | E181: 133355104 | F181: Harris County Hospital District | G181: 133355104.4 | H181: 133355104.4.2 | I181: 1 | J181: 3 | K181: Yes-Completed | L181: Approved | M181: Provider submitted required documentation to support Category 4 achievement. Project 133355104.4.2 is approved and eligible for DY3 payment. | O181: Yes-Completed | P181: Previously Approved | R181: Round 1 (April) | S181: 2012-12-31 | U181: YES | V181: 2013-01-01 | W181: 2013-12-31
A182: 9 | B182: 133355104_2 | C182: 3_133355104 | D182: 3 | E182: 133355104 | F182: Harris County Hospital District | G182: 133355104.4 | H182: 133355104.4.3 | I182: 2 | J182: 3 | K182: Yes-Completed | L182: Approved | M182: Provider submitted required documentation to support Category 4 achievement. Project 133355104.4.3 is approved and eligible for DY3 payment. | O182: Yes-Completed | P182: Previously Approved | R182: Round 1 (April) | S182: 2012-12-31 | U182: YES | V182: 2013-01-01 | W182: 2013-12-31
A183: 9 | B183: 133355104_4 | C183: 3_133355104 | D183: 3 | E183: 133355104 | F183: Harris County Hospital District | G183: 133355104.4 | H183: 133355104.4.5 | I183: 4 | J183: 3 | K183: Yes-Completed | L183: Approved | M183: Provider submitted required documentation to support Category 4 achievement. Project 133355104.4.5 is approved and eligible for DY3 payment. | O183: Yes-Completed | P183: Previously Approved | R183: Round 1 (April) | S183: 2013-12-31 | T183: 2013-12-31 | U183: YES | V183: 2014-01-01 | W183: 2014-12-31 | X183: 2014-01-01 | Y183: 2014-12-31
A184: 9 | B184: 133355104_5 | C184: 3_133355104 | D184: 3 | E184: 133355104 | F184: Harris County Hospital District | G184: 133355104.4 | H184: 133355104.4.6 | I184: 5 | J184: 3 | K184: Yes-Completed | L184: Approved | M184: Provider submitted required documentation to support Category 4 achievement. Project 133355104.4.6 is approved and eligible for DY3 payment. | O184: Yes-Completed | P184: Previously Approved | R184: Round 1 (April) | S184: 2013-12-31 | U184: YES | V184: 2014-01-01 | W184: 2014-12-31
A185: 9 | B185: 137805107_3 | C185: 3_137805107 | D185: 3 | E185: 137805107 | F185: Memorial Hermann Hospital Southwest dba Memorial H | G185: 137805107.4 | H185: 137805107.4.1 | I185: 3 | J185: 3 | K185: Yes-Completed | L185: Approved | M185: Provider submitted required documentation to support Category 4 achievement. Project 137805107.4.1 is approved and eligible for DY3 payment. | O185: Yes-Completed | P185: Previously Approved | R185: Round 1 (April) | S185: 2012-12-31 | U185: YES | V185: 2013-01-01 | W185: 2013-12-31
A186: 9 | B186: 137805107_1 | C186: 3_137805107 | D186: 3 | E186: 137805107 | F186: Memorial Hermann Hospital Southwest dba Memorial H | G186: 137805107.4 | H186: 137805107.4.2 | I186: 1 | J186: 3 | K186: Yes-Completed | L186: Approved | M186: Provider submitted required documentation to support Category 4 achievement. Project 137805107.4.2 is approved and eligible for DY3 payment. | O186: Yes-Completed | P186: Previously Approved | R186: Round 1 (April) | S186: 2012-12-31 | U186: YES | V186: 2013-01-01 | W186: 2013-12-31
A187: 9 | B187: 137805107_2 | C187: 3_137805107 | D187: 3 | E187: 137805107 | F187: Memorial Hermann Hospital Southwest dba Memorial H | G187: 137805107.4 | H187: 137805107.4.3 | I187: 2 | J187: 3 | K187: Yes-Completed | L187: Approved | M187: Provider submitted required documentation to support Category 4 achievement. Project 137805107.4.3 is approved and eligible for DY3 payment. | O187: Yes-Completed | P187: Previously Approved | R187: Round 1 (April) | S187: 2012-12-31 | U187: YES | V187: 2013-01-01 | W187: 2013-12-31
A188: 9 | B188: 137805107_4 | C188: 3_137805107 | D188: 3 | E188: 137805107 | F188: Memorial Hermann Hospital Southwest dba Memorial H | G188: 137805107.4 | H188: 137805107.4.5 | I188: 4 | J188: 3 | K188: No-Not Started | L188: Did Not Report | O188: Yes-Completed | P188: Approved | Q188: Category 4 reporting domain was reviewed, and HHSC found provider submitted documentation to support achievement. Project is approved and eligible for payment. | R188: Round 2 (October) | S188: 2014-09-30 | T188: 2014-06-30 | U188: NO | V188: 2014-10-01 | W188: 2015-09-30 | X188: 2014-07-01 | Y188: 2015-06-30
A189: 9 | B189: 137805107_5 | C189: 3_137805107 | D189: 3 | E189: 137805107 | F189: Memorial Hermann Hospital Southwest dba Memorial H | G189: 137805107.4 | H189: 137805107.4.6 | I189: 5 | J189: 3 | K189: Yes-Completed | L189: Approved | M189: Provider submitted required documentation to support Category 4 achievement. Project 137805107.4.6 is approved and eligible for DY3 payment. | O189: Yes-Completed | P189: Previously Approved | R189: Round 1 (April) | S189: 2013-12-31 | U189: YES | V189: 2014-01-01 | W189: 2014-12-31
A190: 9 | B190: 137949705_3 | C190: 3_137949705 | D190: 3 | E190: 137949705 | F190: Houston Methodist Hospital | G190: 137949705.4 | H190: 137949705.4.1 | I190: 3 | J190: 3 | K190: No-Not Started | L190: Did Not Report | O190: Yes-Completed | P190: Approved | Q190: Category 4 reporting domain was reviewed, and HHSC found provider submitted documentation to support achievement. Project is approved and eligible for payment. | R190: Round 2 (October) | S190: 2012-12-31 | U190: YES | V190: 2013-01-01 | W190: 2013-12-31
A191: 9 | B191: 137949705_1 | C191: 3_137949705 | D191: 3 | E191: 137949705 | F191: Houston Methodist Hospital | G191: 137949705.4 | H191: 137949705.4.2 | I191: 1 | J191: 3 | K191: No-Not Started | L191: Did Not Report | O191: Yes-Completed | P191: Approved | Q191: Category 4 reporting domain was reviewed, and HHSC found provider submitted documentation to support achievement. Project is approved and eligible for payment. | R191: Round 2 (October) | S191: 2012-12-31 | U191: YES | V191: 2013-01-01 | W191: 2013-12-31
A192: 9 | B192: 137949705_2 | C192: 3_137949705 | D192: 3 | E192: 137949705 | F192: Houston Methodist Hospital | G192: 137949705.4 | H192: 137949705.4.3 | I192: 2 | J192: 3 | K192: No-Not Started | L192: Did Not Report | O192: Yes-Completed | P192: Approved | Q192: Category 4 reporting domain was reviewed, and HHSC found provider submitted documentation to support achievement. Project is approved and eligible for payment. | R192: Round 2 (October) | S192: 2012-12-31 | U192: YES | V192: 2013-01-01 | W192: 2013-12-31
A193: 9 | B193: 137949705_4 | C193: 3_137949705 | D193: 3 | E193: 137949705 | F193: Houston Methodist Hospital | G193: 137949705.4 | H193: 137949705.4.5 | I193: 4 | J193: 3 | K193: No-Not Started | L193: Did Not Report | O193: Yes-Completed | P193: Approved | Q193: Category 4 reporting domain was reviewed, and HHSC found provider submitted documentation to support achievement. Project is approved and eligible for payment. | R193: Round 2 (October) | S193: 2013-09-30 | T193: 2014-09-30 | U193: NO | V193: 2013-10-01 | W193: 2014-09-30 | X193: 2014-10-01 | Y193: 2015-09-30
A194: 9 | B194: 137949705_5 | C194: 3_137949705 | D194: 3 | E194: 137949705 | F194: Houston Methodist Hospital | G194: 137949705.4 | H194: 137949705.4.6 | I194: 5 | J194: 3 | K194: No-Not Started | L194: Did Not Report | O194: Yes-Completed | P194: Approved | Q194: Category 4 reporting domain was reviewed, and HHSC found provider submitted documentation to support achievement. Project is approved and eligible for payment. | R194: Round 2 (October) | S194: 2014-09-30 | U194: NO | V194: 2014-10-01 | W194: 2015-09-30
A195: =LEN(E195) -> 9 | B195: =E195&"_"&I195 -> 139135109_3 | C195: =D195&"_"&E195 -> 3_139135109 | D195: 3 | E195: 139135109 | F195: Texas Children's Hospital | G195: 139135109.4 | H195: 139135109.4.1 | I195: 3 | J195: 3 | K195: Yes-Completed | L195: Approved | M195: Provider submitted required documentation to support Category 4 achievement. Project 139135109.4.1 is approved and eligible for DY3 payment. | O195: Yes-Completed | P195: Previously Approved | R195: Round 1 (April) | S195: 2012-12-31 | U195: YES | V195: 2013-01-01 | W195: 2013-12-31
A196: 9 | B196: 139135109_1 | C196: 3_139135109 | D196: 3 | E196: 139135109 | F196: Texas Children's Hospital | G196: 139135109.4 | H196: 139135109.4.2 | I196: 1 | J196: 3 | K196: Yes-Completed | L196: Approved | M196: Provider submitted required documentation to support Category 4 achievement. Project 139135109.4.2 is approved and eligible for DY3 payment. | O196: Yes-Completed | P196: Previously Approved | R196: Round 1 (April) | S196: 2012-12-31 | U196: YES | V196: 2013-01-01 | W196: 2013-12-31
A197: 9 | B197: 139135109_2 | C197: 3_139135109 | D197: 3 | E197: 139135109 | F197: Texas Children's Hospital | G197: 139135109.4 | H197: 139135109.4.3 | I197: 2 | J197: 3 | K197: Yes-Completed | L197: Approved | M197: Provider submitted required documentation to support Category 4 achievement. Project 139135109.4.3 is approved and eligible for DY3 payment. | O197: Yes-Completed | P197: Previously Approved | R197: Round 1 (April) | S197: 2012-12-31 | U197: YES | V197: 2013-01-01 | W197: 2013-12-31
A198: 9 | B198: 139135109_4 | C198: 3_139135109 | D198: 3 | E198: 139135109 | F198: Texas Children's Hospital | G198: 139135109.4 | H198: 139135109.4.5 | I198: 4 | J198: 3 | K198: No-Not Started | L198: Did Not Report | O198: Yes-Completed | P198: Approved | Q198: Category 4 reporting domain was reviewed, and HHSC found provider submitted documentation to support achievement. Project is approved and eligible for payment. | R198: Round 2 (October) | S198: 2012-12-31 | T198: 2013-12-31 | U198: YES | V198: 2013-01-01 | W198: 2013-12-31 | X198: 2014-01-01 | Y198: 2014-12-31
A199: 9 | B199: 139135109_5 | C199: 3_139135109 | D199: 3 | E199: 139135109 | F199: Texas Children's Hospital | G199: 139135109.4 | H199: 139135109.4.6 | I199: 5 | J199: 3 | K199: No-Not Started | L199: Did Not Report | O199: Yes-Completed | P199: Approved | Q199: Category 4 reporting domain was reviewed, and HHSC found provider submitted documentation to support achievement. Project is approved and eligible for payment. | R199: Round 2 (October) | S199: 2012-12-31 | U199: YES | V199: 2013-01-01 | W199: 2013-12-31
A200: 9 | B200: 140713201_3 | C200: 3_140713201 | D200: 3 | E200: 140713201 | F200: Methodist Willowbrook | G200: 140713201.4 | H200: 140713201.4.1 | I200: 3 | J200: 3 | K200: No-Not Started | L200: Did Not Report | O200: Yes-Completed | P200: Approved | Q200: Category 4 reporting domain was reviewed, and HHSC found provider submitted documentation to support achievement. Project is approved and eligible for payment. | R200: Round 2 (October) | S200: 2012-12-31 | U200: YES | V200: 2013-01-01 | W200: 2013-12-31
... 677 more rows

Sheet Data_Collection (hidden)
A1: Data Collection
A2: This sheet is designed to capture all provider inputs
B3: Sheet | C3: 'DY4 Cat 4 Template'! | D3: 'DY4 Cat 4 Template'! | E3: 'DY4 Cat 4 Template'! | F3: 'DY4 Cat 4 Template'! | G3: 'DY4 Cat 4 Template'! | H3: 'DY4 Cat 4 Template'! | I3: 'DY4 Cat 4 Template'! | J3: 'DY4 Cat 4 Template'! | K3: 'DY4 Cat 4 Template'! | L3: 'DY4 Cat 4 Template'! | M3: 'DY4 Cat 4 Template'! | N3: 'DY4 Cat 4 Template'! | O3: 'DY4 Cat 4 Template'! | P3: 'DY4 Cat 4 Template'! | Q3: 'DY4 Cat 4 Template'! | R3: 'DY4 Cat 4 Template'! | S3: 'DY4 Cat 4 Template'! | T3: 'DY4 Cat 4 Template'! | U3: 'DY4 Cat 4 Template'! | V3: 'DY4 Cat 4 Template'! | W3: 'DY4 Cat 4 Template'! | X3: 'DY4 Cat 4 Template'! | Y3: 'DY4 Cat 4 Template'! | Z3: 'DY4 Cat 4 Template'! | AA3: 'DY4 Cat 4 Template'! | AB3: 'DY4 Cat 4 Template'! | AC3: 'DY4 Cat 4 Template'! | AD3: 'DY4 Cat 4 Template'! | AE3: 'DY4 Cat 4 Template'! | AF3: 'DY4 Cat 4 Template'! | AG3: 'DY4 Cat 4 Template'! | AH3: 'DY4 Cat 4 Template'! | AI3: 'DY4 Cat 4 Template'! | AJ3: 'DY4 Cat 4 Template'! | AK3: 'DY4 Cat 4 Template'! | AL3: 'DY4 Cat 4 Template'! | AM3: 'DY4 Cat 4 Template'! | AN3: 'DY4 Cat 4 Template'! | AO3: 'DY4 Cat 4 Template'! | AP3: 'DY4 Cat 4 Template'! | AQ3: 'DY4 Cat 4 Template'! | AR3: 'DY4 Cat 4 Template'! | AS3: 'DY4 Cat 4 Template'! | AT3: 'DY4 Cat 4 Template'! | AU3: 'DY4 Cat 4 Template'! | AV3: 'DY4 Cat 4 Template'! | AW3: 'DY4 Cat 4 Template'! | AX3: 'DY4 Cat 4 Template'! | AY3: 'DY4 Cat 4 Template'! | AZ3: 'DY4 Cat 4 Template'! | BA3: 'DY4 Cat 4 Template'! | BB3: 'DY4 Cat 4 Template'! | BC3: 'DY4 Cat 4 Template'! | BD3: 'DY4 Cat 4 Template'! | BE3: 'DY4 Cat 4 Template'! | BF3: 'DY4 Cat 4 Template'! | BG3: 'DY4 Cat 4 Template'! | BH3: 'DY4 Cat 4 Template'! | BI3: 'DY4 Cat 4 Template'! | BJ3: 'DY4 Cat 4 Template'! | BK3: 'DY4 Cat 4 Template'! | BL3: 'DY4 Cat 4 Template'! | BM3: 'DY4 Cat 4 Template'! | BN3: 'DY4 Cat 4 Template'! | BO3: 'DY4 Cat 4 Template'! | BP3: 'DY4 Cat 4 Template'! | BQ3: 'DY4 Cat 4 Template'! | BR3: 'DY4 Cat 4 Template'! | BS3: 'DY4 Cat 4 Template'! | BT3: 'DY4 Cat 4 Template'! | BU3: 'DY4 Cat 4 Template'! | BV3: 'DY4 Cat 4 Template'! | BW3: 'DY4 Cat 4 Template'! | BX3: 'DY4 Cat 4 Template'! | BY3: 'DY4 Cat 4 Template'! | BZ3: 'DY4 Cat 4 Template'! | CA3: 'DY4 Cat 4 Template'! | CB3: 'DY4 Cat 4 Template'! | CC3: 'DY4 Cat 4 Template'! | CD3: 'DY4 Cat 4 Template'! | CE3: 'DY4 Cat 4 Template'! | CF3: 'DY4 Cat 4 Template'! | CG3: 'DY4 Cat 4 Template'! | CH3: 'DY4 Cat 4 Template'! | CI3: 'DY4 Cat 4 Template'! | CJ3: 'DY4 Cat 4 Template'! | CK3: 'DY4 Cat 4 Template'! | CL3: 'DY4 Cat 4 Template'! | CM3: 'DY4 Cat 4 Template'! | CN3: 'DY4 Cat 4 Template'! | CO3: 'DY4 Cat 4 Template'! | CP3: 'DY4 Cat 4 Template'! | CQ3: 'DY4 Cat 4 Template'! | CR3: 'DY4 Cat 4 Template'! | CS3: 'DY4 Cat 4 Template'! | CT3: 'DY4 Cat 4 Template'! | CU3: 'DY4 Cat 4 Template'! | CV3: 'DY4 Cat 4 Template'! | CW3: 'DY4 Cat 4 Template'! | CX3: 'DY4 Cat 4 Template'! | CY3: 'DY4 Cat 4 Template'! | CZ3: 'DY4 Cat 4 Template'! | DA3: 'DY4 Cat 4 Template'! | DB3: 'DY4 Cat 4 Template'! | DC3: 'DY4 Cat 4 Template'! | DD3: 'DY4 Cat 4 Template'! | DE3: 'DY4 Cat 4 Template'! | DF3: 'DY4 Cat 4 Template'! | DG3: 'DY4 Cat 4 Template'! | DH3: 'DY4 Cat 4 Template'! | DI3: 'DY4 Cat 4 Template'! | DJ3: 'DY4 Cat 4 Template'! | DK3: 'DY4 Cat 4 Template'! | DL3: 'DY4 Cat 4 Template'! | DM3: 'DY4 Cat 4 Template'! | DN3: 'DY4 Cat 4 Template'! | DO3: 'DY4 Cat 4 Template'! | DP3: 'DY4 Cat 4 Template'! | DQ3: 'DY4 Cat 4 Template'! | DR3: 'DY4 Cat 4 Template'! | DS3: 'DY4 Cat 4 Template'! | DT3: 'DY4 Cat 4 Template'! | DU3: 'DY4 Cat 4 Template'! | DV3: 'DY4 Cat 4 Template'! | DW3: 'DY4 Cat 4 Template'! | DX3: 'DY4 Cat 4 Template'! | DY3: 'DY4 Cat 4 Template'! | DZ3: 'DY4 Cat 4 Template'! | EA3: 'DY4 Cat 4 Template'! | EB3: 'DY4 Cat 4 Template'! | EC3: 'DY4 Cat 4 Template'! | ED3: 'DY4 Cat 4 Template'! | EE3: 'DY4 Cat 4 Template'! | EF3: 'DY4 Cat 4 Template'! | EG3: 'DY4 Cat 4 Template'! | EH3: 'DY4 Cat 4 Template'! | EI3: 'DY4 Cat 4 Template'! | EJ3: 'DY4 Cat 4 Template'! | EK3: 'DY4 Cat 4 Template'! | EL3: 'DY4 Cat 4 Template'! | EM3: 'DY4 Cat 4 Template'! | EN3: 'DY4 Cat 4 Template'! | EO3: 'DY4 Cat 4 Template'! | EP3: 'DY4 Cat 4 Template'! | EQ3: 'DY4 Cat 4 Template'! | ER3: 'DY4 Cat 4 Template'! | ES3: 'DY4 Cat 4 Template'! | ET3: 'DY4 Cat 4 Template'! | EU3: 'DY4 Cat 4 Template'! | EV3: 'DY4 Cat 4 Template'! | EW3: 'DY4 Cat 4 Template'! | EX3: 'DY4 Cat 4 Template'! | EY3: 'DY4 Cat 4 Template'! | EZ3: 'DY4 Cat 4 Template'! | FA3: 'DY4 Cat 4 Template'! | FB3: 'DY4 Cat 4 Template'! | FC3: 'DY4 Cat 4 Template'! | FD3: 'DY4 Cat 4 Template'! | FE3: 'DY4 Cat 4 Template'! | FF3: 'DY4 Cat 4 Template'! | FG3: 'DY4 Cat 4 Template'! | FH3: 'DY4 Cat 4 Template'! | FI3: 'DY4 Cat 4 Template'! | FJ3: 'DY4 Cat 4 Template'! | FK3: 'DY4 Cat 4 Template'! | FL3: 'DY4 Cat 4 Template'! | FM3: 'DY4 Cat 4 Template'! | FN3: 'DY4 Cat 4 Template'! | FO3: 'DY4 Cat 4 Template'! | FP3: 'DY4 Cat 4 Template'! | FQ3: 'DY4 Cat 4 Template'! | FR3: 'DY4 Cat 4 Template'! | FS3: 'DY4 Cat 4 Template'! | FT3: 'DY4 Cat 4 Template'! | FU3: 'DY4 Cat 4 Template'! | FV3: 'DY4 Cat 4 Template'! | FW3: 'DY4 Cat 4 Template'! | FX3: 'DY4 Cat 4 Template'! | FY3: 'DY4 Cat 4 Template'! | FZ3: 'DY4 Cat 4 Template'! | GA3: 'DY4 Cat 4 Template'! | GB3: 'DY4 Cat 4 Template'! | GC3: 'DY4 Cat 4 Template'! | GD3: 'DY4 Cat 4 Template'! | GE3: 'DY4 Cat 4 Template'! | GF3: 'DY4 Cat 4 Template'! | GG3: 'DY4 Cat 4 Template'! | GH3: 'DY4 Cat 4 Template'! | GI3: 'DY4 Cat 4 Template'! | GJ3: 'DY4 Cat 4 Template'! | GK3: 'DY4 Cat 4 Template'! | GL3: 'DY4 Cat 4 Template'! | GM3: 'DY4 Cat 4 Template'! | GN3: 'DY4 Cat 4 Template'! | GO3: 'DY4 Cat 4 Template'! | GP3: 'DY4 Cat 4 Template'! | GQ3: 'DY4 Cat 4 Template'! | GR3: 'DY4 Cat 4 Template'! | GS3: 'DY4 Cat 4 Template'! | GT3: 'DY4 Cat 4 Template'! | GU3: 'DY4 Cat 4 Template'! | GV3: 'DY4 Cat 4 Template'! | GW3: 'DY4 Cat 4 Template'! | GX3: 'DY4 Cat 4 Template'! | GY3: 'DY4 Cat 4 Template'! | GZ3: 'DY4 Cat 4 Template'! | HA3: 'DY4 Cat 4 Template'! | HB3: 'DY4 Cat 4 Template'! | HC3: 'DY4 Cat 4 Template'! | HD3: 'DY4 Cat 4 Template'! | HE3: 'DY4 Cat 4 Template'! | HF3: 'DY4 Cat 4 Template'! | HG3: 'DY4 Cat 4 Template'! | HH3: 'DY4 Cat 4 Template'! | HI3: 'DY4 Cat 4 Template'! | HJ3: 'DY4 Cat 4 Template'! | HK3: 'DY4 Cat 4 Template'! | HL3: 'DY4 Cat 4 Template'! | HM3: 'DY4 Cat 4 Template'! | HN3: 'DY4 Cat 4 Template'! | HO3: 'DY4 Cat 4 Template'! | HP3: 'DY4 Cat 4 Template'! | HQ3: 'DY4 Cat 4 Template'! | HR3: 'DY4 Cat 4 Template'! | HS3: 'DY4 Cat 4 Template'! | HT3: 'DY4 Cat 4 Template'! | HU3: 'DY4 Cat 4 Template'! | HV3: 'DY4 Cat 4 Template'! | HW3: 'DY4 Cat 4 Template'! | HX3: 'DY4 Cat 4 Template'! | HY3: 'DY4 Cat 4 Template'! | HZ3: 'DY4 Cat 4 Template'! | IA3: 'DY4 Cat 4 Template'! | IB3: 'DY4 Cat 4 Template'! | IC3: 'DY4 Cat 4 Template'! | ID3: 'DY4 Cat 4 Template'! | IE3: 'DY4 Cat 4 Template'! | IF3: 'DY4 Cat 4 Template'! | IG3: 'DY4 Cat 4 Template'! | IH3: 'DY4 Cat 4 Template'! | II3: 'DY4 Cat 4 Template'! | IJ3: 'DY4 Cat 4 Template'! | IK3: 'DY4 Cat 4 Template'! | IL3: 'DY4 Cat 4 Template'! | IM3: 'DY4 Cat 4 Template'! | IN3: 'DY4 Cat 4 Template'! | IO3: 'DY4 Cat 4 Template'! | IP3: 'DY4 Cat 4 Template'! | IQ3: 'DY4 Cat 4 Template'! | IR3: 'DY4 Cat 4 Template'! | IS3: 'DY4 Cat 4 Template'! | IT3: 'DY4 Cat 4 Template'! | IU3: 'DY4 Cat 4 Template'! | IV3: 'DY4 Cat 4 Template'! | IW3: 'DY4 Cat 4 Template'! | IX3: 'DY4 Cat 4 Template'! | IY3: 'DY4 Cat 4 Template'! | IZ3: 'DY4 Cat 4 Template'! | JA3: 'DY4 Cat 4 Template'! | JB3: 'DY4 Cat 4 Template'! | JC3: 'DY4 Cat 4 Template'! | JD3: 'DY4 Cat 4 Template'! | JE3: 'DY4 Cat 4 Template'! | JF3: 'DY4 Cat 4 Template'! | JG3: 'DY4 Cat 4 Template'! | JH3: 'DY4 Cat 4 Template'! | JI3: 'DY4 Cat 4 Template'! | JJ3: 'DY4 Cat 4 Template'! | JK3: 'DY4 Cat 4 Template'! | JL3: 'DY4 Cat 4 Template'! | JM3: 'DY4 Cat 4 Template'! | JN3: 'DY4 Cat 4 Template'! | JO3: 'DY4 Cat 4 Template'! | JP3: 'DY4 Cat 4 Template'! | JQ3: 'DY4 Cat 4 Template'! | JR3: 'DY4 Cat 4 Template'! | JS3: 'DY4 Cat 4 Template'! | JT3: 'DY4 Cat 4 Template'! | JU3: 'DY4 Cat 4 Template'! | JV3: 'DY4 Cat 4 Template'! | JW3: 'DY4 Cat 4 Template'! | JX3: 'DY4 Cat 4 Template'! | JY3: 'DY4 Cat 4 Template'! | JZ3: 'DY4 Cat 4 Template'! | KA3: 'DY4 Cat 4 Template'! | KB3: 'DY4 Cat 4 Template'! | KC3: 'DY4 Cat 4 Template'! | KD3: 'DY4 Cat 4 Template'! | KE3: 'DY4 Cat 4 Template'! | KF3: 'DY4 Cat 4 Template'! | KG3: 'DY4 Cat 4 Template'! | KH3: 'DY4 Cat 4 Template'! | KI3: 'DY4 Cat 4 Template'! | KJ3: 'DY4 Cat 4 Template'! | KK3: 'DY4 Cat 4 Template'! | KL3: 'DY4 Cat 4 Template'! | KM3: 'DY4 Cat 4 Template'! | KN3: 'DY4 Cat 4 Template'! | KO3: 'DY4 Cat 4 Template'! | KP3: 'DY4 Cat 4 Template'! | KQ3: 'DY4 Cat 4 Template'! | KR3: 'DY4 Cat 4 Template'! | KS3: 'DY4 Cat 4 Template'! | KT3: 'DY4 Cat 4 Template'! | KU3: 'DY4 Cat 4 Template'! | KV3: 'DY4 Cat 4 Template'! | KW3: 'DY4 Cat 4 Template'! | KX3: 'DY4 Cat 4 Template'! | KY3: 'DY4 Cat 4 Template'! | KZ3: 'DY4 Cat 4 Template'! | LA3: 'DY4 Cat 4 Template'! | LB3: 'DY4 Cat 4 Template'! | LC3: 'DY4 Cat 4 Template'! | LD3: 'DY4 Cat 4 Template'! | LE3: 'DY4 Cat 4 Template'! | LF3: 'DY4 Cat 4 Template'! | LG3: 'DY4 Cat 4 Template'! | LH3: 'DY4 Cat 4 Template'! | LI3: 'DY4 Cat 4 Template'! | LJ3: 'DY4 Cat 4 Template'! | LK3: 'DY4 Cat 4 Template'! | LL3: 'DY4 Cat 4 Template'! | LM3: 'DY4 Cat 4 Template'! | LN3: 'DY4 Cat 4 Template'! | LO3: 'DY4 Cat 4 Template'! | LP3: 'DY4 Cat 4 Template'! | LQ3: 'DY4 Cat 4 Template'! | LR3: 'DY4 Cat 4 Template'! | LS3: 'DY4 Cat 4 Template'! | LT3: 'DY4 Cat 4 Template'! | LU3: 'DY4 Cat 4 Template'! | LV3: 'DY4 Cat 4 Template'! | LW3: 'DY4 Cat 4 Template'! | LX3: 'DY4 Cat 4 Template'! | LY3: 'DY4 Cat 4 Template'! | LZ3: 'DY4 Cat 4 Template'! | MA3: 'DY4 Cat 4 Template'! | MB3: 'DY4 Cat 4 Template'! | MC3: 'DY4 Cat 4 Template'! | MD3: 'DY4 Cat 4 Template'! | ME3: 'DY4 Cat 4 Template'! | MF3: 'DY4 Cat 4 Template'! | MG3: 'DY4 Cat 4 Template'! | MH3: 'DY4 Cat 4 Template'! | MI3: 'DY4 Cat 4 Template'! | MJ3: 'DY4 Cat 4 Template'! | MK3: 'DY4 Cat 4 Template'! | ML3: 'DY4 Cat 4 Template'! | MM3: 'DY4 Cat 4 Template'! | MN3: 'DY4 Cat 4 Template'! | MO3: 'DY4 Cat 4 Template'! | MP3: 'DY4 Cat 4 Template'! | MQ3: 'DY4 Cat 4 Template'! | MR3: 'DY4 Cat 4 Template'! | MS3: 'DY4 Cat 4 Template'! | MT3: 'DY4 Cat 4 Template'! | MU3: 'DY4 Cat 4 Template'! | MV3: 'DY4 Cat 4 Template'! | MW3: 'DY4 Cat 4 Template'! | MX3: 'DY4 Cat 4 Template'! | MY3: 'DY4 Cat 4 Template'! | MZ3: 'DY4 Cat 4 Template'! | NA3: 'DY4 Cat 4 Template'! | NB3: 'DY4 Cat 4 Template'! | NC3: 'DY4 Cat 4 Template'! | ND3: 'DY4 Cat 4 Template'! | NE3: 'DY4 Cat 4 Template'! | NF3: 'DY4 Cat 4 Template'! | NG3: 'DY4 Cat 4 Template'! | NH3: 'DY4 Cat 4 Template'! | NI3: 'DY4 Cat 4 Template'! | NJ3: 'DY4 Cat 4 Template'! | NK3: 'DY4 Cat 4 Template'! | NL3: 'DY4 Cat 4 Template'! | NM3: 'DY4 Cat 4 Template'! | NN3: 'DY4 Cat 4 Template'! | NO3: 'DY4 Cat 4 Template'! | NP3: 'DY4 Cat 4 Template'! | NQ3: 'DY4 Cat 4 Template'! | NR3: 'DY4 Cat 4 Template'! | NS3: 'DY4 Cat 4 Template'! | NT3: 'DY4 Cat 4 Template'! | NU3: 'DY4 Cat 4 Template'! | NV3: 'DY4 Cat 4 Template'! | NW3: 'DY4 Cat 4 Template'! | NX3: 'DY4 Cat 4 Template'! | NY3: 'DY4 Cat 4 Template'! | NZ3: 'DY4 Cat 4 Template'! | OA3: 'DY4 Cat 4 Template'! | OB3: 'DY4 Cat 4 Template'! | OC3: 'DY4 Cat 4 Template'! | OD3: 'DY4 Cat 4 Template'! | OE3: 'DY4 Cat 4 Template'! | OF3: 'DY4 Cat 4 Template'! | OG3: 'DY4 Cat 4 Template'! | OH3: 'DY4 Cat 4 Template'! | OI3: 'DY4 Cat 4 Template'! | OJ3: 'DY4 Cat 4 Template'! | OK3: 'DY4 Cat 4 Template'! | OL3: 'DY4 Cat 4 Template'! | OM3: 'DY4 Cat 4 Template'! | ON3: 'DY4 Cat 4 Template'! | OO3: 'DY4 Cat 4 Template'! | OP3: 'DY4 Cat 4 Template'! | OQ3: 'DY4 Cat 4 Template'! | OR3: 'DY4 Cat 4 Template'! | OS3: 'DY4 Cat 4 Template'! | OT3: 'DY4 Cat 4 Template'! | OU3: 'DY4 Cat 4 Template'! | OV3: 'DY4 Cat 4 Template'! | OW3: 'DY4 Cat 4 Template'! | OX3: 'DY4 Cat 4 Template'! | OY3: 'DY4 Cat 4 Template'! | OZ3: 'DY4 Cat 4 Template'! | PA3: 'DY4 Cat 4 Template'! | PB3: 'DY4 Cat 4 Template'! | PC3: 'DY4 Cat 4 Template'! | PD3: 'DY4 Cat 4 Template'! | PE3: 'DY4 Cat 4 Template'! | PF3: 'DY4 Cat 4 Template'! | PG3: 'DY4 Cat 4 Template'! | PH3: 'DY4 Cat 4 Template'! | PI3: 'DY4 Cat 4 Template'! | PJ3: 'DY4 Cat 4 Template'! | PK3: 'DY4 Cat 4 Template'! | PL3: 'DY4 Cat 4 Template'! | PM3: 'DY4 Cat 4 Template'! | PN3: 'DY4 Cat 4 Template'! | PO3: 'DY4 Cat 4 Template'! | PP3: 'DY4 Cat 4 Template'! | PQ3: 'DY4 Cat 4 Template'! | PR3: 'DY4 Cat 4 Template'! | PS3: 'DY4 Cat 4 Template'! | PT3: 'DY4 Cat 4 Template'! | PU3: 'DY4 Cat 4 Template'! | PV3: 'DY4 Cat 4 Template'! | PW3: 'DY4 Cat 4 Template'! | PX3: 'DY4 Cat 4 Template'! | PY3: 'DY4 Cat 4 Template'! | PZ3: 'DY4 Cat 4 Template'! | QA3: 'DY4 Cat 4 Template'! | QB3: 'DY4 Cat 4 Template'! | QC3: 'DY4 Cat 4 Template'! | QD3: 'DY4 Cat 4 Template'! | QE3: 'DY4 Cat 4 Template'! | QF3: 'DY4 Cat 4 Template'! | QG3: 'DY4 Cat 4 Template'! | QH3: 'DY4 Cat 4 Template'! | QI3: 'DY4 Cat 4 Template'! | QJ3: 'DY4 Cat 4 Template'! | QK3: 'DY4 Cat 4 Template'! | QL3: 'DY4 Cat 4 Template'! | QM3: 'DY4 Cat 4 Template'! | QN3: 'DY4 Cat 4 Template'! | QO3: 'DY4 Cat 4 Template'! | QP3: 'DY4 Cat 4 Template'! | QQ3: 'DY4 Cat 4 Template'! | QR3: 'DY4 Cat 4 Template'! | QS3: 'DY4 Cat 4 Template'! | QT3: 'DY4 Cat 4 Template'! | QU3: 'DY4 Cat 4 Template'! | QV3: 'DY4 Cat 4 Template'! | QW3: 'DY4 Cat 4 Template'! | QX3: 'DY4 Cat 4 Template'! | QY3: 'DY4 Cat 4 Template'! | QZ3: 'DY4 Cat 4 Template'! | RA3: 'DY4 Cat 4 Template'! | RB3: 'DY4 Cat 4 Template'! | RC3: 'DY4 Cat 4 Template'! | RD3: 'DY4 Cat 4 Template'! | RE3: 'DY4 Cat 4 Template'! | RF3: 'DY4 Cat 4 Template'! | RG3: 'DY4 Cat 4 Template'! | RH3: 'DY4 Cat 4 Template'! | RI3: 'DY4 Cat 4 Template'! | RJ3: 'DY4 Cat 4 Template'! | RK3: 'DY4 Cat 4 Template'! | RL3: 'DY4 Cat 4 Template'! | RM3: 'DY4 Cat 4 Template'! | RN3: 'DY4 Cat 4 Template'! | RO3: 'DY4 Cat 4 Template'! | RP3: 'DY4 Cat 4 Template'! | RQ3: 'DY4 Cat 4 Template'! | RR3: 'DY4 Cat 4 Template'! | RS3: 'DY4 Cat 4 Template'! | RT3: 'DY4 Cat 4 Template'! | RU3: 'DY4 Cat 4 Template'! | RV3: 'DY4 Cat 4 Template'! | RW3: 'DY4 Cat 4 Template'! | RX3: 'DY4 Cat 4 Template'! | RY3: 'DY4 Cat 4 Template'! | RZ3: 'DY4 Cat 4 Template'! | SA3: 'DY4 Cat 4 Template'! | SB3: 'DY4 Cat 4 Template'! | SC3: 'DY4 Cat 4 Template'! | SD3: 'DY4 Cat 4 Template'! | SE3: 'DY4 Cat 4 Template'! | SF3: 'DY4 Cat 4 Template'! | SG3: 'DY4 Cat 4 Template'! | SH3: 'DY4 Cat 4 Template'! | SI3: 'DY4 Cat 4 Template'! | SJ3: 'DY4 Cat 4 Template'! | SK3: 'DY4 Cat 4 Template'! | SL3: 'DY4 Cat 4 Template'! | SM3: 'DY4 Cat 4 Template'! | SN3: 'DY4 Cat 4 Template'! | SO3: 'DY4 Cat 4 Template'! | SP3: 'DY4 Cat 4 Template'! | SQ3: 'DY4 Cat 4 Template'! | SR3: 'DY4 Cat 4 Template'! | SS3: 'DY4 Cat 4 Template'! | ST3: 'DY4 Cat 4 Template'! | SU3: 'DY4 Cat 4 Template'! | SV3: 'DY4 Cat 4 Template'! | SW3: 'DY4 Cat 4 Template'! | SX3: 'DY4 Cat 4 Template'! | SY3: 'DY4 Cat 4 Template'! | SZ3: 'DY4 Cat 4 Template'! | TA3: 'DY4 Cat 4 Template'! | TB3: 'DY4 Cat 4 Template'! | TC3: 'DY4 Cat 4 Template'! | TD3: 'DY4 Cat 4 Template'! | TE3: 'DY4 Cat 4 Template'! | TF3: 'DY4 Cat 4 Template'! | TG3: 'DY4 Cat 4 Template'! | TH3: 'DY4 Cat 4 Template'! | TI3: 'DY4 Cat 4 Template'! | TJ3: 'DY4 Cat 4 Template'! | TK3: 'DY4 Cat 4 Template'! | TL3: 'DY4 Cat 4 Template'! | TM3: 'DY4 Cat 4 Template'! | TN3: 'DY4 Cat 4 Template'! | TO3: 'DY4 Cat 4 Template'! | TP3: 'DY4 Cat 4 Template'! | TQ3: 'DY4 Cat 4 Template'! | TR3: 'DY4 Cat 4 Template'! | TS3: 'DY4 Cat 4 Template'! | TT3: 'DY4 Cat 4 Template'! | TU3: 'DY4 Cat 4 Template'! | TV3: 'DY4 Cat 4 Template'! | TW3: 'DY4 Cat 4 Template'! | TX3: 'DY4 Cat 4 Template'! | TY3: 'DY4 Cat 4 Template'! | TZ3: 'DY4 Cat 4 Template'! | UA3: 'DY4 Cat 4 Template'! | UB3: 'DY4 Cat 4 Template'! | UC3: 'DY4 Cat 4 Template'! | UD3: 'DY4 Cat 4 Template'! | UE3: 'DY4 Cat 4 Template'! | UF3: 'DY4 Cat 4 Template'! | UG3: 'DY4 Cat 4 Template'! | UH3: 'DY4 Cat 4 Template'! | UI3: 'DY4 Cat 4 Template'! | UJ3: 'DY4 Cat 4 Template'! | UK3: 'DY4 Cat 4 Template'! | UL3: 'DY4 Cat 4 Template'! | UM3: 'DY4 Cat 4 Template'! | UN3: 'DY4 Cat 4 Template'! | UO3: 'DY4 Cat 4 Template'! | UP3: 'DY4 Cat 4 Template'! | UQ3: 'DY4 Cat 4 Template'! | UR3: 'DY4 Cat 4 Template'! | US3: 'DY4 Cat 4 Template'! | UT3: 'DY4 Cat 4 Template'! | UU3: 'DY4 Cat 4 Template'! | UV3: 'DY4 Cat 4 Template'! | UW3: 'DY4 Cat 4 Template'! | UX3: 'DY4 Cat 4 Template'! | UY3: 'DY4 Cat 4 Template'! | UZ3: 'DY4 Cat 4 Template'! | VA3: 'DY4 Cat 4 Template'! | VB3: 'DY4 Cat 4 Template'! | VC3: 'DY4 Cat 4 Template'! | VD3: 'DY4 Cat 4 Template'! | VE3: 'DY4 Cat 4 Template'! | VF3: 'DY4 Cat 4 Template'! | VG3: 'DY4 Cat 4 Template'! | VH3: 'DY4 Cat 4 Template'! | VI3: 'DY4 Cat 4 Template'! | VJ3: 'DY4 Cat 4 Template'! | VK3: 'DY4 Cat 4 Template'! | VL3: 'DY4 Cat 4 Template'! | VM3: 'DY4 Cat 4 Template'! | VN3: 'DY4 Cat 4 Template'! | VO3: 'DY4 Cat 4 Template'! | VP3: 'DY4 Cat 4 Template'! | VQ3: 'DY4 Cat 4 Template'! | VR3: 'DY4 Cat 4 Template'! | VS3: 'DY4 Cat 4 Template'! | VT3: 'DY4 Cat 4 Template'! | VU3: 'DY4 Cat 4 Template'! | VV3: 'DY4 Cat 4 Template'! | VW3: 'DY4 Cat 4 Template'! | VX3: 'DY4 Cat 4 Template'! | VY3: 'DY4 Cat 4 Template'! | VZ3: 'DY4 Cat 4 Template'! | WA3: 'DY4 Cat 4 Template'! | WB3: 'DY4 Cat 4 Template'! | WC3: 'DY4 Cat 4 Template'! | WD3: 'DY4 Cat 4 Template'! | WE3: 'DY4 Cat 4 Template'! | WF3: 'DY4 Cat 4 Template'! | WG3: 'DY4 Cat 4 Template'! | WH3: 'DY4 Cat 4 Template'! | WI3: 'DY4 Cat 4 Template'! | WJ3: 'DY4 Cat 4 Template'! | WK3: 'DY4 Cat 4 Template'! | WL3: 'DY4 Cat 4 Template'! | WM3: 'DY4 Cat 4 Template'! | WN3: 'DY4 Cat 4 Template'! | WO3: 'DY4 Cat 4 Template'! | WP3: 'DY4 Cat 4 Template'! | WQ3: 'DY4 Cat 4 Template'! | WR3: 'DY4 Cat 4 Template'! | WS3: 'DY4 Cat 4 Template'! | WT3: 'DY4 Cat 4 Template'! | WU3: 'DY4 Cat 4 Template'! | WV3: 'DY4 Cat 4 Template'! | WW3: 'DY4 Cat 4 Template'! | WX3: 'DY4 Cat 4 Template'! | WY3: 'DY4 Cat 4 Template'! | WZ3: 'DY4 Cat 4 Template'! | XA3: 'DY4 Cat 4 Template'! | XB3: 'DY4 Cat 4 Template'! | XC3: 'DY4 Cat 4 Template'! | XD3: 'DY4 Cat 4 Template'! | XE3: 'DY4 Cat 4 Template'! | XF3: 'DY4 Cat 4 Template'! | XG3: 'DY4 Cat 4 Template'! | XH3: 'DY4 Cat 4 Template'! | XI3: 'DY4 Cat 4 Template'! | XJ3: 'DY4 Cat 4 Template'! | XK3: 'DY4 Cat 4 Template'! | XL3: 'DY4 Cat 4 Template'! | XM3: 'DY4 Cat 4 Template'! | XN3: 'DY4 Cat 4 Template'! | XO3: 'DY4 Cat 4 Template'! | XP3: 'DY4 Cat 4 Template'! | XQ3: 'DY4 Cat 4 Template'! | XR3: 'DY4 Cat 4 Template'! | XS3: 'DY4 Cat 4 Template'! | XT3: 'DY4 Cat 4 Template'! | XU3: 'DY4 Cat 4 Template'! | XV3: 'DY4 Cat 4 Template'! | XW3: 'DY4 Cat 4 Template'! | XX3: 'DY4 Cat 4 Template'! | XY3: 'DY4 Cat 4 Template'! | XZ3: 'DY4 Cat 4 Template'! | YA3: 'DY4 Cat 4 Template'! | YB3: 'DY4 Cat 4 Template'! | YC3: 'DY4 Cat 4 Template'! | YD3: 'DY4 Cat 4 Template'! | YE3: 'DY4 Cat 4 Template'! | YF3: 'DY4 Cat 4 Template'! | YG3: 'DY4 Cat 4 Template'! | YH3: 'DY4 Cat 4 Template'! | YI3: 'DY4 Cat 4 Template'! | YJ3: 'DY4 Cat 4 Template'! | YK3: 'DY4 Cat 4 Template'! | YL3: 'DY4 Cat 4 Template'! | YM3: 'DY4 Cat 4 Template'! | YN3: 'DY4 Cat 4 Template'! | YO3: 'DY4 Cat 4 Template'! | YP3: 'DY4 Cat 4 Template'! | YQ3: 'DY4 Cat 4 Template'! | YR3: 'DY4 Cat 4 Template'! | YS3: 'DY4 Cat 4 Template'! | YT3: 'DY4 Cat 4 Template'! | YU3: 'DY4 Cat 4 Template'! | YV3: 'DY4 Cat 4 Template'! | YW3: 'DY4 Cat 4 Template'! | YX3: 'DY4 Cat 4 Template'! | YY3: 'DY4 Cat 4 Template'! | YZ3: 'DY4 Cat 4 Template'! | ZA3: 'DY4 Cat 4 Template'! | ZB3: 'DY4 Cat 4 Template'! | ZC3: 'DY4 Cat 4 Template'! | ZD3: 'DY4 Cat 4 Template'! | ZE3: 'DY4 Cat 4 Template'! | ZF3: 'DY4 Cat 4 Template'! | ZG3: 'DY4 Cat 4 Template'! | ZH3: 'DY4 Cat 4 Template'! | ZI3: 'DY4 Cat 4 Template'! | ZJ3: 'DY4 Cat 4 Template'! | ZK3: 'DY4 Cat 4 Template'! | ZL3: 'DY4 Cat 4 Template'! | ZM3: 'DY4 Cat 4 Template'! | ZN3: 'DY4 Cat 4 Template'! | ZO3: 'DY4 Cat 4 Template'! | ZP3: 'DY4 Cat 4 Template'! | ZQ3: 'DY4 Cat 4 Template'! | ZR3: 'DY4 Cat 4 Template'! | ZS3: 'DY4 Cat 4 Template'! | ZT3: 'DY4 Cat 4 Template'! | ZU3: 'DY4 Cat 4 Template'! | ZV3: 'DY4 Cat 4 Template'! | ZW3: 'DY4 Cat 4 Template'! | ZX3: 'DY4 Cat 4 Template'! | ZY3: 'DY4 Cat 4 Template'! | ZZ3: 'DY4 Cat 4 Template'! | AAA3: 'DY4 Cat 4 Template'! | AAB3: 'DY4 Cat 4 Template'! | AAC3: 'DY4 Cat 4 Template'! | AAD3: 'DY4 Cat 4 Template'! | AAE3: 'DY4 Cat 4 Template'! | AAF3: 'DY4 Cat 4 Template'! | AAG3: 'DY4 Cat 4 Template'! | AAH3: 'DY4 Cat 4 Template'! | AAI3: 'DY4 Cat 4 Template'! | AAJ3: 'DY4 Cat 4 Template'! | AAK3: 'DY4 Cat 4 Template'! | AAL3: 'DY4 Cat 4 Template'! | AAM3: 'DY4 Cat 4 Template'! | AAN3: 'DY4 Cat 4 Template'! | AAO3: 'DY4 Cat 4 Template'! | AAP3: 'DY4 Cat 4 Template'! | AAQ3: 'DY4 Cat 4 Template'! | AAR3: 'DY4 Cat 4 Template'! | AAS3: 'DY4 Cat 4 Template'! | AAT3: 'DY4 Cat 4 Template'! | AAU3: 'DY4 Cat 4 Template'! | AAV3: 'DY4 Cat 4 Template'! | AAW3: 'DY4 Cat 4 Template'! | AAX3: 'DY4 Cat 4 Template'! | AAY3: 'DY4 Cat 4 Template'! | AAZ3: 'DY4 Cat 4 Template'! | ABA3: 'DY4 Cat 4 Template'! | ABB3: 'DY4 Cat 4 Template'! | ABC3: 'DY4 Cat 4 Template'! | ABD3: 'DY4 Cat 4 Template'! | ABE3: 'DY4 Cat 4 Template'! | ABF3: 'DY4 Cat 4 Template'! | ABG3: 'DY4 Cat 4 Template'! | ABH3: 'DY4 Cat 4 Template'! | ABI3: 'DY4 Cat 4 Template'! | ABJ3: 'DY4 Cat 4 Template'! | ABK3: 'DY4 Cat 4 Template'! | ABL3: 'DY4 Cat 4 Template'! | ABM3: 'DY4 Cat 4 Template'! | ABN3: 'DY4 Cat 4 Template'! | ABO3: 'DY4 Cat 4 Template'! | ABP3: 'DY4 Cat 4 Template'! | ABQ3: 'DY4 Cat 4 Template'! | ABR3: 'DY4 Cat 4 Template'! | ABS3: 'DY4 Cat 4 Template'! | ABT3: 'DY4 Cat 4 Template'! | ABU3: 'DY4 Cat 4 Template'! | ABV3: 'DY4 Cat 4 Template'! | ABW3: 'DY4 Cat 4 Template'! | ABX3: 'DY4 Cat 4 Template'! | ABY3: 'DY4 Cat 4 Template'! | ABZ3: 'DY4 Cat 4 Template'! | ACA3: 'DY4 Cat 4 Template'! | ACB3: 'DY4 Cat 4 Template'! | ACC3: 'DY4 Cat 4 Template'! | ACD3: 'DY4 Cat 4 Template'! | ACE3: 'DY4 Cat 4 Template'! | ACF3: 'DY4 Cat 4 Template'! | ACG3: 'DY4 Cat 4 Template'! | ACH3: 'DY4 Cat 4 Template'! | ACI3: 'DY4 Cat 4 Template'! | ACJ3: 'DY4 Cat 4 Template'! | ACK3: 'DY4 Cat 4 Template'! | ACL3: 'DY4 Cat 4 Template'! | ACM3: 'DY4 Cat 4 Template'! | ACN3: 'DY4 Cat 4 Template'! | ACO3: 'DY4 Cat 4 Template'! | ACP3: 'DY4 Cat 4 Template'! | ACQ3: 'DY4 Cat 4 Template'! | ACR3: 'DY4 Cat 4 Template'! | ACS3: 'DY4 Cat 4 Template'! | ACT3: 'DY4 Cat 4 Template'! | ACU3: 'DY4 Cat 4 Template'! | ACV3: 'DY4 Cat 4 Template'! | ACW3: 'DY4 Cat 4 Template'! | ACX3: 'DY4 Cat 4 Template'! | ACY3: 'DY4 Cat 4 Template'! | ACZ3: 'DY4 Cat 4 Template'! | ADA3: 'DY4 Cat 4 Template'! | ADB3: 'DY4 Cat 4 Template'! | ADC3: 'DY4 Cat 4 Template'! | ADD3: 'DY4 Cat 4 Template'! | ADE3: 'DY4 Cat 4 Template'! | ADF3: 'DY4 Cat 4 Template'! | ADG3: 'DY4 Cat 4 Template'! | ADH3: 'DY4 Cat 4 Template'! | ADI3: 'DY4 Cat 4 Template'! | ADJ3: 'DY4 Cat 4 Template'! | ADK3: 'DY4 Cat 4 Template'! | ADL3: 'DY4 Cat 4 Template'! | ADM3: 'DY4 Cat 4 Template'! | ADN3: 'DY4 Cat 4 Template'! | ADO3: 'DY4 Cat 4 Template'! | ADP3: 'DY4 Cat 4 Template'! | ADQ3: 'DY4 Cat 4 Template'! | ADR3: 'DY4 Cat 4 Template'! | ADS3: 'DY4 Cat 4 Template'! | ADT3: 'DY4 Cat 4 Template'! | ADU3: 'DY4 Cat 4 Template'! | ADV3: 'DY4 Cat 4 Template'! | ADW3: 'DY4 Cat 4 Template'! | ADX3: 'DY4 Cat 4 Template'! | ADY3: 'DY4 Cat 4 Template'! | ADZ3: 'DY4 Cat 4 Template'! | AEA3: 'DY4 Cat 4 Template'! | AEB3: 'DY4 Cat 4 Template'! | AEC3: 'DY4 Cat 4 Template'! | AED3: 'DY4 Cat 4 Template'! | AEE3: 'DY4 Cat 4 Template'! | AEF3: 'DY4 Cat 4 Template'! | AEG3: 'DY4 Cat 4 Template'! | AEH3: 'DY4 Cat 4 Template'! | AEI3: 'DY4 Cat 4 Template'! | AEJ3: 'DY4 Cat 4 Template'! | AEK3: 'DY4 Cat 4 Template'! | AEL3: 'DY4 Cat 4 Template'! | AEM3: 'DY4 Cat 4 Template'! | AEN3: 'DY4 Cat 4 Template'! | AEO3: 'DY4 Cat 4 Template'! | AEP3: 'DY4 Cat 4 Template'! | AEQ3: 'DY4 Cat 4 Template'! | AER3: 'DY4 Cat 4 Template'! | AES3: 'DY4 Cat 4 Template'! | AET3: 'DY4 Cat 4 Template'! | AEU3: 'DY4 Cat 4 Template'! | AEV3: 'DY4 Cat 4 Template'! | AEW3: 'DY4 Cat 4 Template'! | AEX3: 'DY4 Cat 4 Template'! | AEY3: 'DY4 Cat 4 Template'! | AEZ3: 'DY4 Cat 4 Template'! | AFA3: 'DY4 Cat 4 Template'! | AFB3: 'DY4 Cat 4 Template'! | AFC3: 'DY4 Cat 4 Template'! | AFD3: 'DY4 Cat 4 Template'! | AFE3: 'DY4 Cat 4 Template'! | AFF3: 'DY4 Cat 4 Template'! | AFG3: 'DY4 Cat 4 Template'! | AFH3: 'DY4 Cat 4 Template'! | AFI3: 'DY4 Cat 4 Template'! | AFJ3: 'DY4 Cat 4 Template'! | AFK3: 'DY4 Cat 4 Template'! | AFL3: 'DY4 Cat 4 Template'! | AFM3: 'DY4 Cat 4 Template'! | AFN3: 'DY4 Cat 4 Template'! | AFO3: 'DY4 Cat 4 Template'! | AFP3: 'DY4 Cat 4 Template'! | AFQ3: 'DY4 Cat 4 Template'! | AFR3: 'DY4 Cat 4 Template'! | AFS3: 'DY4 Cat 4 Template'! | AFT3: 'DY4 Cat 4 Template'! | AFU3: 'DY4 Cat 4 Template'! | AFV3: 'DY4 Cat 4 Template'! | AFW3: 'DY4 Cat 4 Template'! | AFX3: 'DY4 Cat 4 Template'! | AFY3: 'DY4 Cat 4 Template'! | AFZ3: 'DY4 Cat 4 Template'! | AGA3: 'DY4 Cat 4 Template'!
B4: Input Cell | C4: E10 | D4: E11 | E4: E12 | F4: E16 | G4: E17 | H4: E18 | I4: F22 | J4: A20 | K4: F22 | L4: A22 | M4: F24 | N4: C27 | O4: F31 | P4: A29 | Q4: F31 | R4: A31 | S4: F31 | T4: C36 | U4: F40 | V4: A38 | W4: F40 | X4: A40 | Y4: F42 | Z4: C45 | AA4: C50 | AB4: F54 | AC4: A52 | AD4: F54 | AE4: A54 | AF4: D59 | AG4: F59 | AH4: K62 | AI4: K63 | AJ4: K64 | AK4: K65 | AL4: K66 | AM4: K67 | AN4: K68 | AO4: K69 | AP4: K70 | AQ4: C73 | AR4: D78 | AS4: F78 | AT4: G80 | AU4: G82 | AV4: G83 | AW4: G84 | AX4: C87 | AY4: C90 | AZ4: G92 | BA4: G94 | BB4: G95 | BC4: G96 | BD4: C99 | BE4: F103 | BF4: A101 | BG4: F103 | BH4: A103 | BI4: D108 | BJ4: F108 | BK4: G110 | BL4: G111 | BM4: C114 | BN4: G116 | BO4: G118 | BP4: G119 | BQ4: C122 | BR4: F126 | BS4: A124 | BT4: F126 | BU4: A26 | BV4: D131 | BW4: F131 | BX4: H134 | BY4: I134 | BZ4: J134 | CA4: K134 | CB4: M134 | CC4: H135 | CD4: I135 | CE4: J135 | CF4: K135 | CG4: M135 | CH4: H136 | CI4: I136 | CJ4: J136 | CK4: K136 | CL4: M136 | CM4: H137 | CN4: I137 | CO4: J137 | CP4: K137 | CQ4: M137 | CR4: H138 | CS4: I138 | CT4: J138 | CU4: K138 | CV4: M138 | CW4: H139 | CX4: I139 | CY4: J139 | CZ4: K139 | DA4: M139 | DB4: H140 | DC4: I140 | DD4: J140 | DE4: K140 | DF4: M140 | DG4: H141 | DH4: I141 | DI4: J141 | DJ4: K141 | DK4: M141 | DL4: H142 | DM4: I142 | DN4: J142 | DO4: K142 | DP4: M142 | DQ4: H143 | DR4: I143 | DS4: J143 | DT4: K143 | DU4: M143 | DV4: H144 | DW4: I144 | DX4: J144 | DY4: K144 | DZ4: M144 | EA4: H145 | EB4: I145 | EC4: J145 | ED4: K145 | EE4: M145 | EF4: H146 | EG4: I146 | EH4: J146 | EI4: K146 | EJ4: M146 | EK4: H147 | EL4: I147 | EM4: J147 | EN4: K147 | EO4: M147 | EP4: H148 | EQ4: I148 | ER4: J148 | ES4: K148 | ET4: M148 | EU4: H149 | EV4: I149 | EW4: J149 | EX4: K149 | EY4: M149 | EZ4: H150 | FA4: I150 | FB4: J150 | FC4: K150 | FD4: M150 | FE4: H151 | FF4: I151 | FG4: J151 | FH4: K151 | FI4: M151 | FJ4: H152 | FK4: I152 | FL4: J152 | FM4: K152 | FN4: M152 | FO4: H153 | FP4: I153 | FQ4: J153 | FR4: K153 | FS4: M153 | FT4: H154 | FU4: I154 | FV4: J154 | FW4: K154 | FX4: M154 | FY4: H155 | FZ4: I155 | GA4: J155 | GB4: K155 | GC4: M155 | GD4: H156 | GE4: I156 | GF4: J156 | GG4: K156 | GH4: M156 | GI4: H157 | GJ4: I157 | GK4: J157 | GL4: K157 | GM4: M157 | GN4: H158 | GO4: I158 | GP4: J158 | GQ4: K158 | GR4: M158 | GS4: H159 | GT4: I159 | GU4: J159 | GV4: K159 | GW4: M159 | GX4: H160 | GY4: I160 | GZ4: J160 | HA4: K160 | HB4: M160 | HC4: H161 | HD4: I161 | HE4: J161 | HF4: K161 | HG4: M161 | HH4: H162 | HI4: I162 | HJ4: J162 | HK4: K162 | HL4: M162 | HM4: H163 | HN4: I163 | HO4: J163 | HP4: K163 | HQ4: M163 | HR4: H164 | HS4: I164 | HT4: J164 | HU4: K164 | HV4: M164 | HW4: H165 | HX4: I165 | HY4: J165 | HZ4: K165 | IA4: M165 | IB4: H166 | IC4: I166 | ID4: J166 | IE4: K166 | IF4: M166 | IG4: H172 | IH4: I172 | II4: J172 | IJ4: K172 | IK4: M172 | IL4: H173 | IM4: I173 | IN4: J173 | IO4: K173 | IP4: M173 | IQ4: H174 | IR4: I174 | IS4: J174 | IT4: K174 | IU4: M174 | IV4: H175 | IW4: I175 | IX4: J175 | IY4: K175 | IZ4: M175 | JA4: H176 | JB4: I176 | JC4: J176 | JD4: K176 | JE4: M176 | JF4: H177 | JG4: I177 | JH4: J177 | JI4: K177 | JJ4: M177 | JK4: H178 | JL4: I178 | JM4: J178 | JN4: K178 | JO4: M178 | JP4: H179 | JQ4: I179 | JR4: J179 | JS4: K179 | JT4: M179 | JU4: H180 | JV4: I180 | JW4: J180 | JX4: K180 | JY4: M180 | JZ4: H181 | KA4: I181 | KB4: J181 | KC4: K181 | KD4: M181 | KE4: H182 | KF4: I182 | KG4: J182 | KH4: K182 | KI4: M182 | KJ4: H183 | KK4: I183 | KL4: J183 | KM4: K183 | KN4: M183 | KO4: H184 | KP4: I184 | KQ4: J184 | KR4: K184 | KS4: M184 | KT4: H185 | KU4: I185 | KV4: J185 | KW4: K185 | KX4: M185 | KY4: H186 | KZ4: I186 | LA4: J186 | LB4: K186 | LC4: M186 | LD4: H187 | LE4: I187 | LF4: J187 | LG4: K187 | LH4: M187 | LI4: H188 | LJ4: I188 | LK4: J188 | LL4: K188 | LM4: M188 | LN4: H189 | LO4: I189 | LP4: J189 | LQ4: K189 | LR4: M189 | LS4: H190 | LT4: I190 | LU4: J190 | LV4: K190 | LW4: M190 | LX4: H191 | LY4: I191 | LZ4: J191 | MA4: K191 | MB4: M191 | MC4: H192 | MD4: I192 | ME4: J192 | MF4: K192 | MG4: M192 | MH4: H193 | MI4: I193 | MJ4: J193 | MK4: K193 | ML4: M193 | MM4: H194 | MN4: I194 | MO4: J194 | MP4: K194 | MQ4: M194 | MR4: H195 | MS4: I195 | MT4: J195 | MU4: K195 | MV4: M195 | MW4: H196 | MX4: I196 | MY4: J196 | MZ4: K196 | NA4: M196 | NB4: H197 | NC4: I197 | ND4: J197 | NE4: K197 | NF4: M197 | NG4: H198 | NH4: I198 | NI4: J198 | NJ4: K198 | NK4: M198 | NL4: H199 | NM4: I199 | NN4: J199 | NO4: K199 | NP4: M199 | NQ4: H200 | NR4: I200 | NS4: J200 | NT4: K200 | NU4: M200 | NV4: H201 | NW4: I201 | NX4: J201 | NY4: K201 | NZ4: M201 | OA4: H202 | OB4: I202 | OC4: J202 | OD4: K202 | OE4: M202 | OF4: H203 | OG4: I203 | OH4: J203 | OI4: K203 | OJ4: M203 | OK4: H204 | OL4: I204 | OM4: J204 | ON4: K204 | OO4: M204 | OP4: H205 | OQ4: I205 | OR4: J205 | OS4: K205 | OT4: M205 | OU4: H206 | OV4: I206 | OW4: J206 | OX4: K206 | OY4: M206 | OZ4: H207 | PA4: I207 | PB4: J207 | PC4: K207 | PD4: M207 | PE4: H208 | PF4: I208 | PG4: J208 | PH4: K208 | PI4: M208 | PJ4: H209 | PK4: I209 | PL4: J209 | PM4: K209 | PN4: M209 | PO4: H210 | PP4: I210 | PQ4: J210 | PR4: K210 | PS4: M210 | PT4: H211 | PU4: I211 | PV4: J211 | PW4: K211 | PX4: M211 | PY4: H212 | PZ4: I212 | QA4: J212 | QB4: K212 | QC4: M212 | QD4: H213 | QE4: I213 | QF4: J213 | QG4: K213 | QH4: M213 | QI4: H214 | QJ4: I214 | QK4: J214 | QL4: K214 | QM4: M214 | QN4: H215 | QO4: I215 | QP4: J215 | QQ4: K215 | QR4: M215 | QS4: H216 | QT4: I216 | QU4: J216 | QV4: K216 | QW4: M216 | QX4: C219 | QY4: G221 | QZ4: H225 | RA4: I225 | RB4: J225 | RC4: K225 | RD4: M225 | RE4: H226 | RF4: I226 | RG4: J226 | RH4: K226 | RI4: M226 | RJ4: H227 | RK4: I227 | RL4: J227 | RM4: K227 | RN4: M227 | RO4: H228 | RP4: I228 | RQ4: J228 | RR4: K228 | RS4: M228 | RT4: H229 | RU4: I229 | RV4: J229 | RW4: K229 | RX4: M229 | RY4: H230 | RZ4: I230 | SA4: J230 | SB4: K230 | SC4: M230 | SD4: H231 | SE4: I231 | SF4: J231 | SG4: K231 | SH4: M231 | SI4: H232 | SJ4: I232 | SK4: J232 | SL4: K232 | SM4: M232 | SN4: H233 | SO4: I233 | SP4: J233 | SQ4: K233 | SR4: M233 | SS4: H234 | ST4: I234 | SU4: J234 | SV4: K234 | SW4: M234 | SX4: H235 | SY4: I235 | SZ4: J235 | TA4: K235 | TB4: M235 | TC4: H236 | TD4: I236 | TE4: J236 | TF4: K236 | TG4: M236 | TH4: H237 | TI4: I237 | TJ4: J237 | TK4: K237 | TL4: M237 | TM4: H238 | TN4: I238 | TO4: J238 | TP4: K238 | TQ4: M238 | TR4: H239 | TS4: I239 | TT4: J239 | TU4: K239 | TV4: M239 | TW4: H240 | TX4: I240 | TY4: J240 | TZ4: K240 | UA4: M240 | UB4: H241 | UC4: I241 | UD4: J241 | UE4: K241 | UF4: M241 | UG4: H242 | UH4: I242 | UI4: J242 | UJ4: K242 | UK4: M242 | UL4: H243 | UM4: I243 | UN4: J243 | UO4: K243 | UP4: M243 | UQ4: H244 | UR4: I244 | US4: J244 | UT4: K244 | UU4: M244 | UV4: H245 | UW4: I245 | UX4: J245 | UY4: K245 | UZ4: M245 | VA4: H246 | VB4: I246 | VC4: J246 | VD4: K246 | VE4: M246 | VF4: H247 | VG4: I247 | VH4: J247 | VI4: K247 | VJ4: M247 | VK4: H248 | VL4: I248 | VM4: J248 | VN4: K248 | VO4: M248 | VP4: H249 | VQ4: I249 | VR4: J249 | VS4: K249 | VT4: M249 | VU4: H250 | VV4: I250 | VW4: J250 | VX4: K250 | VY4: M250 | VZ4: H251 | WA4: I251 | WB4: J251 | WC4: K251 | WD4: M251 | WE4: H252 | WF4: I252 | WG4: J252 | WH4: K252 | WI4: M252 | WJ4: H253 | WK4: I253 | WL4: J253 | WM4: K253 | WN4: M253 | WO4: H254 | WP4: I254 | WQ4: J254 | WR4: K254 | WS4: M254 | WT4: H255 | WU4: I255 | WV4: J255 | WW4: K255 | WX4: M255 | WY4: H256 | WZ4: I256 | XA4: J256 | XB4: K256 | XC4: M256 | XD4: H257 | XE4: I257 | XF4: J257 | XG4: K257 | XH4: M257 | XI4: H261 | XJ4: I261 | XK4: J261 | XL4: K261 | XM4: M261 | XN4: H262 | XO4: I262 | XP4: J262 | XQ4: K262 | XR4: M262 | XS4: H263 | XT4: I263 | XU4: J263 | XV4: K263 | XW4: M263 | XX4: H264 | XY4: I264 | XZ4: J264 | YA4: K264 | YB4: M264 | YC4: H265 | YD4: I265 | YE4: J265 | YF4: K265 | YG4: M265 | YH4: H266 | YI4: I266 | YJ4: J266 | YK4: K266 | YL4: M266 | YM4: H267 | YN4: I267 | YO4: J267 | YP4: K267 | YQ4: M267 | YR4: H268 | YS4: I268 | YT4: J268 | YU4: K268 | YV4: M268 | YW4: H269 | YX4: I269 | YY4: J269 | YZ4: K269 | ZA4: M269 | ZB4: H270 | ZC4: I270 | ZD4: J270 | ZE4: K270 | ZF4: M270 | ZG4: H271 | ZH4: I271 | ZI4: J271 | ZJ4: K271 | ZK4: M271 | ZL4: H272 | ZM4: I272 | ZN4: J272 | ZO4: K272 | ZP4: M272 | ZQ4: H273 | ZR4: I273 | ZS4: J273 | ZT4: K273 | ZU4: M273 | ZV4: H274 | ZW4: I274 | ZX4: J274 | ZY4: K274 | ZZ4: M274 | AAA4: H275 | AAB4: I275 | AAC4: J275 | AAD4: K275 | AAE4: M275 | AAF4: H276 | AAG4: I276 | AAH4: J276 | AAI4: K276 | AAJ4: M276 | AAK4: H277 | AAL4: I277 | AAM4: J277 | AAN4: K277 | AAO4: M277 | AAP4: H278 | AAQ4: I278 | AAR4: J278 | AAS4: K278 | AAT4: M278 | AAU4: H279 | AAV4: I279 | AAW4: J279 | AAX4: K279 | AAY4: M279 | AAZ4: H280 | ABA4: I280 | ABB4: J280 | ABC4: K280 | ABD4: M280 | ABE4: H281 | ABF4: I281 | ABG4: J281 | ABH4: K281 | ABI4: M281 | ABJ4: H282 | ABK4: I282 | ABL4: J282 | ABM4: K282 | ABN4: M282 | ABO4: H283 | ABP4: I283 | ABQ4: J283 | ABR4: K283 | ABS4: M283 | ABT4: H284 | ABU4: I284 | ABV4: J284 | ABW4: K284 | ABX4: M284 | ABY4: H285 | ABZ4: I285 | ACA4: J285 | ACB4: K285 | ACC4: M285 | ACD4: H286 | ACE4: I286 | ACF4: J286 | ACG4: K286 | ACH4: M286 | ACI4: H287 | ACJ4: I287 | ACK4: J287 | ACL4: K287 | ACM4: M287 | ACN4: H288 | ACO4: I288 | ACP4: J288 | ACQ4: K288 | ACR4: M288 | ACS4: H289 | ACT4: I289 | ACU4: J289 | ACV4: K289 | ACW4: M289 | ACX4: H290 | ACY4: I290 | ACZ4: J290 | ADA4: K290 | ADB4: M290 | ADC4: H291 | ADD4: I291 | ADE4: J291 | ADF4: K291 | ADG4: M291 | ADH4: H292 | ADI4: I292 | ADJ4: J292 | ADK4: K292 | ADL4: M292 | ADM4: H293 | ADN4: I293 | ADO4: J293 | ADP4: K293 | ADQ4: M293 | ADR4: H294 | ADS4: I294 | ADT4: J294 | ADU4: K294 | ADV4: M294 | ADW4: H295 | ADX4: I295 | ADY4: J295 | ADZ4: K295 | AEA4: M295 | AEB4: H296 | AEC4: I296 | AED4: J296 | AEE4: K296 | AEF4: M296 | AEG4: H297 | AEH4: I297 | AEI4: J297 | AEJ4: K297 | AEK4: M297 | AEL4: H298 | AEM4: I298 | AEN4: J298 | AEO4: K298 | AEP4: M298 | AEQ4: H299 | AER4: I299 | AES4: J299 | AET4: K299 | AEU4: M299 | AEV4: H300 | AEW4: I300 | AEX4: J300 | AEY4: K300 | AEZ4: M300 | AFA4: H301 | AFB4: I301 | AFC4: J301 | AFD4: K301 | AFE4: M301 | AFF4: H302 | AFG4: I302 | AFH4: J302 | AFI4: K302 | AFJ4: M302 | AFK4: H303 | AFL4: I303 | AFM4: J303 | AFN4: K303 | AFO4: M303 | AFP4: H304 | AFQ4: I304 | AFR4: J304 | AFS4: K304 | AFT4: M304 | AFU4: H305 | AFV4: I305 | AFW4: J305 | AFX4: K305 | AFY4: M305 | AFZ4: C308 | AGA4: C313
B5: Reporting Domain: | C5: Provider Info | I5: RD1 | O5: RD2 | U5: RD3 | AA5: RD1-3 | AB5: RD4 | BE5: RD5 | BR5: RD6
B6: Section: | AF6: Patient Satisfaction | AR6: Medication Management | BW6: Measure for Adult Pop. | BX6: Flu Shots for Adults Ages 50-64 (Collected as part of HEDIS CAHPS Supplemental Survey)* | CC6: Adult BMI Assessment*,** | CH6: Breast Cancer Screening*, ** | CM6: Cervical Cancer Screening*.** | CR6: Medical Assistance with Smoking and Tobacco Use Cessation (Collected as part of HEDIS)* | CW6: Screening for Clinical Depression and Follow-Up Plan | DB6: Hospital-Wide All-Cause Readmission** | DG6: PQI 01: Diabetes, Short-term Complications Admission Rate** | DL6: PQI 05: Chronic Obstructive Pulmonary Disease (COPD) Admission Rate** | DQ6: PQI 08: Congestive Heart Failure Admission Rate** | DV6: PQI 15: Adult Asthma Admission Rate*,** | EA6: Chlamydia Screening in Women Ages 21-24* | EF6: Follow-Up After Hospitalization for Mental Illness* (7-day) | EK6: Follow-Up After Hospitalization for Mental Illness* (30-day) | EP6: PC-01: Elective Delivery | EU6: PC-03: Antenatal Steroids | EZ6: Controlling High Blood Pressure*,** | FE6: Comprehensive Diabetes Care: LDL-C Screening*,** | FJ6: Annual HIV/AIDS Medical Visit*( 90 days) | FO6: Annual HIV/AIDS Medical Visit*( 180 days) | FT6: Comprehensive Diabetes Care: Hemoglobin A1c Testing* | FY6: Antidepressant Medication Management* (Acute Phase) | GD6: Antidepressant Medication Management* (Continuation Phase) | GI6: Adherence to Antipsychotics for Individuals with Schizophrenia*,** | GN6: Annual Monitoring for Patients on Persistent Medications*.** | GS6: Annual monitoring for patients on (ACE) or (ARB) | GX6: Annual monitoring for patients on persistent medications - Digoxin*. ** | HC6: Annual monitoring for patients on persistent medications - Diuretic*. ** | HH6: Annual monitoring for patients on persistent medications - Anticonvulsant*. ** | HM6: CAHPS® Health Plan Survey v 4.0—Adult Questionnaire with CAHPS® Health Plan Survey* | HR6: Care Transition–Transition Record Transmitted to Health Care Professional | HW6: Initiation and Engagement of Alcohol and Other Drug Dependence Treatment*,** | IB6: Prenatal and Postpartum Care: Postpartum Care Rate* | IF6: Measures for Child Pop. | IG6: Follow-Up Care for Children Prescribed Attention Deficit Hyperactivity Disorder*,** | IL6: Initiation Phase | IQ6: Continuation and Maintenance Phase | IV6: Ambulatory Care - Emergency Department (ED) Visits** (Overall) | JA6: Ambulatory Care - Emergency Department (ED) Visits** (less than 1 year of age) | JF6: Ambulatory Care - Emergency Department (ED) Visits** (1-9 years of age) | JK6: Ambulatory Care - Emergency Department (ED) Visits** (10-19 years of age) | JP6: Adolescent Well-Care Visit** | JU6: Behavioral Health Risk Assessment (for Pregnant Women)* | JZ6: Child and Adolescents’ Access to Primary Care Practitioners*,** | KE6: Chlamydia Screening in Women*,** | KJ6: Childhood Immunization Status*,** | KO6: Pediatric Central-line Associated Bloodstream Infections–Neonatal Intensive Care Unit | KT6: Consumer Assessment of Healthcare Providers and Systems® CAHPS 5.0H (Child Version* | KY6: Cesarean Rate for Nulliparous Singleton Vertex | LD6: Developmental Screening in the First Three Years of Life* | LI6: Indicator 1: Screened by 12 Months of Age | LN6: Indicator 2: Screened by 24 Months of Age | LS6: Indicator 3: Screened by 36 Months of Age | LX6: Frequency of Ongoing Prenatal Care* | MC6: •<21 percent of expected visits | MH6: •21 percent–40 percent of expected visits | MM6: •41 percent–60 percent of expected visits | MR6: •61 percent–80 percent of expected visits | MW6: •> or =81 percent of expected visits | NB6: Follow-up After Hospitalization for Mental Illness* | NG6: Percentage of discharges for which the patient received follow-up within 30 days of discharge | NL6: Percentage of discharges for which the patient received follow-up within 7 days of discharge. | NQ6: Human Papillomavirus (HPV) Vaccine for Female Adolescents* | NV6: Immunization Status for Adolescents* | OA6: Live Births Weighing Less than 2,500 Grams** | OF6: Medication Management for People with Asthma* (PDC 50% of treatment time) | OK6: Medication Management for People with Asthma* (PDC 75 of treatment time) | OP6: Percentage of Eligibles That Received Preventive Dental Services* | OU6: Timeliness of Prenatal Care*,** (Rate 1) | OZ6: Weight Assessment and Counseling for Nutrition and Physical Activity for Children* | PE6: Well-Child Visits in the First 15 Months of Life*,** | PJ6: Well-Child Visits in the First 15 Months of Life*,** (Zero visits) | PO6: Well-Child Visits in the First 15 Months of Life*,**(one visit) | PT6: Well-Child Visits in the First 15 Months of Life*,** (Two visits) | PY6: Well-Child Visits in the First 15 Months of Life*,** (Three visits) | QD6: Well-Child Visits in the First 15 Months of Life*,** (Four visits) | QI6: Well-Child Visits in the First 15 Months of Life*,** (Five visits) | QN6: Well-Child Visits in the First 15 Months of Life*,** (Six or more visits) | QS6: Well-Child Visits in the 3rd, 4th, 5th, and 6th Years of Life* | QY6: Medicaid-Only Adult Pop. | QZ6: Flu Shots for Adults Ages 50-64 (Collected as part of HEDIS CAHPS Supplemental Survey)* | RE6: Adult BMI Assessment*,** | RJ6: Breast Cancer Screening*, ** | RO6: Cervical Cancer Screening*.** | RT6: Medical Assistance with Smoking and Tobacco Use Cessation (Collected as part of HEDIS)* | RY6: Screening for Clinical Depression and Follow-Up Plan | SD6: Hospital-Wide All-Cause Readmission** | SI6: PQI 01: Diabetes, Short-term Complications Admission Rate** | SN6: PQI 05: Chronic Obstructive Pulmonary Disease (COPD) Admission Rate** | SS6: PQI 08: Congestive Heart Failure Admission Rate** | SX6: PQI 15: Adult Asthma Admission Rate*,** | TC6: Chlamydia Screening in Women Ages 21-24* | TH6: Follow-Up After Hospitalization for Mental Illness* (7-day) | TM6: Follow-Up After Hospitalization for Mental Illness* (30-day) | TR6: PC-01: Elective Delivery | TW6: PC-03: Antenatal Steroids | UB6: Controlling High Blood Pressure*,** | UG6: Comprehensive Diabetes Care: LDL-C Screening*,** | UL6: Annual HIV/AIDS Medical Visit*( 90 days) | UQ6: Annual HIV/AIDS Medical Visit*( 180 days) | UV6: Comprehensive Diabetes Care: Hemoglobin A1c Testing* | VA6: Antidepressant Medication Management* (Acute Phase) | VF6: Antidepressant Medication Management* (Continuation Phase) | VK6: Adherence to Antipsychotics for Individuals with Schizophrenia*,** | VP6: Annual Monitoring for Patients on Persistent Medications*.** | VU6: Annual monitoring for patients on (ACE) or (ARB) | VZ6: Annual monitoring for patients on persistent medications - Digoxin*. ** | WE6: Annual monitoring for patients on persistent medications - Diuretic*. ** | WJ6: Annual monitoring for patients on persistent medications - Anticonvulsant*. ** | WO6: CAHPS® Health Plan Survey v 4.0—Adult Questionnaire with CAHPS® Health Plan Survey* | WT6: Care Transition–Transition Record Transmitted to Health Care Professional | WY6: Initiation and Engagement of Alcohol and Other Drug Dependence Treatment*,** | XD6: Prenatal and Postpartum Care: Postpartum Care Rate* | XH6: Medicaid-only Child Pop. | XI6: Follow-Up Care for Children Prescribed Attention Deficit Hyperactivity Disorder*,** | XN6: Initiation Phase | XS6: Continuation and Maintenance Phase | XX6: Ambulatory Care - Emergency Department (ED) Visits** (Overall) | YC6: Ambulatory Care - Emergency Department (ED) Visits** (less than 1 year of age) | YH6: Ambulatory Care - Emergency Department (ED) Visits** (1-9 years of age) | YM6: Ambulatory Care - Emergency Department (ED) Visits** (10-19 years of age) | YR6: Adolescent Well-Care Visit** | YW6: Behavioral Health Risk Assessment (for Pregnant Women)* | ZB6: Child and Adolescents’ Access to Primary Care Practitioners*,** | ZG6: Chlamydia Screening in Women*,** | ZL6: Childhood Immunization Status*,** | ZQ6: Pediatric Central-line Associated Bloodstream Infections–Neonatal Intensive Care Unit | ZV6: Consumer Assessment of Healthcare Providers and Systems® CAHPS 5.0H (Child Version* | AAA6: Cesarean Rate for Nulliparous Singleton Vertex | AAF6: Developmental Screening in the First Three Years of Life* | AAK6: Indicator 1: Screened by 12 Months of Age | AAP6: Indicator 2: Screened by 24 Months of Age | AAU6: Indicator 3: Screened by 36 Months of Age | AAZ6: Frequency of Ongoing Prenatal Care* | ABE6: •<21 percent of expected visits | ABJ6: •21 percent–40 percent of expected visits | ABO6: •41 percent–60 percent of expected visits | ABT6: •61 percent–80 percent of expected visits | ABY6: •> or =81 percent of expected visits | ACD6: Follow-up After Hospitalization for Mental Illness* | ACI6: Percentage of discharges for which the patient received follow-up within 30 days of discharge | ACN6: Percentage of discharges for which the patient received follow-up within 7 days of discharge. | ACS6: Human Papillomavirus (HPV) Vaccine for Female Adolescents* | ACX6: Immunization Status for Adolescents* | ADC6: Live Births Weighing Less than 2,500 Grams** | ADH6: Medication Management for People with Asthma* (PDC 50% of treatment time) | ADM6: Medication Management for People with Asthma* (PDC 75 of treatment time) | ADR6: Percentage of Eligibles That Received Preventive Dental Services* | ADW6: Timeliness of Prenatal Care*,** (Rate 1) | AEB6: Weight Assessment and Counseling for Nutrition and Physical Activity for Children* | AEG6: Well-Child Visits in the First 15 Months of Life*,** | AEL6: Well-Child Visits in the First 15 Months of Life*,** (Zero visits) | AEQ6: Well-Child Visits in the First 15 Months of Life*,**(one visit) | AEV6: Well-Child Visits in the First 15 Months of Life*,** (Two visits) | AFA6: Well-Child Visits in the First 15 Months of Life*,** (Three visits) | AFF6: Well-Child Visits in the First 15 Months of Life*,** (Four visits) | AFK6: Well-Child Visits in the First 15 Months of Life*,** (Five visits) | AFP6: Well-Child Visits in the First 15 Months of Life*,** (Six or more visits) | AFU6: Well-Child Visits in the 3rd, 4th, 5th, and 6th Years of Life* | AGA6: Overall Submission
B7: Input: | C7: Contact Name: | D7: Email Address: | E7: Phone Number: | F7: Region: | G7: TPI: | H7: Provider Name: | I7: Reporting in April? | J7: Received during April NMI? | K7: Reporting in October? | L7: Received during October NMI? | M7: Provider received Medicaid PPA report for CY2013? | N7: 6 Part Qualitative: | O7: Reporting in April? | P7: Received during April NMI? | Q7: Reporting in October? | R7: Received during October NMI? | S7: Provider received Medicaid PPR report for CY2013? | T7: 6 Part Qualitative: | U7: Reporting in April? | V7: Received during April NMI? | W7: Reporting in October? | X7: Received during October NMI? | Y7: Provider received Medicaid PPC report for CY2013? | Z7: 6 Part Qualitative: | AA7: 2 Part Qualitative | AB7: Reporting in April? | AC7: Received during April NMI? | AD7: Reporting in October? | AE7: Received during October NMI? | AF7: Comp1 DY4 Measure Start: | AG7: Comp1 DY4 Measure End: | AH7: Percent of patients who reported that their doctors "Always" communicated well | AI7: Percent of patients who reported that their nurses "Always" communicated well | AJ7: Percent of patients who reported that their pain was "Always" well controlled | AK7: Percent of patients who reported that staff "Always" explained about medicines before giving it to them | AL7: Percent of patients who reported that YES, they were given information about what to do during their recovery at home | AM7: Percent of patients who reported that their room and bathroom were "Always" clean | AN7: Percent of patients who reported that the area around their room was "Always" quiet at night | AO7: Percent of patients who gave their hospital a rating of 9 or 10 on a scale from 0 (lowest) to 10 (highest) | AP7: Percent of Patients who reported YES, they would definitely recommend the hospital | AQ7: Do the HCAHPS results reported in DY4 represent a change over the prior reporting period? What factors have contributed to any increase or decrease? | AR7: Comp2 DY4 Measure Start: | AS7: Comp2 DY4 Measure End: | AT7: Compliance with NQF 0646? | AU7: Numerator | AV7: Denominator | AW7: Provider Rate | AX7: NQF Qualitative | AY7: Do the Medication Management results reported in DY4 represent a change over the prior reporting period? What factors have contributed to any increase or decrease? | AZ7: Are you able to report Medicaid-only rates for Medication Management? | BA7: Numerator | BB7: Denominator | BC7: Provider Rate | BD7: Additional comments an Medicaid-only rate: | BE7: Reporting in April? | BF7: Received during April NMI? | BG7: Reporting in October? | BH7: Received during October NMI? | BI7: Comp1 DY4 Measure Start: | BJ7: Comp1 DY4 Measure End: | BK7: Median Time (in minutes) from admit decision time to time of departure from the emergency department for admitted patients: | BL7: Number of emergency department (ED) patients seen and used to calculate median time in minutes from admit decision time to time of departure from the ED for admitted patients | BM7: Do the Medication Management results reported in DY4 represent a change over the prior reporting period? What factors have contributed to any increase or decrease? | BN7: Are you able to report Medicaid-only rates for RD-5? | BO7: Median Time (in minutes) from admit decision time to time of departure from the emergency department for admitted patients: | BP7: Number of emergency department (ED) patients seen and used to calculate median time in minutes from admit decision time to time of departure from the ED for admitted patients: | BQ7: Additional comments an Medicaid-only rate: | BR7: Reporting in April? | BS7: Received during April NMI? | BT7: Reporting in October? | BU7: Received during October NMI? | BV7: Comp1 DY4 Measure Start: | BW7: Comp1 DY4 Measure End: | BX7: Numerator | BY7: Denominator | BZ7: Provider Rate | CA7: Not Reporting Reason | CB7: Not Reporting Additional Reasons | CC7: Numerator | CD7: Denominator | CE7: Provider Rate | CF7: Not Reporting Reason | CG7: Not Reporting Additional Reasons | CH7: Numerator | CI7: Denominator | CJ7: Provider Rate | CK7: Not Reporting Reason | CL7: Not Reporting Additional Reasons | CM7: Numerator | CN7: Denominator | CO7: Provider Rate | CP7: Not Reporting Reason | CQ7: Not Reporting Additional Reasons | CR7: Numerator | CS7: Denominator | CT7: Provider Rate | CU7: Not Reporting Reason | CV7: Not Reporting Additional Reasons | CW7: Numerator | CX7: Denominator | CY7: Provider Rate | CZ7: Not Reporting Reason | DA7: Not Reporting Additional Reasons | DB7: Numerator | DC7: Denominator | DD7: Provider Rate | DE7: Not Reporting Reason | DF7: Not Reporting Additional Reasons | DG7: Numerator | DH7: Denominator | DI7: Provider Rate | DJ7: Not Reporting Reason | DK7: Not Reporting Additional Reasons | DL7: Numerator | DM7: Denominator | DN7: Provider Rate | DO7: Not Reporting Reason | DP7: Not Reporting Additional Reasons | DQ7: Numerator | DR7: Denominator | DS7: Provider Rate | DT7: Not Reporting Reason | DU7: Not Reporting Additional Reasons | DV7: Numerator | DW7: Denominator | DX7: Provider Rate | DY7: Not Reporting Reason | DZ7: Not Reporting Additional Reasons | EA7: Numerator | EB7: Denominator | EC7: Provider Rate | ED7: Not Reporting Reason | EE7: Not Reporting Additional Reasons | EF7: Numerator | EG7: Denominator | EH7: Provider Rate | EI7: Not Reporting Reason | EJ7: Not Reporting Additional Reasons | EK7: Numerator | EL7: Denominator | EM7: Provider Rate | EN7: Not Reporting Reason | EO7: Not Reporting Additional Reasons | EP7: Numerator | EQ7: Denominator | ER7: Provider Rate | ES7: Not Reporting Reason | ET7: Not Reporting Additional Reasons | EU7: Numerator | EV7: Denominator | EW7: Provider Rate | EX7: Not Reporting Reason | EY7: Not Reporting Additional Reasons | EZ7: Numerator | FA7: Denominator | FB7: Provider Rate | FC7: Not Reporting Reason | FD7: Not Reporting Additional Reasons | FE7: Numerator | FF7: Denominator | FG7: Provider Rate | FH7: Not Reporting Reason | FI7: Not Reporting Additional Reasons | FJ7: Numerator | FK7: Denominator | FL7: Provider Rate | FM7: Not Reporting Reason | FN7: Not Reporting Additional Reasons | FO7: Numerator | FP7: Denominator | FQ7: Provider Rate | FR7: Not Reporting Reason | FS7: Not Reporting Additional Reasons | FT7: Numerator | FU7: Denominator | FV7: Provider Rate | FW7: Not Reporting Reason | FX7: Not Reporting Additional Reasons | FY7: Numerator | FZ7: Denominator | GA7: Provider Rate | GB7: Not Reporting Reason | GC7: Not Reporting Additional Reasons | GD7: Numerator | GE7: Denominator | GF7: Provider Rate | GG7: Not Reporting Reason | GH7: Not Reporting Additional Reasons | GI7: Numerator | GJ7: Denominator | GK7: Provider Rate | GL7: Not Reporting Reason | GM7: Not Reporting Additional Reasons | GN7: Numerator | GO7: Denominator | GP7: Provider Rate | GQ7: Not Reporting Reason | GR7: Not Reporting Additional Reasons | GS7: Numerator | GT7: Denominator | GU7: Provider Rate | GV7: Not Reporting Reason | GW7: Not Reporting Additional Reasons | GX7: Numerator | GY7: Denominator | GZ7: Provider Rate | HA7: Not Reporting Reason | HB7: Not Reporting Additional Reasons | HC7: Numerator | HD7: Denominator | HE7: Provider Rate | HF7: Not Reporting Reason | HG7: Not Reporting Additional Reasons | HH7: Numerator | HI7: Denominator | HJ7: Provider Rate | HK7: Not Reporting Reason | HL7: Not Reporting Additional Reasons | HM7: Numerator | HN7: Denominator | HO7: Provider Rate | HP7: Not Reporting Reason | HQ7: Not Reporting Additional Reasons | HR7: Numerator | HS7: Denominator | HT7: Provider Rate | HU7: Not Reporting Reason | HV7: Not Reporting Additional Reasons | HW7: Numerator | HX7: Denominator | HY7: Provider Rate | HZ7: Not Reporting Reason | IA7: Not Reporting Additional Reasons | IB7: Numerator | IC7: Denominator | ID7: Provider Rate | IE7: Not Reporting Reason | IF7: Not Reporting Additional Reasons | IG7: Numerator | IH7: Denominator | II7: Provider Rate | IJ7: Not Reporting Reason | IK7: Not Reporting Additional Reasons | IL7: Numerator | IM7: Denominator | IN7: Provider Rate | IO7: Not Reporting Reason | IP7: Not Reporting Additional Reasons | IQ7: Numerator | IR7: Denominator | IS7: Provider Rate | IT7: Not Reporting Reason | IU7: Not Reporting Additional Reasons | IV7: Numerator | IW7: Denominator | IX7: Provider Rate | IY7: Not Reporting Reason | IZ7: Not Reporting Additional Reasons | JA7: Numerator | JB7: Denominator | JC7: Provider Rate | JD7: Not Reporting Reason | JE7: Not Reporting Additional Reasons | JF7: Numerator | JG7: Denominator | JH7: Provider Rate | JI7: Not Reporting Reason | JJ7: Not Reporting Additional Reasons | JK7: Numerator | JL7: Denominator | JM7: Provider Rate | JN7: Not Reporting Reason | JO7: Not Reporting Additional Reasons | JP7: Numerator | JQ7: Denominator | JR7: Provider Rate | JS7: Not Reporting Reason | JT7: Not Reporting Additional Reasons | JU7: Numerator | JV7: Denominator | JW7: Provider Rate | JX7: Not Reporting Reason | JY7: Not Reporting Additional Reasons | JZ7: Numerator | KA7: Denominator | KB7: Provider Rate | KC7: Not Reporting Reason | KD7: Not Reporting Additional Reasons | KE7: Numerator | KF7: Denominator | KG7: Provider Rate | KH7: Not Reporting Reason | KI7: Not Reporting Additional Reasons | KJ7: Numerator | KK7: Denominator | KL7: Provider Rate | KM7: Not Reporting Reason | KN7: Not Reporting Additional Reasons | KO7: Numerator | KP7: Denominator | KQ7: Provider Rate | KR7: Not Reporting Reason | KS7: Not Reporting Additional Reasons | KT7: Numerator | KU7: Denominator | KV7: Provider Rate | KW7: Not Reporting Reason | KX7: Not Reporting Additional Reasons | KY7: Numerator | KZ7: Denominator | LA7: Provider Rate | LB7: Not Reporting Reason | LC7: Not Reporting Additional Reasons | LD7: Numerator | LE7: Denominator | LF7: Provider Rate | LG7: Not Reporting Reason | LH7: Not Reporting Additional Reasons | LI7: Numerator | LJ7: Denominator | LK7: Provider Rate | LL7: Not Reporting Reason | LM7: Not Reporting Additional Reasons | LN7: Numerator | LO7: Denominator | LP7: Provider Rate | LQ7: Not Reporting Reason | LR7: Not Reporting Additional Reasons | LS7: Numerator | LT7: Denominator | LU7: Provider Rate | LV7: Not Reporting Reason | LW7: Not Reporting Additional Reasons | LX7: Numerator | LY7: Denominator | LZ7: Provider Rate | MA7: Not Reporting Reason | MB7: Not Reporting Additional Reasons | MC7: Numerator | MD7: Denominator | ME7: Provider Rate | MF7: Not Reporting Reason | MG7: Not Reporting Additional Reasons | MH7: Numerator | MI7: Denominator | MJ7: Provider Rate | MK7: Not Reporting Reason | ML7: Not Reporting Additional Reasons | MM7: Numerator | MN7: Denominator | MO7: Provider Rate | MP7: Not Reporting Reason | MQ7: Not Reporting Additional Reasons | MR7: Numerator | MS7: Denominator | MT7: Provider Rate | MU7: Not Reporting Reason | MV7: Not Reporting Additional Reasons | MW7: Numerator | MX7: Denominator | MY7: Provider Rate | MZ7: Not Reporting Reason | NA7: Not Reporting Additional Reasons | NB7: Numerator | NC7: Denominator | ND7: Provider Rate | NE7: Not Reporting Reason | NF7: Not Reporting Additional Reasons | NG7: Numerator | NH7: Denominator | NI7: Provider Rate | NJ7: Not Reporting Reason | NK7: Not Reporting Additional Reasons | NL7: Numerator | NM7: Denominator | NN7: Provider Rate | NO7: Not Reporting Reason | NP7: Not Reporting Additional Reasons | NQ7: Numerator | NR7: Denominator | NS7: Provider Rate | NT7: Not Reporting Reason | NU7: Not Reporting Additional Reasons | NV7: Numerator | NW7: Denominator | NX7: Provider Rate | NY7: Not Reporting Reason | NZ7: Not Reporting Additional Reasons | OA7: Numerator | OB7: Denominator | OC7: Provider Rate | OD7: Not Reporting Reason | OE7: Not Reporting Additional Reasons | OF7: Numerator | OG7: Denominator | OH7: Provider Rate | OI7: Not Reporting Reason | OJ7: Not Reporting Additional Reasons | OK7: Numerator | OL7: Denominator | OM7: Provider Rate | ON7: Not Reporting Reason | OO7: Not Reporting Additional Reasons | OP7: Numerator | OQ7: Denominator | OR7: Provider Rate | OS7: Not Reporting Reason | OT7: Not Reporting Additional Reasons | OU7: Numerator | OV7: Denominator | OW7: Provider Rate | OX7: Not Reporting Reason | OY7: Not Reporting Additional Reasons | OZ7: Numerator | PA7: Denominator | PB7: Provider Rate | PC7: Not Reporting Reason | PD7: Not Reporting Additional Reasons | PE7: Numerator | PF7: Denominator | PG7: Provider Rate | PH7: Not Reporting Reason | PI7: Not Reporting Additional Reasons | PJ7: Numerator | PK7: Denominator | PL7: Provider Rate | PM7: Not Reporting Reason | PN7: Not Reporting Additional Reasons | PO7: Numerator | PP7: Denominator | PQ7: Provider Rate | PR7: Not Reporting Reason | PS7: Not Reporting Additional Reasons | PT7: Numerator | PU7: Denominator | PV7: Provider Rate | PW7: Not Reporting Reason | PX7: Not Reporting Additional Reasons | PY7: Numerator | PZ7: Denominator | QA7: Provider Rate | QB7: Not Reporting Reason | QC7: Not Reporting Additional Reasons | QD7: Numerator | QE7: Denominator | QF7: Provider Rate | QG7: Not Reporting Reason | QH7: Not Reporting Additional Reasons | QI7: Numerator | QJ7: Denominator | QK7: Provider Rate | QL7: Not Reporting Reason | QM7: Not Reporting Additional Reasons | QN7: Numerator | QO7: Denominator | QP7: Provider Rate | QQ7: Not Reporting Reason | QR7: Not Reporting Additional Reasons | QS7: Numerator | QT7: Denominator | QU7: Provider Rate | QV7: Not Reporting Reason | QW7: Not Reporting Additional Reasons | QX7: What trends have you observed over the prior time period? What factors have contributed to any decrease? How is your organization using this information to inform service delivery? | QY7: Are you able to report Medicaid-only rates? | QZ7: Numerator | RA7: Denominator | RB7: Provider Rate | RC7: Not Reporting Reason | RD7: Not Reporting Additional Reasons | RE7: Numerator | RF7: Denominator | RG7: Provider Rate | RH7: Not Reporting Reason | RI7: Not Reporting Additional Reasons | RJ7: Numerator | RK7: Denominator | RL7: Provider Rate | RM7: Not Reporting Reason | RN7: Not Reporting Additional Reasons | RO7: Numerator | RP7: Denominator | RQ7: Provider Rate | RR7: Not Reporting Reason | RS7: Not Reporting Additional Reasons | RT7: Numerator | RU7: Denominator | RV7: Provider Rate | RW7: Not Reporting Reason | RX7: Not Reporting Additional Reasons | RY7: Numerator | RZ7: Denominator | SA7: Provider Rate | SB7: Not Reporting Reason | SC7: Not Reporting Additional Reasons | SD7: Numerator | SE7: Denominator | SF7: Provider Rate | SG7: Not Reporting Reason | SH7: Not Reporting Additional Reasons | SI7: Numerator | SJ7: Denominator | SK7: Provider Rate | SL7: Not Reporting Reason | SM7: Not Reporting Additional Reasons | SN7: Numerator | SO7: Denominator | SP7: Provider Rate | SQ7: Not Reporting Reason | SR7: Not Reporting Additional Reasons | SS7: Numerator | ST7: Denominator | SU7: Provider Rate | SV7: Not Reporting Reason | SW7: Not Reporting Additional Reasons | SX7: Numerator | SY7: Denominator | SZ7: Provider Rate | TA7: Not Reporting Reason | TB7: Not Reporting Additional Reasons | TC7: Numerator | TD7: Denominator | TE7: Provider Rate | TF7: Not Reporting Reason | TG7: Not Reporting Additional Reasons | TH7: Numerator | TI7: Denominator | TJ7: Provider Rate | TK7: Not Reporting Reason | TL7: Not Reporting Additional Reasons | TM7: Numerator | TN7: Denominator | TO7: Provider Rate | TP7: Not Reporting Reason | TQ7: Not Reporting Additional Reasons | TR7: Numerator | TS7: Denominator | TT7: Provider Rate | TU7: Not Reporting Reason | TV7: Not Reporting Additional Reasons | TW7: Numerator | TX7: Denominator | TY7: Provider Rate | TZ7: Not Reporting Reason | UA7: Not Reporting Additional Reasons | UB7: Numerator | UC7: Denominator | UD7: Provider Rate | UE7: Not Reporting Reason | UF7: Not Reporting Additional Reasons | UG7: Numerator | UH7: Denominator | UI7: Provider Rate | UJ7: Not Reporting Reason | UK7: Not Reporting Additional Reasons | UL7: Numerator | UM7: Denominator | UN7: Provider Rate | UO7: Not Reporting Reason | UP7: Not Reporting Additional Reasons | UQ7: Numerator | UR7: Denominator | US7: Provider Rate | UT7: Not Reporting Reason | UU7: Not Reporting Additional Reasons | UV7: Numerator | UW7: Denominator | UX7: Provider Rate | UY7: Not Reporting Reason | UZ7: Not Reporting Additional Reasons | VA7: Numerator | VB7: Denominator | VC7: Provider Rate | VD7: Not Reporting Reason | VE7: Not Reporting Additional Reasons | VF7: Numerator | VG7: Denominator | VH7: Provider Rate | VI7: Not Reporting Reason | VJ7: Not Reporting Additional Reasons | VK7: Numerator | VL7: Denominator | VM7: Provider Rate | VN7: Not Reporting Reason | VO7: Not Reporting Additional Reasons | VP7: Numerator | VQ7: Denominator | VR7: Provider Rate | VS7: Not Reporting Reason | VT7: Not Reporting Additional Reasons | VU7: Numerator | VV7: Denominator | VW7: Provider Rate | VX7: Not Reporting Reason | VY7: Not Reporting Additional Reasons | VZ7: Numerator | WA7: Denominator | WB7: Provider Rate | WC7: Not Reporting Reason | WD7: Not Reporting Additional Reasons | WE7: Numerator | WF7: Denominator | WG7: Provider Rate | WH7: Not Reporting Reason | WI7: Not Reporting Additional Reasons | WJ7: Numerator | WK7: Denominator | WL7: Provider Rate | WM7: Not Reporting Reason | WN7: Not Reporting Additional Reasons | WO7: Numerator | WP7: Denominator | WQ7: Provider Rate | WR7: Not Reporting Reason | WS7: Not Reporting Additional Reasons | WT7: Numerator | WU7: Denominator | WV7: Provider Rate | WW7: Not Reporting Reason | WX7: Not Reporting Additional Reasons | WY7: Numerator | WZ7: Denominator | XA7: Provider Rate | XB7: Not Reporting Reason | XC7: Not Reporting Additional Reasons | XD7: Numerator | XE7: Denominator | XF7: Provider Rate | XG7: Not Reporting Reason | XH7: Not Reporting Additional Reasons | XI7: Numerator | XJ7: Denominator | XK7: Provider Rate | XL7: Not Reporting Reason | XM7: Not Reporting Additional Reasons | XN7: Numerator | XO7: Denominator | XP7: Provider Rate | XQ7: Not Reporting Reason | XR7: Not Reporting Additional Reasons | XS7: Numerator | XT7: Denominator | XU7: Provider Rate | XV7: Not Reporting Reason | XW7: Not Reporting Additional Reasons | XX7: Numerator | XY7: Denominator | XZ7: Provider Rate | YA7: Not Reporting Reason | YB7: Not Reporting Additional Reasons | YC7: Numerator | YD7: Denominator | YE7: Provider Rate | YF7: Not Reporting Reason | YG7: Not Reporting Additional Reasons | YH7: Numerator | YI7: Denominator | YJ7: Provider Rate | YK7: Not Reporting Reason | YL7: Not Reporting Additional Reasons | YM7: Numerator | YN7: Denominator | YO7: Provider Rate | YP7: Not Reporting Reason | YQ7: Not Reporting Additional Reasons | YR7: Numerator | YS7: Denominator | YT7: Provider Rate | YU7: Not Reporting Reason | YV7: Not Reporting Additional Reasons | YW7: Numerator | YX7: Denominator | YY7: Provider Rate | YZ7: Not Reporting Reason | ZA7: Not Reporting Additional Reasons | ZB7: Numerator | ZC7: Denominator | ZD7: Provider Rate | ZE7: Not Reporting Reason | ZF7: Not Reporting Additional Reasons | ZG7: Numerator | ZH7: Denominator | ZI7: Provider Rate | ZJ7: Not Reporting Reason | ZK7: Not Reporting Additional Reasons | ZL7: Numerator | ZM7: Denominator | ZN7: Provider Rate | ZO7: Not Reporting Reason | ZP7: Not Reporting Additional Reasons | ZQ7: Numerator | ZR7: Denominator | ZS7: Provider Rate | ZT7: Not Reporting Reason | ZU7: Not Reporting Additional Reasons | ZV7: Numerator | ZW7: Denominator | ZX7: Provider Rate | ZY7: Not Reporting Reason | ZZ7: Not Reporting Additional Reasons | AAA7: Numerator | AAB7: Denominator | AAC7: Provider Rate | AAD7: Not Reporting Reason | AAE7: Not Reporting Additional Reasons | AAF7: Numerator | AAG7: Denominator | AAH7: Provider Rate | AAI7: Not Reporting Reason | AAJ7: Not Reporting Additional Reasons | AAK7: Numerator | AAL7: Denominator | AAM7: Provider Rate | AAN7: Not Reporting Reason | AAO7: Not Reporting Additional Reasons | AAP7: Numerator | AAQ7: Denominator | AAR7: Provider Rate | AAS7: Not Reporting Reason | AAT7: Not Reporting Additional Reasons | AAU7: Numerator | AAV7: Denominator | AAW7: Provider Rate | AAX7: Not Reporting Reason | AAY7: Not Reporting Additional Reasons | AAZ7: Numerator | ABA7: Denominator | ABB7: Provider Rate | ABC7: Not Reporting Reason | ABD7: Not Reporting Additional Reasons | ABE7: Numerator | ABF7: Denominator | ABG7: Provider Rate | ABH7: Not Reporting Reason | ABI7: Not Reporting Additional Reasons | ABJ7: Numerator | ABK7: Denominator | ABL7: Provider Rate | ABM7: Not Reporting Reason | ABN7: Not Reporting Additional Reasons | ABO7: Numerator | ABP7: Denominator | ABQ7: Provider Rate | ABR7: Not Reporting Reason | ABS7: Not Reporting Additional Reasons | ABT7: Numerator | ABU7: Denominator | ABV7: Provider Rate | ABW7: Not Reporting Reason | ABX7: Not Reporting Additional Reasons | ABY7: Numerator | ABZ7: Denominator | ACA7: Provider Rate | ACB7: Not Reporting Reason | ACC7: Not Reporting Additional Reasons | ACD7: Numerator | ACE7: Denominator | ACF7: Provider Rate | ACG7: Not Reporting Reason | ACH7: Not Reporting Additional Reasons | ACI7: Numerator | ACJ7: Denominator | ACK7: Provider Rate | ACL7: Not Reporting Reason | ACM7: Not Reporting Additional Reasons | ACN7: Numerator | ACO7: Denominator | ACP7: Provider Rate | ACQ7: Not Reporting Reason | ACR7: Not Reporting Additional Reasons | ACS7: Numerator | ACT7: Denominator | ACU7: Provider Rate | ACV7: Not Reporting Reason | ACW7: Not Reporting Additional Reasons | ACX7: Numerator | ACY7: Denominator | ACZ7: Provider Rate | ADA7: Not Reporting Reason | ADB7: Not Reporting Additional Reasons | ADC7: Numerator | ADD7: Denominator | ADE7: Provider Rate | ADF7: Not Reporting Reason | ADG7: Not Reporting Additional Reasons | ADH7: Numerator | ADI7: Denominator | ADJ7: Provider Rate | ADK7: Not Reporting Reason | ADL7: Not Reporting Additional Reasons | ADM7: Numerator | ADN7: Denominator | ADO7: Provider Rate | ADP7: Not Reporting Reason | ADQ7: Not Reporting Additional Reasons | ADR7: Numerator | ADS7: Denominator | ADT7: Provider Rate | ADU7: Not Reporting Reason | ADV7: Not Reporting Additional Reasons | ADW7: Numerator | ADX7: Denominator | ADY7: Provider Rate | ADZ7: Not Reporting Reason | AEA7: Not Reporting Additional Reasons | AEB7: Numerator | AEC7: Denominator | AED7: Provider Rate | AEE7: Not Reporting Reason | AEF7: Not Reporting Additional Reasons | AEG7: Numerator | AEH7: Denominator | AEI7: Provider Rate | AEJ7: Not Reporting Reason | AEK7: Not Reporting Additional Reasons | AEL7: Numerator | AEM7: Denominator | AEN7: Provider Rate | AEO7: Not Reporting Reason | AEP7: Not Reporting Additional Reasons | AEQ7: Numerator | AER7: Denominator | AES7: Provider Rate | AET7: Not Reporting Reason | AEU7: Not Reporting Additional Reasons | AEV7: Numerator | AEW7: Denominator | AEX7: Provider Rate | AEY7: Not Reporting Reason | AEZ7: Not Reporting Additional Reasons | AFA7: Numerator | AFB7: Denominator | AFC7: Provider Rate | AFD7: Not Reporting Reason | AFE7: Not Reporting Additional Reasons | AFF7: Numerator | AFG7: Denominator | AFH7: Provider Rate | AFI7: Not Reporting Reason | AFJ7: Not Reporting Additional Reasons | AFK7: Numerator | AFL7: Denominator | AFM7: Provider Rate | AFN7: Not Reporting Reason | AFO7: Not Reporting Additional Reasons | AFP7: Numerator | AFQ7: Denominator | AFR7: Provider Rate | AFS7: Not Reporting Reason | AFT7: Not Reporting Additional Reasons | AFU7: Numerator | AFV7: Denominator | AFW7: Provider Rate | AFX7: Not Reporting Reason | AFY7: Not Reporting Additional Reasons | AFZ7: What trends have you observed over the prior time period? What factors have contributed to any decrease? How is your organization using this information to inform service delivery? | AGA7: Please use the space below to provide any additional comments related to your submission:
C8: =IF(INDIRECT(C$3&C$4)="","",INDIRECT(C$3&C$4)) ->  | D8: =IF(INDIRECT(D$3&D$4)="","",INDIRECT(D$3&D$4)) ->  | J8: FALSE | P8: FALSE | V8: FALSE | AC8: FALSE | BF8: FALSE | BP8: =IF(INDIRECT(BP$3&BP$4)="","",INDIRECT(BP$3&BP$4)) ->  | BS8: FALSE | EB8: =IF(INDIRECT(EB$3&EB$4)="","",INDIRECT(EB$3&EB$4)) ->  | GN8: =IF(INDIRECT(GN$3&GN$4)="","",INDIRECT(GN$3&GN$4)) ->  | IZ8: =IF(INDIRECT(IZ$3&IZ$4)="","",INDIRECT(IZ$3&IZ$4)) ->  | LL8: =IF(INDIRECT(LL$3&LL$4)="","",INDIRECT(LL$3&LL$4)) ->  | NX8: =IF(INDIRECT(NX$3&NX$4)="","",INDIRECT(NX$3&NX$4)) ->  | QJ8: =IF(INDIRECT(QJ$3&QJ$4)="","",INDIRECT(QJ$3&QJ$4)) ->  | SV8: =IF(INDIRECT(SV$3&SV$4)="","",INDIRECT(SV$3&SV$4)) ->  | VH8: =IF(INDIRECT(VH$3&VH$4)="","",INDIRECT(VH$3&VH$4)) ->  | XT8: =IF(INDIRECT(XT$3&XT$4)="","",INDIRECT(XT$3&XT$4)) ->  | AAF8: =IF(INDIRECT(AAF$3&AAF$4)="","",INDIRECT(AAF$3&AAF$4)) ->  | ACR8: =IF(INDIRECT(ACR$3&ACR$4)="","",INDIRECT(ACR$3&ACR$4)) ->  | AFD8: =IF(INDIRECT(AFD$3&AFD$4)="","",INDIRECT(AFD$3&AFD$4)) -> 
